Workbook

Sheet Portada
C22: PROPÓSITO :
C28: PROCEDIMIENTO :

Sheet 2010
A1: MÉTRICAS DE TIEMPO DE PROCESO EN SOLICITUD DE ASIGNACIÓN DE NSS
A2: NSS | B2: CIZ | C2: DELEGACIÓN | D2: SUBDELEGACIÓN | E2: HORA | G2: TIEMPO DE TRÁMITE | K2: Segundos totales | L2: Mes en que se realizó | N2: 2010
E3: INICIO | F3: TERMINO | G3: HORAS | H3: MINUTOS | I3: SEGUNDOS | N3: Mes | O3: Segundos promedio
A4: 33109001082 | B4: 2 | C4: 8 | D4: 1 | E4: 1/8/10 11:24 AM | F4: 1/8/10 11:27 AM | G4: 0 | H4: 3 | I4: 18 | K4: =G4*60*60+H4*60+I4 -> 198 | L4: =INT(LEFT(E4,FIND("/",E4) -1)) -> 1 | N4: Enero | O4: =AVERAGEIF(cero,"=1",tiempocero) -> 145.8343949
A5: 33107400062 | B5: 2 | C5: 8 | D5: 1 | E5: 1/11/10 10:42 AM | F5: 1/11/10 10:43 AM | G5: 0 | H5: 1 | I5: 7 | K5: =G5*60*60+H5*60+I5 -> 67 | L5: =INT(LEFT(E5,FIND("/",E5) -1)) -> 1 | N5: Febrero | O5: =AVERAGEIF(cero,"=2",tiempocero) -> 154.4210526
A6: 33109001348 | B6: 2 | C6: 8 | D6: 1 | E6: 1/11/10 12:52 PM | F6: 1/11/10 12:53 PM | G6: 0 | H6: 1 | I6: 23 | K6: 83 | L6: 1 | N6: Marzo | O6: =AVERAGEIF(cero,"=3",tiempocero) -> 126.2379518
A7: 33109102617 | B7: 2 | C7: 8 | D7: 1 | E7: 1/11/10 12:13 PM | F7: 1/11/10 12:14 PM | G7: 0 | H7: 1 | I7: 14 | K7: 74 | L7: 1 | N7: Abril | O7: =AVERAGEIF(cero,"=4",tiempocero) -> 132.9124668
A8: 33109102781 | B8: 2 | C8: 8 | D8: 1 | E8: 1/11/10 2:41 PM | F8: 1/11/10 3:01 PM | G8: 0 | H8: 20 | I8: 23 | K8: 1223 | L8: 1 | N8: Mayo | O8: =AVERAGEIF(cero,"=5",tiempocero) -> 142.4858612
A9: 33068662189 | B9: 2 | C9: 8 | D9: 1 | E9: 1/8/10 12:03 PM | F9: 1/8/10 12:04 PM | G9: 0 | H9: 1 | I9: 2 | K9: 62 | L9: 1 | N9: Junio | O9: =AVERAGEIF(cero,"=6",tiempocero) -> 199.5742574
A10: 33109001207 | B10: 2 | C10: 8 | D10: 1 | E10: 1/8/10 2:02 PM | F10: 1/8/10 2:05 PM | G10: 0 | H10: 3 | I10: 7 | K10: 187 | L10: 1 | N10: Julio | O10: =AVERAGEIF(cero,"=7",tiempocero) -> 183.685879
A11: 33108900607 | B11: 2 | C11: 8 | D11: 1 | E11: 1/11/10 10:35 AM | F11: 1/11/10 10:37 AM | G11: 0 | H11: 2 | I11: 48 | K11: 168 | L11: 1 | N11: Agosto | O11: =AVERAGEIF(cero,"=8",tiempocero) -> 197.7306548
A12: 33109100165 | B12: 2 | C12: 8 | D12: 1 | E12: 1/4/10 11:16 AM | F12: 1/4/10 11:17 AM | G12: 0 | H12: 1 | I12: 43 | K12: 103 | L12: 1 | N12: Septiembre | O12: =AVERAGEIF(cero,"=9",tiempocero) -> 180.7840735
A13: 33109102112 | B13: 2 | C13: 8 | D13: 1 | E13: 1/8/10 11:49 AM | F13: 1/8/10 11:54 AM | G13: 0 | H13: 4 | I13: 23 | K13: 263 | L13: 1 | N13: Octubre | O13: =AVERAGEIF(cero,"=10",tiempocero) -> 156.4163424
A14: 33108800377 | B14: 2 | C14: 8 | D14: 1 | E14: 1/8/10 11:57 AM | F14: 1/8/10 11:58 AM | G14: 0 | H14: 1 | I14: 39 | K14: 99 | L14: 1 | N14: Noviembre | O14: =AVERAGEIF(cero,"=11",tiempocero) -> 179.2074074
A15: 33108500308 | B15: 2 | C15: 8 | D15: 1 | E15: 1/11/10 9:42 AM | F15: 1/11/10 9:45 AM | G15: 0 | H15: 2 | I15: 32 | K15: 152 | L15: 1 | N15: Diciembre | O15: =AVERAGEIF(cero,"=12",tiempocero) -> 161.8253589
A16: 33109300880 | B16: 2 | C16: 8 | D16: 1 | E16: 1/11/10 10:29 AM | F16: 1/11/10 10:31 AM | G16: 0 | H16: 2 | I16: 20 | K16: 140 | L16: 1
A17: 33109300898 | B17: 2 | C17: 8 | D17: 1 | E17: 1/11/10 10:32 AM | F17: 1/11/10 10:34 AM | G17: 0 | H17: 1 | I17: 58 | K17: 118 | L17: 1
A18: 33108700486 | B18: 2 | C18: 8 | D18: 1 | E18: 1/11/10 2:26 PM | F18: 1/11/10 2:27 PM | G18: 0 | H18: 1 | I18: 39 | K18: 99 | L18: 1
A19: 33109102757 | B19: 2 | C19: 8 | D19: 1 | E19: 1/11/10 2:28 PM | F19: 1/11/10 2:30 PM | G19: 0 | H19: 1 | I19: 39 | K19: 99 | L19: 1
A20: 33109102161 | B20: 2 | C20: 8 | D20: 1 | E20: 1/8/10 12:32 PM | F20: 1/8/10 12:34 PM | G20: 0 | H20: 1 | I20: 34 | K20: 94 | L20: 1
A21: 33109001140 | B21: 2 | C21: 8 | D21: 1 | E21: 1/8/10 12:41 PM | F21: 1/8/10 12:43 PM | G21: 0 | H21: 2 | I21: 8 | K21: 128 | L21: 1
A22: 33108700023 | B22: 2 | C22: 8 | D22: 1 | E22: 1/4/10 9:44 AM | F22: 1/4/10 9:46 AM | G22: 0 | H22: 2 | I22: 36 | K22: 156 | L22: 1
A23: 33109000027 | B23: 2 | C23: 8 | D23: 1 | E23: 1/4/10 9:51 AM | F23: 1/4/10 9:53 AM | G23: 0 | H23: 1 | I23: 31 | K23: 91 | L23: 1
A24: 33109100090 | B24: 2 | C24: 8 | D24: 1 | E24: 1/4/10 9:54 AM | F24: 1/4/10 9:57 AM | G24: 0 | H24: 3 | I24: 2 | K24: 182 | L24: 1
A25: 33108700031 | B25: 2 | C25: 8 | D25: 1 | E25: 1/4/10 9:58 AM | F25: 1/4/10 10:01 AM | G25: 0 | H25: 2 | I25: 50 | K25: 170 | L25: 1
A26: 33108900011 | B26: 2 | C26: 8 | D26: 1 | E26: 1/4/10 10:06 AM | F26: 1/4/10 10:08 AM | G26: 0 | H26: 2 | I26: 19 | K26: 139 | L26: 1
A27: 33109000050 | B27: 2 | C27: 8 | D27: 1 | E27: 1/4/10 10:16 AM | F27: 1/4/10 10:18 AM | G27: 0 | H27: 1 | I27: 58 | K27: 118 | L27: 1
A28: 33109100132 | B28: 2 | C28: 8 | D28: 1 | E28: 1/4/10 10:20 AM | F28: 1/4/10 10:23 AM | G28: 0 | H28: 2 | I28: 44 | K28: 164 | L28: 1
A29: 33109200072 | B29: 2 | C29: 8 | D29: 1 | E29: 1/4/10 1:01 PM | F29: 1/4/10 1:03 PM | G29: 0 | H29: 2 | I29: 0 | K29: 120 | L29: 1
A30: 33108700056 | B30: 2 | C30: 8 | D30: 1 | E30: 1/4/10 10:59 AM | F30: 1/4/10 11:00 AM | G30: 0 | H30: 1 | I30: 32 | K30: 92 | L30: 1
A31: 33099208952 | B31: 2 | C31: 8 | D31: 1 | E31: 1/4/10 10:59 AM | F31: 1/4/10 11:02 AM | G31: 0 | H31: 2 | I31: 35 | K31: 155 | L31: 1
A32: 33109100223 | B32: 2 | C32: 8 | D32: 1 | E32: 1/4/10 11:49 AM | F32: 1/4/10 11:50 AM | G32: 0 | H32: 1 | I32: 28 | K32: 88 | L32: 1
A33: 33108500035 | B33: 2 | C33: 8 | D33: 1 | E33: 1/4/10 11:54 AM | F33: 1/4/10 11:56 AM | G33: 0 | H33: 2 | I33: 38 | K33: 158 | L33: 1
A34: 33109000126 | B34: 2 | C34: 8 | D34: 1 | E34: 1/4/10 11:57 AM | F34: 1/4/10 12:00 PM | G34: 0 | H34: 2 | I34: 23 | K34: 143 | L34: 1
A35: 33109000142 | B35: 2 | C35: 8 | D35: 1 | E35: 1/4/10 12:01 PM | F35: 1/4/10 12:04 PM | G35: 0 | H35: 3 | I35: 40 | K35: 220 | L35: 1
A36: 33109200163 | B36: 2 | C36: 8 | D36: 1 | E36: 1/4/10 2:36 PM | F36: 1/4/10 2:38 PM | G36: 0 | H36: 2 | I36: 6 | K36: 126 | L36: 1
A37: 33109000159 | B37: 2 | C37: 8 | D37: 1 | E37: 1/4/10 12:09 PM | F37: 1/4/10 12:15 PM | G37: 0 | H37: 5 | I37: 18 | K37: 318 | L37: 1
A38: 33109300203 | B38: 2 | C38: 8 | D38: 1 | E38: 1/4/10 3:10 PM | F38: 1/4/10 3:13 PM | G38: 0 | H38: 2 | I38: 44 | K38: 164 | L38: 1
A39: 33108600090 | B39: 2 | C39: 8 | D39: 1 | E39: 1/4/10 4:17 PM | F39: 1/4/10 4:18 PM | G39: 0 | H39: 1 | I39: 30 | K39: 90 | L39: 1
A40: 33108700130 | B40: 2 | C40: 8 | D40: 1 | E40: 1/4/10 4:18 PM | F40: 1/4/10 4:20 PM | G40: 0 | H40: 1 | I40: 23 | K40: 83 | L40: 1
A41: 33107900020 | B41: 2 | C41: 8 | D41: 1 | E41: 1/4/10 4:28 PM | F41: 1/4/10 4:30 PM | G41: 0 | H41: 2 | I41: 28 | K41: 148 | L41: 1
A42: 33108600090 | B42: 2 | C42: 8 | D42: 1 | E42: 1/4/10 4:32 PM | F42: 1/4/10 4:34 PM | G42: 0 | H42: 2 | I42: 6 | K42: 126 | L42: 1
A43: 33108700130 | B43: 2 | C43: 8 | D43: 1 | E43: 1/4/10 4:34 PM | F43: 1/4/10 4:37 PM | G43: 0 | H43: 2 | I43: 52 | K43: 172 | L43: 1
A44: 33109100413 | B44: 2 | C44: 8 | D44: 1 | E44: 1/4/10 2:21 PM | F44: 1/4/10 2:23 PM | G44: 0 | H44: 1 | I44: 57 | K44: 117 | L44: 1
A45: 33109100439 | B45: 2 | C45: 8 | D45: 1 | E45: 1/4/10 2:40 PM | F45: 1/4/10 2:43 PM | G45: 0 | H45: 2 | I45: 21 | K45: 141 | L45: 1
A46: 33108900078 | B46: 2 | C46: 8 | D46: 1 | E46: 1/4/10 2:40 PM | F46: 1/4/10 2:43 PM | G46: 0 | H46: 3 | I46: 24 | K46: 204 | L46: 1
A47: 33108800096 | B47: 2 | C47: 8 | D47: 1 | E47: 1/4/10 2:46 PM | F47: 1/4/10 2:47 PM | G47: 0 | H47: 1 | I47: 41 | K47: 101 | L47: 1
A48: 33109200197 | B48: 2 | C48: 8 | D48: 1 | E48: 1/4/10 3:00 PM | F48: 1/4/10 3:02 PM | G48: 0 | H48: 1 | I48: 51 | K48: 111 | L48: 1
A49: 33106800031 | B49: 2 | C49: 8 | D49: 1 | E49: 1/5/10 2:02 PM | F49: 1/5/10 2:04 PM | G49: 0 | H49: 2 | I49: 7 | K49: 127 | L49: 1
A50: 33109300369 | B50: 2 | C50: 8 | D50: 1 | E50: 1/6/10 9:36 AM | F50: 1/6/10 9:37 AM | G50: 0 | H50: 1 | I50: 40 | K50: 100 | L50: 1
A51: 33105700026 | B51: 2 | C51: 8 | D51: 1 | E51: 1/5/10 9:31 AM | F51: 1/5/10 9:35 AM | G51: 0 | H51: 4 | I51: 25 | K51: 265 | L51: 1
A52: 33109200338 | B52: 2 | C52: 8 | D52: 1 | E52: 1/5/10 12:50 PM | F52: 1/5/10 12:52 PM | G52: 0 | H52: 2 | I52: 12 | K52: 132 | L52: 1
A53: 33108900110 | B53: 2 | C53: 8 | D53: 1 | E53: 1/5/10 10:41 AM | F53: 1/5/10 10:43 AM | G53: 0 | H53: 2 | I53: 26 | K53: 146 | L53: 1
A54: 33108500100 | B54: 2 | C54: 8 | D54: 1 | E54: 1/5/10 11:27 AM | F54: 1/5/10 11:31 AM | G54: 0 | H54: 3 | I54: 18 | K54: 198 | L54: 1
A55: 33109101072 | B55: 2 | C55: 8 | D55: 1 | E55: 1/6/10 9:23 AM | F55: 1/6/10 9:25 AM | G55: 0 | H55: 2 | I55: 42 | K55: 162 | L55: 1
A56: 33108700189 | B56: 2 | C56: 8 | D56: 1 | E56: 1/6/10 11:57 AM | F56: 1/6/10 12:01 PM | G56: 0 | H56: 3 | I56: 31 | K56: 211 | L56: 1
A57: 33109300864 | B57: 2 | C57: 8 | D57: 1 | E57: 1/11/10 9:33 AM | F57: 1/11/10 9:36 AM | G57: 0 | H57: 2 | I57: 33 | K57: 153 | L57: 1
A58: 33108500290 | B58: 2 | C58: 8 | D58: 1 | E58: 1/11/10 9:37 AM | F58: 1/11/10 9:40 AM | G58: 0 | H58: 2 | I58: 42 | K58: 162 | L58: 1
A59: 33109200270 | B59: 2 | C59: 8 | D59: 1 | E59: 1/5/10 11:51 AM | F59: 1/5/10 11:54 AM | G59: 0 | H59: 2 | I59: 37 | K59: 157 | L59: 1
A60: 33109100827 | B60: 2 | C60: 8 | D60: 1 | E60: 1/5/10 12:23 PM | F60: 1/5/10 12:26 PM | G60: 0 | H60: 2 | I60: 12 | K60: 132 | L60: 1
A61: 33088806311 | B61: 2 | C61: 8 | D61: 1 | E61: 1/5/10 3:58 PM | F61: 1/5/10 4:00 PM | G61: 0 | H61: 2 | I61: 33 | K61: 153 | L61: 1
A62: 33109500026 | B62: 2 | C62: 8 | D62: 1 | E62: 1/5/10 12:54 PM | F62: 1/5/10 12:55 PM | G62: 0 | H62: 1 | I62: 35 | K62: 95 | L62: 1
A63: 33108400129 | B63: 2 | C63: 8 | D63: 1 | E63: 1/5/10 12:57 PM | F63: 1/5/10 1:01 PM | G63: 0 | H63: 3 | I63: 17 | K63: 197 | L63: 1
A64: 33108200065 | B64: 2 | C64: 8 | D64: 1 | E64: 1/5/10 1:41 PM | F64: 1/5/10 1:43 PM | G64: 0 | H64: 1 | I64: 52 | K64: 112 | L64: 1
A65: 33107400039 | B65: 2 | C65: 8 | D65: 1 | E65: 1/6/10 11:46 AM | F65: 1/6/10 11:51 AM | G65: 0 | H65: 5 | I65: 16 | K65: 316 | L65: 1
A66: 33108900284 | B66: 2 | C66: 8 | D66: 1 | E66: 1/6/10 11:52 AM | F66: 1/6/10 11:57 AM | G66: 0 | H66: 5 | I66: 14 | K66: 314 | L66: 1
A67: 33109102500 | B67: 2 | C67: 8 | D67: 1 | E67: 1/11/10 10:21 AM | F67: 1/11/10 10:23 AM | G67: 0 | H67: 2 | I67: 47 | K67: 167 | L67: 1
A68: 33108500126 | B68: 2 | C68: 8 | D68: 1 | E68: 1/5/10 2:51 PM | F68: 1/5/10 2:53 PM | G68: 0 | H68: 2 | I68: 3 | K68: 123 | L68: 1
A69: 33109100934 | B69: 2 | C69: 8 | D69: 1 | E69: 1/5/10 2:57 PM | F69: 1/5/10 2:59 PM | G69: 0 | H69: 2 | I69: 10 | K69: =G69*60*60+H69*60+I69 -> 130 | L69: =INT(LEFT(E69,FIND("/",E69) -1)) -> 1
A70: 33109000431 | B70: 2 | C70: 8 | D70: 1 | E70: 1/5/10 3:02 PM | F70: 1/5/10 3:04 PM | G70: 0 | H70: 2 | I70: 34 | K70: 154 | L70: 1
A71: 33109200395 | B71: 2 | C71: 8 | D71: 1 | E71: 1/5/10 3:13 PM | F71: 1/5/10 3:15 PM | G71: 0 | H71: 1 | I71: 31 | K71: 91 | L71: 1
A72: 33109000464 | B72: 2 | C72: 8 | D72: 1 | E72: 1/5/10 3:20 PM | F72: 1/5/10 3:21 PM | G72: 0 | H72: 1 | I72: 31 | K72: 91 | L72: 1
A73: 33109200502 | B73: 2 | C73: 8 | D73: 1 | E73: 1/6/10 11:36 AM | F73: 1/6/10 11:38 AM | G73: 0 | H73: 1 | I73: 31 | K73: 91 | L73: 1
A74: 33109300500 | B74: 2 | C74: 8 | D74: 1 | E74: 1/6/10 2:34 PM | F74: 1/6/10 2:36 PM | G74: 0 | H74: 2 | I74: 44 | K74: 164 | L74: 1
A75: 33109000639 | B75: 2 | C75: 8 | D75: 1 | E75: 1/6/10 12:08 PM | F75: 1/6/10 12:10 PM | G75: 0 | H75: 1 | I75: 54 | K75: 114 | L75: 1
A76: 33107700032 | B76: 2 | C76: 8 | D76: 1 | E76: 1/6/10 9:55 AM | F76: 1/6/10 9:58 AM | G76: 0 | H76: 3 | I76: 0 | K76: 180 | L76: 1
A77: 33108400160 | B77: 2 | C77: 8 | D77: 1 | E77: 1/6/10 12:18 PM | F77: 1/6/10 12:20 PM | G77: 0 | H77: 1 | I77: 39 | K77: 99 | L77: 1
A78: 33100100016 | B78: 2 | C78: 8 | D78: 1 | E78: 1/6/10 10:48 AM | F78: 1/6/10 10:51 AM | G78: 0 | H78: 2 | I78: 32 | K78: 152 | L78: 1
A79: 33107800063 | B79: 2 | C79: 8 | D79: 1 | E79: 1/6/10 11:01 AM | F79: 1/6/10 11:02 AM | G79: 0 | H79: 1 | I79: 28 | K79: 88 | L79: 1
A80: 33109101213 | B80: 2 | C80: 8 | D80: 1 | E80: 1/6/10 11:25 AM | F80: 1/6/10 11:27 AM | G80: 0 | H80: 2 | I80: 46 | K80: 166 | L80: 1
A81: 33109101221 | B81: 2 | C81: 8 | D81: 1 | E81: 1/6/10 11:29 AM | F81: 1/6/10 11:33 AM | G81: 0 | H81: 3 | I81: 28 | K81: 208 | L81: 1
A82: 33109300435 | B82: 2 | C82: 8 | D82: 1 | E82: 1/6/10 11:44 AM | F82: 1/6/10 11:45 AM | G82: 0 | H82: 1 | I82: 44 | K82: 104 | L82: 1
A83: 33109000712 | B83: 2 | C83: 8 | D83: 1 | E83: 1/6/10 2:10 PM | F83: 1/6/10 2:13 PM | G83: 0 | H83: 3 | I83: 3 | K83: 183 | L83: 1
A84: 33108000028 | B84: 2 | C84: 8 | D84: 1 | E84: 1/6/10 12:08 PM | F84: 1/6/10 12:12 PM | G84: 0 | H84: 4 | I84: 9 | K84: 249 | L84: 1
A85: 33109000647 | B85: 2 | C85: 8 | D85: 1 | E85: 1/6/10 12:10 PM | F85: 1/6/10 12:12 PM | G85: 0 | H85: 2 | I85: 8 | K85: 128 | L85: 1
A86: 33108800245 | B86: 2 | C86: 8 | D86: 1 | E86: 1/6/10 12:13 PM | F86: 1/6/10 12:15 PM | G86: 0 | H86: 2 | I86: 10 | K86: 130 | L86: 1
A87: 33109000654 | B87: 2 | C87: 8 | D87: 1 | E87: 1/6/10 12:15 PM | F87: 1/6/10 12:17 PM | G87: 0 | H87: 2 | I87: 3 | K87: 123 | L87: 1
A88: 33108700197 | B88: 2 | C88: 8 | D88: 1 | E88: 1/6/10 12:15 PM | F88: 1/6/10 12:18 PM | G88: 0 | H88: 3 | I88: 4 | K88: 184 | L88: 1
A89: 33109101403 | B89: 2 | C89: 8 | D89: 1 | E89: 1/6/10 2:56 PM | F89: 1/6/10 3:01 PM | G89: 0 | H89: 5 | I89: 15 | K89: 315 | L89: 1
A90: 33109300476 | B90: 2 | C90: 8 | D90: 1 | E90: 1/6/10 12:35 PM | F90: 1/6/10 12:40 PM | G90: 0 | H90: 4 | I90: 59 | K90: 299 | L90: 1
A91: 33109200528 | B91: 2 | C91: 8 | D91: 1 | E91: 1/6/10 12:41 PM | F91: 1/6/10 12:44 PM | G91: 0 | H91: 3 | I91: 20 | K91: 200 | L91: 1
A92: 33106400014 | B92: 2 | C92: 8 | D92: 1 | E92: 1/6/10 12:47 PM | F92: 1/6/10 12:49 PM | G92: 0 | H92: 1 | I92: 55 | K92: 115 | L92: 1
A93: 33107400054 | B93: 2 | C93: 8 | D93: 1 | E93: 1/6/10 1:06 PM | F93: 1/6/10 1:08 PM | G93: 0 | H93: 2 | I93: 11 | K93: 131 | L93: 1
A94: 33109200544 | B94: 2 | C94: 8 | D94: 1 | E94: 1/6/10 1:16 PM | F94: 1/6/10 1:17 PM | G94: 0 | H94: 1 | I94: 36 | K94: 96 | L94: 1
A95: 33108900326 | B95: 2 | C95: 8 | D95: 1 | E95: 1/6/10 1:40 PM | F95: 1/6/10 1:43 PM | G95: 0 | H95: 2 | I95: 10 | K95: 130 | L95: 1
A96: 33107300049 | B96: 2 | C96: 8 | D96: 1 | E96: 1/6/10 1:58 PM | F96: 1/6/10 2:00 PM | G96: 0 | H96: 2 | I96: 20 | K96: 140 | L96: 1
A97: 33108100042 | B97: 2 | C97: 8 | D97: 1 | E97: 1/6/10 2:03 PM | F97: 1/6/10 2:09 PM | G97: 0 | H97: 6 | I97: 49 | K97: 409 | L97: 1
A98: 33109101379 | B98: 2 | C98: 8 | D98: 1 | E98: 1/6/10 2:20 PM | F98: 1/6/10 2:21 PM | G98: 0 | H98: 1 | I98: 22 | K98: 82 | L98: 1
A99: 33109200577 | B99: 2 | C99: 8 | D99: 1 | E99: 1/6/10 2:23 PM | F99: 1/6/10 2:26 PM | G99: 0 | H99: 2 | I99: 33 | K99: 153 | L99: 1
A100: 33108800526 | B100: 2 | C100: 8 | D100: 1 | E100: 1/11/10 12:29 PM | F100: 1/11/10 12:30 PM | G100: 0 | H100: 1 | I100: 35 | K100: 95 | L100: 1
A101: 33107300056 | B101: 2 | C101: 8 | D101: 1 | E101: 1/6/10 4:00 PM | F101: 1/6/10 4:04 PM | G101: 0 | H101: 3 | I101: 49 | K101: 229 | L101: 1
A102: 33105000013 | B102: 2 | C102: 8 | D102: 1 | E102: 1/6/10 4:05 PM | F102: 1/6/10 4:06 PM | G102: 0 | H102: 1 | I102: 36 | K102: 96 | L102: 1
A103: 33105300017 | B103: 2 | C103: 8 | D103: 1 | E103: 1/6/10 4:07 PM | F103: 1/6/10 4:22 PM | G103: 0 | H103: 14 | I103: 36 | K103: 876 | L103: 1
A104: 33109000795 | B104: 2 | C104: 8 | D104: 1 | E104: 1/7/10 10:51 AM | F104: 1/7/10 10:54 AM | G104: 0 | H104: 2 | I104: 6 | K104: 126 | L104: 1
A105: 33109000894 | B105: 2 | C105: 8 | D105: 1 | E105: 1/7/10 1:15 PM | F105: 1/7/10 1:17 PM | G105: 0 | H105: 2 | I105: 24 | K105: 144 | L105: 1
A106: 33109101635 | B106: 2 | C106: 8 | D106: 1 | E106: 1/7/10 11:21 AM | F106: 1/7/10 11:24 AM | G106: 0 | H106: 2 | I106: 30 | K106: 150 | L106: 1
A107: 33101000025 | B107: 2 | C107: 8 | D107: 1 | E107: 1/11/10 2:18 PM | F107: 1/11/10 2:21 PM | G107: 0 | H107: 3 | I107: 5 | K107: 185 | L107: 1
A108: 33103800018 | B108: 2 | C108: 8 | D108: 1 | E108: 1/7/10 2:35 PM | F108: 1/7/10 2:36 PM | G108: 0 | H108: 1 | I108: 30 | K108: 90 | L108: 1
A109: 33109006503 | B109: 2 | C109: 8 | D109: 1 | E109: 2/9/10 11:14 AM | F109: 2/9/10 11:16 AM | G109: 0 | H109: 1 | I109: 18 | K109: 78 | L109: 2
A110: 33109006560 | B110: 2 | C110: 8 | D110: 1 | E110: 2/9/10 1:49 PM | F110: 2/9/10 1:50 PM | G110: 0 | H110: 1 | I110: 27 | K110: 87 | L110: 2
A111: 33109006859 | B111: 2 | C111: 8 | D111: 1 | E111: 2/10/10 12:16 PM | F111: 2/10/10 12:20 PM | G111: 0 | H111: 3 | I111: 20 | K111: 200 | L111: 2
A112: 33108100703 | B112: 2 | C112: 8 | D112: 1 | E112: 2/11/10 11:51 AM | F112: 2/11/10 11:52 AM | G112: 0 | H112: 1 | I112: 39 | K112: 99 | L112: 2
A113: 33109206947 | B113: 2 | C113: 8 | D113: 1 | E113: 2/10/10 11:26 AM | F113: 2/10/10 11:29 AM | G113: 0 | H113: 2 | I113: 45 | K113: 165 | L113: 2
A114: 33109207002 | B114: 2 | C114: 8 | D114: 1 | E114: 2/10/10 12:20 PM | F114: 2/10/10 12:22 PM | G114: 0 | H114: 1 | I114: 57 | K114: 117 | L114: 2
A115: 33107700297 | B115: 2 | C115: 8 | D115: 1 | E115: 2/10/10 12:25 PM | F115: 2/10/10 12:26 PM | G115: 0 | H115: 1 | I115: 17 | K115: 77 | L115: 2
A116: 33109006933 | B116: 2 | C116: 8 | D116: 1 | E116: 2/10/10 3:24 PM | F116: 2/10/10 3:26 PM | G116: 0 | H116: 1 | I116: 47 | K116: 107 | L116: 2
A117: 33107000193 | B117: 2 | C117: 8 | D117: 1 | E117: 2/11/10 9:42 AM | F117: 2/11/10 9:45 AM | G117: 0 | H117: 3 | I117: 24 | K117: 204 | L117: 2
A118: 33105000070 | B118: 2 | C118: 8 | D118: 1 | E118: 2/9/10 1:39 PM | F118: 2/9/10 1:42 PM | G118: 0 | H118: 3 | I118: 23 | K118: 203 | L118: 2
A119: 33100100073 | B119: 2 | C119: 8 | D119: 1 | E119: 2/10/10 11:16 AM | F119: 2/10/10 11:20 AM | G119: 0 | H119: 3 | I119: 41 | K119: 221 | L119: 2
A120: 33109006842 | B120: 2 | C120: 8 | D120: 1 | E120: 2/10/10 12:13 PM | F120: 2/10/10 12:14 PM | G120: 0 | H120: 1 | I120: 26 | K120: 86 | L120: 2
A121: 33109206996 | B121: 2 | C121: 8 | D121: 1 | E121: 2/10/10 12:15 PM | F121: 2/10/10 12:16 PM | G121: 0 | H121: 1 | I121: 30 | K121: 90 | L121: 2
A122: 33100600080 | B122: 2 | C122: 8 | D122: 1 | E122: 2/11/10 11:28 AM | F122: 2/11/10 11:29 AM | G122: 0 | H122: 1 | I122: 18 | K122: 78 | L122: 2
A123: 33106800239 | B123: 2 | C123: 8 | D123: 1 | E123: 2/9/10 2:12 PM | F123: 2/9/10 2:14 PM | G123: 0 | H123: 1 | I123: 58 | K123: 118 | L123: 2
A124: 33109112970 | B124: 2 | C124: 8 | D124: 1 | E124: 2/9/10 2:25 PM | F124: 2/9/10 2:27 PM | G124: 0 | H124: 2 | I124: 41 | K124: 161 | L124: 2
A125: 33109113085 | B125: 2 | C125: 8 | D125: 1 | E125: 2/9/10 6:05 PM | F125: 2/9/10 6:06 PM | G125: 0 | H125: 1 | I125: 6 | K125: 66 | L125: 2
A126: 33108903783 | B126: 2 | C126: 8 | D126: 1 | E126: 2/10/10 1:29 PM | F126: 2/10/10 1:31 PM | G126: 0 | H126: 1 | I126: 48 | K126: 108 | L126: 2
A127: 33108100687 | B127: 2 | C127: 8 | D127: 1 | E127: 2/10/10 2:22 PM | F127: 2/10/10 2:24 PM | G127: 0 | H127: 1 | I127: 28 | K127: 88 | L127: 2
A128: 33109113051 | B128: 2 | C128: 8 | D128: 1 | E128: 2/9/10 4:55 PM | F128: 2/9/10 4:57 PM | G128: 0 | H128: 2 | I128: 3 | K128: 123 | L128: 2
A129: 33109400797 | B129: 2 | C129: 8 | D129: 1 | E129: 2/10/10 11:00 AM | F129: 2/10/10 11:03 AM | G129: 0 | H129: 2 | I129: 53 | K129: 173 | L129: 2
A130: 33108501512 | B130: 2 | C130: 8 | D130: 1 | E130: 2/10/10 1:18 PM | F130: 2/10/10 1:19 PM | G130: 0 | H130: 1 | I130: 12 | K130: 72 | L130: 2
A131: 33109006883 | B131: 2 | C131: 8 | D131: 1 | E131: 2/10/10 1:20 PM | F131: 2/10/10 1:22 PM | G131: 0 | H131: 1 | I131: 58 | K131: 118 | L131: 2
A132: 33108903775 | B132: 2 | C132: 8 | D132: 1 | E132: 2/10/10 1:25 PM | F132: 2/10/10 1:26 PM | G132: 0 | H132: 1 | I132: 5 | K132: 65 | L132: 2
A133: 33109006990 | B133: 2 | C133: 8 | D133: 1 | E133: 2/10/10 5:20 PM | F133: 2/10/10 5:21 PM | G133: 0 | H133: 1 | I133: 6 | K133: =G133*60*60+H133*60+I133 -> 66 | L133: =INT(LEFT(E133,FIND("/",E133) -1)) -> 2
A134: 33109113549 | B134: 2 | C134: 8 | D134: 1 | E134: 2/10/10 5:22 PM | F134: 2/10/10 5:23 PM | G134: 0 | H134: 1 | I134: 4 | K134: 64 | L134: 2
A135: 33106100077 | B135: 2 | C135: 8 | D135: 1 | E135: 2/11/10 11:24 AM | F135: 2/11/10 11:25 AM | G135: 0 | H135: 1 | I135: 18 | K135: 78 | L135: 2
A136: 33108401002 | B136: 2 | C136: 8 | D136: 1 | E136: 2/11/10 11:26 AM | F136: 2/11/10 11:27 AM | G136: 0 | H136: 1 | I136: 26 | K136: 86 | L136: 2
A137: 33109113051 | B137: 2 | C137: 8 | D137: 1 | E137: 2/9/10 3:51 PM | F137: 2/9/10 3:52 PM | G137: 0 | H137: 1 | I137: 27 | K137: 87 | L137: 2
A138: 33108701799 | B138: 2 | C138: 8 | D138: 1 | E138: 2/3/10 4:48 PM | F138: 2/3/10 4:49 PM | G138: 0 | H138: 0 | I138: 47 | K138: 47 | L138: 2
A139: 33105900055 | B139: 2 | C139: 8 | D139: 1 | E139: 2/3/10 4:42 PM | F139: 2/3/10 4:55 PM | G139: 0 | H139: 13 | I139: 4 | K139: 784 | L139: 2
A140: 33109400680 | B140: 2 | C140: 8 | D140: 1 | E140: 2/4/10 10:59 AM | F140: 2/4/10 11:00 AM | G140: 0 | H140: 1 | I140: 46 | K140: 106 | L140: 2
A141: 33108501330 | B141: 2 | C141: 8 | D141: 1 | E141: 2/4/10 11:25 AM | F141: 2/4/10 11:26 AM | G141: 0 | H141: 1 | I141: 24 | K141: 84 | L141: 2
A142: 33104300018 | B142: 2 | C142: 8 | D142: 1 | E142: 2/4/10 11:27 AM | F142: 2/4/10 11:28 AM | G142: 0 | H142: 1 | I142: 53 | K142: 113 | L142: 2
A143: 33108702037 | B143: 2 | C143: 8 | D143: 1 | E143: 2/4/10 1:50 PM | F143: 2/4/10 1:51 PM | G143: 0 | H143: 1 | I143: 25 | K143: 85 | L143: 2
A144: 33101000108 | B144: 2 | C144: 8 | D144: 1 | E144: 2/4/10 11:40 AM | F144: 2/4/10 11:42 AM | G144: 0 | H144: 2 | I144: 1 | K144: 121 | L144: 2
A145: 33108802589 | B145: 2 | C145: 8 | D145: 1 | E145: 2/10/10 9:42 AM | F145: 2/10/10 9:45 AM | G145: 0 | H145: 2 | I145: 35 | K145: 155 | L145: 2
A146: 33105000062 | B146: 2 | C146: 8 | D146: 1 | E146: 2/4/10 1:25 PM | F146: 2/4/10 1:27 PM | G146: 0 | H146: 1 | I146: 40 | K146: 100 | L146: 2
A147: 33108903080 | B147: 2 | C147: 8 | D147: 1 | E147: 2/4/10 1:36 PM | F147: 2/4/10 1:37 PM | G147: 0 | H147: 1 | I147: 15 | K147: 75 | L147: 2
A148: 33109205881 | B148: 2 | C148: 8 | D148: 1 | E148: 2/4/10 1:44 PM | F148: 2/4/10 1:45 PM | G148: 0 | H148: 1 | I148: 21 | K148: 81 | L148: 2
A149: 33109111352 | B149: 2 | C149: 8 | D149: 1 | E149: 2/4/10 1:57 PM | F149: 2/4/10 2:01 PM | G149: 0 | H149: 3 | I149: 27 | K149: 207 | L149: 2
A150: 33109005802 | B150: 2 | C150: 8 | D150: 1 | E150: 2/4/10 2:11 PM | F150: 2/4/10 2:13 PM | G150: 0 | H150: 1 | I150: 45 | K150: 105 | L150: 2
A151: 33108601759 | B151: 2 | C151: 8 | D151: 1 | E151: 2/4/10 2:32 PM | F151: 2/4/10 2:35 PM | G151: 0 | H151: 2 | I151: 32 | K151: 152 | L151: 2
A152: 33108802340 | B152: 2 | C152: 8 | D152: 1 | E152: 2/4/10 2:36 PM | F152: 2/4/10 2:39 PM | G152: 0 | H152: 2 | I152: 6 | K152: 126 | L152: 2
A153: 33109303868 | B153: 2 | C153: 8 | D153: 1 | E153: 2/4/10 2:38 PM | F153: 2/4/10 2:39 PM | G153: 0 | H153: 1 | I153: 30 | K153: 90 | L153: 2
A154: 33109111451 | B154: 2 | C154: 8 | D154: 1 | E154: 2/4/10 2:59 PM | F154: 2/4/10 3:00 PM | G154: 0 | H154: 1 | I154: 11 | K154: 71 | L154: 2
A155: 33109111477 | B155: 2 | C155: 8 | D155: 1 | E155: 2/4/10 3:09 PM | F155: 2/4/10 3:10 PM | G155: 0 | H155: 1 | I155: 15 | K155: 75 | L155: 2
A156: 33108903346 | B156: 2 | C156: 8 | D156: 1 | E156: 2/5/10 4:45 PM | F156: 2/5/10 4:46 PM | G156: 0 | H156: 1 | I156: 31 | K156: 91 | L156: 2
A157: 33108702052 | B157: 2 | C157: 8 | D157: 1 | E157: 2/5/10 10:03 AM | F157: 2/5/10 10:05 AM | G157: 0 | H157: 1 | I157: 28 | K157: 88 | L157: 2
A158: 33109304064 | B158: 2 | C158: 8 | D158: 1 | E158: 2/5/10 3:40 PM | F158: 2/5/10 3:43 PM | G158: 0 | H158: 2 | I158: 43 | K158: 163 | L158: 2
A159: 33109206038 | B159: 2 | C159: 8 | D159: 1 | E159: 2/5/10 10:28 AM | F159: 2/5/10 10:32 AM | G159: 0 | H159: 3 | I159: 36 | K159: 216 | L159: 2
A160: 33108300808 | B160: 2 | C160: 8 | D160: 1 | E160: 2/10/10 1:55 PM | F160: 2/10/10 1:57 PM | G160: 0 | H160: 2 | I160: 34 | K160: 154 | L160: 2
A161: 33109113408 | B161: 2 | C161: 8 | D161: 1 | E161: 2/10/10 1:14 PM | F161: 2/10/10 1:15 PM | G161: 0 | H161: 1 | I161: 27 | K161: 87 | L161: 2
A162: 33109111964 | B162: 2 | C162: 8 | D162: 1 | E162: 2/5/10 12:57 PM | F162: 2/5/10 12:58 PM | G162: 0 | H162: 1 | I162: 29 | K162: 89 | L162: 2
A163: 33109006016 | B163: 2 | C163: 8 | D163: 1 | E163: 2/5/10 1:27 PM | F163: 2/5/10 1:29 PM | G163: 0 | H163: 1 | I163: 41 | K163: 101 | L163: 2
A164: 33100600072 | B164: 2 | C164: 8 | D164: 1 | E164: 2/5/10 2:41 PM | F164: 2/5/10 2:42 PM | G164: 0 | H164: 1 | I164: 20 | K164: 80 | L164: 2
A165: 33109112046 | B165: 2 | C165: 8 | D165: 1 | E165: 2/5/10 3:01 PM | F165: 2/5/10 3:03 PM | G165: 0 | H165: 2 | I165: 22 | K165: 142 | L165: 2
A166: 33109006040 | B166: 2 | C166: 8 | D166: 1 | E166: 2/5/10 3:11 PM | F166: 2/5/10 3:13 PM | G166: 0 | H166: 1 | I166: 25 | K166: 85 | L166: 2
A167: 33100100065 | B167: 2 | C167: 8 | D167: 1 | E167: 2/8/10 2:19 PM | F167: 2/8/10 2:21 PM | G167: 0 | H167: 1 | I167: 55 | K167: 115 | L167: 2
A168: 33109113440 | B168: 2 | C168: 8 | D168: 1 | E168: 2/10/10 1:59 PM | F168: 2/10/10 2:02 PM | G168: 0 | H168: 3 | I168: 2 | K168: 182 | L168: 2
A169: 33108702318 | B169: 2 | C169: 8 | D169: 1 | E169: 2/10/10 2:19 PM | F169: 2/10/10 2:21 PM | G169: 0 | H169: 1 | I169: 41 | K169: 101 | L169: 2
A170: 33109304379 | B170: 2 | C170: 8 | D170: 1 | E170: 2/9/10 9:22 AM | F170: 2/9/10 9:26 AM | G170: 0 | H170: 4 | I170: 35 | K170: 275 | L170: 2
A171: 33105000096 | B171: 2 | C171: 8 | D171: 1 | E171: 2/10/10 4:37 PM | F171: 2/10/10 4:40 PM | G171: 0 | H171: 3 | I171: 14 | K171: 194 | L171: 2
A172: 33108903833 | B172: 2 | C172: 8 | D172: 1 | E172: 2/11/10 9:03 AM | F172: 2/11/10 9:06 AM | G172: 0 | H172: 2 | I172: 52 | K172: 172 | L172: 2
A173: 33109006123 | B173: 2 | C173: 8 | D173: 1 | E173: 2/8/10 10:33 AM | F173: 2/8/10 10:41 AM | G173: 0 | H173: 8 | I173: 1 | K173: 481 | L173: 2
A174: 33108802456 | B174: 2 | C174: 8 | D174: 1 | E174: 2/8/10 12:42 PM | F174: 2/8/10 12:45 PM | G174: 0 | H174: 2 | I174: 31 | K174: 151 | L174: 2
A175: 33109112632 | B175: 2 | C175: 8 | D175: 1 | E175: 2/8/10 5:26 PM | F175: 2/8/10 5:28 PM | G175: 0 | H175: 1 | I175: 21 | K175: 81 | L175: 2
A176: 33109206533 | B176: 2 | C176: 8 | D176: 1 | E176: 2/8/10 5:29 PM | F176: 2/8/10 5:30 PM | G176: 0 | H176: 1 | I176: 42 | K176: 102 | L176: 2
A177: 33108903478 | B177: 2 | C177: 8 | D177: 1 | E177: 2/8/10 1:58 PM | F177: 2/8/10 1:59 PM | G177: 0 | H177: 1 | I177: 27 | K177: 87 | L177: 2
A178: 33107400286 | B178: 2 | C178: 8 | D178: 1 | E178: 2/8/10 4:59 PM | F178: 2/8/10 5:02 PM | G178: 0 | H178: 2 | I178: 57 | K178: 177 | L178: 2
A179: 33106500110 | B179: 2 | C179: 8 | D179: 1 | E179: 2/8/10 5:02 PM | F179: 2/8/10 5:05 PM | G179: 0 | H179: 3 | I179: 12 | K179: 192 | L179: 2
A180: 33109006453 | B180: 2 | C180: 8 | D180: 1 | E180: 2/8/10 5:21 PM | F180: 2/8/10 5:22 PM | G180: 0 | H180: 1 | I180: 5 | K180: 65 | L180: 2
A181: 33108601965 | B181: 2 | C181: 8 | D181: 1 | E181: 2/8/10 5:22 PM | F181: 2/8/10 5:24 PM | G181: 0 | H181: 1 | I181: 16 | K181: 76 | L181: 2
A182: 33109006461 | B182: 2 | C182: 8 | D182: 1 | E182: 2/8/10 5:24 PM | F182: 2/8/10 5:25 PM | G182: 0 | H182: 0 | I182: 55 | K182: 55 | L182: 2
A183: 33109112681 | B183: 2 | C183: 8 | D183: 1 | E183: 2/9/10 9:47 AM | F183: 2/9/10 9:49 AM | G183: 0 | H183: 1 | I183: 28 | K183: 88 | L183: 2
A184: 33108903585 | B184: 2 | C184: 8 | D184: 1 | E184: 2/9/10 10:11 AM | F184: 2/9/10 10:13 AM | G184: 0 | H184: 1 | I184: 43 | K184: 103 | L184: 2
A185: 33107500341 | B185: 2 | C185: 8 | D185: 1 | E185: 2/2/10 3:11 PM | F185: 2/2/10 3:14 PM | G185: 0 | H185: 3 | I185: 32 | K185: 212 | L185: 2
A186: 33109110339 | B186: 2 | C186: 8 | D186: 1 | E186: 2/2/10 3:16 PM | F186: 2/2/10 4:02 PM | G186: 0 | H186: 46 | I186: 33 | K186: 2793 | L186: 2
A187: 33108701864 | B187: 2 | C187: 8 | D187: 1 | E187: 2/2/10 4:58 PM | F187: 2/2/10 4:59 PM | G187: 0 | H187: 1 | I187: 31 | K187: 91 | L187: 2
A188: 33108701880 | B188: 2 | C188: 8 | D188: 1 | E188: 2/2/10 5:56 PM | F188: 2/2/10 5:58 PM | G188: 0 | H188: 1 | I188: 45 | K188: 105 | L188: 2
A189: 33108902868 | B189: 2 | C189: 8 | D189: 1 | E189: 2/2/10 6:02 PM | F189: 2/2/10 6:03 PM | G189: 0 | H189: 1 | I189: 25 | K189: 85 | L189: 2
A190: 33108802183 | B190: 2 | C190: 8 | D190: 1 | E190: 2/2/10 6:05 PM | F190: 2/2/10 6:08 PM | G190: 0 | H190: 2 | I190: 40 | K190: 160 | L190: 2
A191: 33100600031 | B191: 2 | C191: 8 | D191: 1 | E191: 1/26/10 1:27 PM | F191: 1/26/10 1:28 PM | G191: 0 | H191: 1 | I191: 14 | K191: 74 | L191: 1
A192: 33108801771 | B192: 2 | C192: 8 | D192: 1 | E192: 1/26/10 1:35 PM | F192: 1/26/10 1:36 PM | G192: 0 | H192: 1 | I192: 31 | K192: 91 | L192: 1
A193: 33109110263 | B193: 2 | C193: 8 | D193: 1 | E193: 2/2/10 2:52 PM | F193: 2/2/10 2:55 PM | G193: 0 | H193: 2 | I193: 4 | K193: 124 | L193: 2
A194: 33109110271 | B194: 2 | C194: 8 | D194: 1 | E194: 2/2/10 2:56 PM | F194: 2/2/10 2:58 PM | G194: 0 | H194: 1 | I194: 48 | K194: 108 | L194: 2
A195: 33105300033 | B195: 2 | C195: 8 | D195: 1 | E195: 1/26/10 12:15 PM | F195: 1/26/10 12:17 PM | G195: 0 | H195: 2 | I195: 5 | K195: 125 | L195: 1
A196: 33108200487 | B196: 2 | C196: 8 | D196: 1 | E196: 1/26/10 2:24 PM | F196: 1/26/10 2:26 PM | G196: 0 | H196: 1 | I196: 40 | K196: 100 | L196: 1
A197: 33109108275 | B197: 2 | C197: 8 | D197: 1 | E197: 1/26/10 12:31 PM | F197: 1/26/10 12:33 PM | G197: 0 | H197: 1 | I197: 23 | K197: =G197*60*60+H197*60+I197 -> 83 | L197: =INT(LEFT(E197,FIND("/",E197) -1)) -> 1
A198: 33108300568 | B198: 2 | C198: 8 | D198: 1 | E198: 1/26/10 3:07 PM | F198: 1/26/10 3:09 PM | G198: 0 | H198: 1 | I198: 34 | K198: 94 | L198: 1
A199: 33109204553 | B199: 2 | C199: 8 | D199: 1 | E199: 1/26/10 3:33 PM | F199: 1/26/10 3:35 PM | G199: 0 | H199: 1 | I199: 21 | K199: 81 | L199: 1
A200: 33107800311 | B200: 2 | C200: 8 | D200: 1 | E200: 1/26/10 3:32 PM | F200: 1/26/10 3:35 PM | G200: 0 | H200: 3 | I200: 9 | K200: 189 | L200: 1
... 5578 more rows

Sheet 2011
A1: MÉTRICAS DE TIEMPO DE PROCESO EN SOLICITUD DE ASIGNACIÓN DE NSS
A2: NSS | B2: CIZ | C2: DELEGACIÓN | D2: SUBDELEGACIÓN | E2: HORA | G2: TIEMPO DE TRÁMITE | K2: Segundos totales | L2: Mes en que se realizó | N2: 2011
E3: INICIO | F3: TERMINO | G3: HORAS | H3: MINUTOS | I3: SEGUNDOS | N3: Mes | O3: Segundos promedio
A4: 33119104363 | B4: 2 | C4: 8 | D4: 1 | E4: 1/20/11 1:26 PM | F4: 1/20/11 1:30 PM | G4: 0 | H4: 4 | I4: 13 | K4: =G4*60*60+H4*60+I4 -> 253 | L4: =INT(LEFT(E4,FIND("/",E4) -1)) -> 1 | N4: Enero | O4: =AVERAGEIF(uno,"=1",tiempouno) -> 184.3588907
A5: 33119002203 | B5: 2 | C5: 8 | D5: 1 | E5: 1/19/11 9:34 AM | F5: 1/19/11 9:38 AM | G5: 0 | H5: 4 | I5: 1 | K5: =G5*60*60+H5*60+I5 -> 241 | L5: =INT(LEFT(E5,FIND("/",E5) -1)) -> 1 | N5: Febrero | O5: =AVERAGEIF(uno,"=2",tiempouno) -> 172.0339257
A6: 33119303700 | B6: 2 | C6: 8 | D6: 1 | E6: 1/19/11 11:53 AM | F6: 1/19/11 11:55 AM | G6: 0 | H6: 2 | I6: 30 | K6: 150 | L6: 1 | N6: Marzo | O6: =AVERAGEIF(uno,"=3",tiempouno) -> 221.6582985
A7: 33119208917 | B7: 2 | C7: 8 | D7: 1 | E7: 1/19/11 9:28 AM | F7: 1/19/11 9:31 AM | G7: 0 | H7: 3 | I7: 22 | K7: 202 | L7: 1 | N7: Abril | O7: =AVERAGEIF(uno,"=4",tiempouno) -> 163.1213172
A8: 33111000098 | B8: 2 | C8: 8 | D8: 1 | E8: 1/19/11 11:45 AM | F8: 1/19/11 11:47 AM | G8: 0 | H8: 1 | I8: 58 | K8: 118 | L8: 1 | N8: Mayo | O8: =AVERAGEIF(uno,"=5",tiempouno) -> 167.6467316
A9: 33118400416 | B9: 2 | C9: 8 | D9: 1 | E9: 1/19/11 1:14 PM | F9: 1/19/11 1:23 PM | G9: 0 | H9: 9 | I9: 14 | K9: 554 | L9: 1 | N9: Junio | O9: =AVERAGEIF(uno,"=6",tiempouno) -> 221.9778761
A10: 33111000072 | B10: 2 | C10: 8 | D10: 1 | E10: 1/19/11 9:18 AM | F10: 1/19/11 9:23 AM | G10: 0 | H10: 4 | I10: 25 | K10: 265 | L10: 1 | N10: Julio | O10: =AVERAGEIF(uno,"=7",tiempouno) -> 165.3061013
A11: 33119208883 | B11: 2 | C11: 8 | D11: 1 | E11: 1/19/11 9:23 AM | F11: 1/19/11 9:25 AM | G11: 0 | H11: 2 | I11: 29 | K11: 149 | L11: 1 | N11: Agosto | O11: =AVERAGEIF(uno,"=8",tiempouno) -> 135.3566108
A12: 33119303619 | B12: 2 | C12: 8 | D12: 1 | E12: 1/19/11 10:08 AM | F12: 1/19/11 10:10 AM | G12: 0 | H12: 2 | I12: 14 | K12: 134 | L12: 1 | N12: Septiembre | O12: =AVERAGEIF(uno,"=9",tiempouno) -> 150.7544053
A13: 33119103829 | B13: 2 | C13: 8 | D13: 1 | E13: 1/19/11 10:46 AM | F13: 1/19/11 10:48 AM | G13: 0 | H13: 2 | I13: 30 | K13: 150 | L13: 1 | N13: Octubre | O13: =AVERAGEIF(uno,"=10",tiempouno) -> 131.2356902
A14: 33119206010 | B14: 2 | C14: 8 | D14: 1 | E14: 1/13/11 12:38 PM | F14: 1/13/11 12:42 PM | G14: 0 | H14: 3 | I14: 43 | K14: 223 | L14: 1 | N14: Noviembre | O14: =AVERAGEIF(uno,"=11",tiempouno) -> 152.6296703
A15: 33119401421 | B15: 2 | C15: 8 | D15: 1 | E15: 1/13/11 12:38 PM | F15: 1/13/11 12:48 PM | G15: 0 | H15: 9 | I15: 45 | K15: 585 | L15: 1 | N15: Diciembre | O15: =AVERAGEIF(uno,"=12",tiempouno) -> 156.8876117
A16: 33119001494 | B16: 2 | C16: 8 | D16: 1 | E16: 1/13/11 12:44 PM | F16: 1/13/11 12:49 PM | G16: 0 | H16: 5 | I16: 44 | K16: 344 | L16: 1
A17: 33119302314 | B17: 2 | C17: 8 | D17: 1 | E17: 1/13/11 12:52 PM | F17: 1/13/11 12:58 PM | G17: 0 | H17: 5 | I17: 31 | K17: 331 | L17: 1
A18: 33119102649 | B18: 2 | C18: 8 | D18: 1 | E18: 1/13/11 1:02 PM | F18: 1/13/11 1:08 PM | G18: 0 | H18: 5 | I18: 26 | K18: 326 | L18: 1
A19: 33116300030 | B19: 2 | C19: 8 | D19: 1 | E19: 1/13/11 12:54 PM | F19: 1/13/11 1:25 PM | G19: 0 | H19: 31 | I19: 36 | K19: 1896 | L19: 1
A20: 33119102730 | B20: 2 | C20: 8 | D20: 1 | E20: 1/13/11 2:48 PM | F20: 1/13/11 2:51 PM | G20: 0 | H20: 3 | I20: 19 | K20: 199 | L20: 1
A21: 33117000050 | B21: 2 | C21: 8 | D21: 1 | E21: 1/13/11 2:52 PM | F21: 1/13/11 2:56 PM | G21: 0 | H21: 3 | I21: 21 | K21: 201 | L21: 1
A22: 33118700740 | B22: 2 | C22: 8 | D22: 1 | E22: 1/19/11 9:56 AM | F22: 1/19/11 9:59 AM | G22: 0 | H22: 2 | I22: 44 | K22: 164 | L22: 1
A23: 33119103753 | B23: 2 | C23: 8 | D23: 1 | E23: 1/19/11 10:00 AM | F23: 1/19/11 10:04 AM | G23: 0 | H23: 3 | I23: 33 | K23: 213 | L23: 1
A24: 33119209014 | B24: 2 | C24: 8 | D24: 1 | E24: 1/19/11 10:00 AM | F24: 1/19/11 10:04 AM | G24: 0 | H24: 4 | I24: 21 | K24: 261 | L24: 1
A25: 33098700447 | B25: 2 | C25: 8 | D25: 1 | E25: 1/19/11 11:33 AM | F25: 1/19/11 11:35 AM | G25: 0 | H25: 2 | I25: 2 | K25: 122 | L25: 1
A26: 33111000080 | B26: 2 | C26: 8 | D26: 1 | E26: 1/19/11 11:41 AM | F26: 1/19/11 11:43 AM | G26: 0 | H26: 2 | I26: 2 | K26: 122 | L26: 1
A27: 33118100107 | B27: 2 | C27: 8 | D27: 1 | E27: 1/14/11 9:30 AM | F27: 1/14/11 9:34 AM | G27: 0 | H27: 3 | I27: 51 | K27: 231 | L27: 1
A28: 33118300129 | B28: 2 | C28: 8 | D28: 1 | E28: 1/14/11 9:54 AM | F28: 1/14/11 9:58 AM | G28: 0 | H28: 4 | I28: 19 | K28: 259 | L28: 1
A29: 33119102771 | B29: 2 | C29: 8 | D29: 1 | E29: 1/14/11 10:05 AM | F29: 1/14/11 10:07 AM | G29: 0 | H29: 2 | I29: 24 | K29: 144 | L29: 1
A30: 33118800938 | B30: 2 | C30: 8 | D30: 1 | E30: 1/14/11 10:12 AM | F30: 1/14/11 10:17 AM | G30: 0 | H30: 4 | I30: 18 | K30: 258 | L30: 1
A31: 33119206648 | B31: 2 | C31: 8 | D31: 1 | E31: 1/14/11 11:45 AM | F31: 1/14/11 11:47 AM | G31: 0 | H31: 2 | I31: 10 | K31: 130 | L31: 1
A32: 33118600593 | B32: 2 | C32: 8 | D32: 1 | E32: 1/14/11 11:48 AM | F32: 1/14/11 11:52 AM | G32: 0 | H32: 3 | I32: 17 | K32: 197 | L32: 1
A33: 33119401595 | B33: 2 | C33: 8 | D33: 1 | E33: 1/14/11 11:51 AM | F33: 1/14/11 11:53 AM | G33: 0 | H33: 1 | I33: 53 | K33: 113 | L33: 1
A34: 33119102854 | B34: 2 | C34: 8 | D34: 1 | E34: 1/14/11 11:55 AM | F34: 1/14/11 11:57 AM | G34: 0 | H34: 1 | I34: 58 | K34: 118 | L34: 1
A35: 33118600601 | B35: 2 | C35: 8 | D35: 1 | E35: 1/14/11 11:59 AM | F35: 1/14/11 12:03 PM | G35: 0 | H35: 3 | I35: 36 | K35: 216 | L35: 1
A36: 33119206739 | B36: 2 | C36: 8 | D36: 1 | E36: 1/14/11 12:17 PM | F36: 1/14/11 12:20 PM | G36: 0 | H36: 3 | I36: 32 | K36: 212 | L36: 1
A37: 33119102862 | B37: 2 | C37: 8 | D37: 1 | E37: 1/14/11 12:16 PM | F37: 1/14/11 12:21 PM | G37: 0 | H37: 5 | I37: 26 | K37: 326 | L37: 1
A38: 33110600047 | B38: 2 | C38: 8 | D38: 1 | E38: 1/14/11 12:22 PM | F38: 1/14/11 12:29 PM | G38: 0 | H38: 6 | I38: 47 | K38: 407 | L38: 1
A39: 33119103977 | B39: 2 | C39: 8 | D39: 1 | E39: 1/19/11 1:10 PM | F39: 1/19/11 1:12 PM | G39: 0 | H39: 1 | I39: 57 | K39: 117 | L39: 1
A40: 33117700113 | B40: 2 | C40: 8 | D40: 1 | E40: 1/14/11 4:22 PM | F40: 1/14/11 4:23 PM | G40: 0 | H40: 1 | I40: 21 | K40: 81 | L40: 1
A41: 33119303841 | B41: 2 | C41: 8 | D41: 1 | E41: 1/19/11 1:03 PM | F41: 1/19/11 1:05 PM | G41: 0 | H41: 2 | I41: 4 | K41: 124 | L41: 1
A42: 33119207117 | B42: 2 | C42: 8 | D42: 1 | E42: 1/17/11 10:00 AM | F42: 1/17/11 10:02 AM | G42: 0 | H42: 1 | I42: 43 | K42: 103 | L42: 1
A43: 33119103084 | B43: 2 | C43: 8 | D43: 1 | E43: 1/17/11 10:08 AM | F43: 1/17/11 10:10 AM | G43: 0 | H43: 1 | I43: 55 | K43: 115 | L43: 1
A44: 33119207141 | B44: 2 | C44: 8 | D44: 1 | E44: 1/17/11 10:15 AM | F44: 1/17/11 10:17 AM | G44: 0 | H44: 1 | I44: 12 | K44: 72 | L44: 1
A45: 33119207174 | B45: 2 | C45: 8 | D45: 1 | E45: 1/17/11 10:20 AM | F45: 1/17/11 10:22 AM | G45: 0 | H45: 1 | I45: 48 | K45: 108 | L45: 1
A46: 33118801019 | B46: 2 | C46: 8 | D46: 1 | E46: 1/17/11 10:21 AM | F46: 1/17/11 10:23 AM | G46: 0 | H46: 1 | I46: 51 | K46: 111 | L46: 1
A47: 33119207182 | B47: 2 | C47: 8 | D47: 1 | E47: 1/17/11 10:23 AM | F47: 1/17/11 10:26 AM | G47: 0 | H47: 2 | I47: 43 | K47: 163 | L47: 1
A48: 33119104041 | B48: 2 | C48: 8 | D48: 1 | E48: 1/19/11 3:21 PM | F48: 1/19/11 3:24 PM | G48: 0 | H48: 2 | I48: 20 | K48: 140 | L48: 1
A49: 33119207315 | B49: 2 | C49: 8 | D49: 1 | E49: 1/17/11 11:36 AM | F49: 1/17/11 11:40 AM | G49: 0 | H49: 3 | I49: 49 | K49: 229 | L49: 1
A50: 33119401710 | B50: 2 | C50: 8 | D50: 1 | E50: 1/17/11 11:51 AM | F50: 1/17/11 11:53 AM | G50: 0 | H50: 2 | I50: 49 | K50: 169 | L50: 1
A51: 33118901058 | B51: 2 | C51: 8 | D51: 1 | E51: 1/17/11 11:57 AM | F51: 1/17/11 11:59 AM | G51: 0 | H51: 2 | I51: 11 | K51: 131 | L51: 1
A52: 33118300236 | B52: 2 | C52: 8 | D52: 1 | E52: 1/19/11 3:07 PM | F52: 1/19/11 3:12 PM | G52: 0 | H52: 5 | I52: 4 | K52: 304 | L52: 1
A53: 33119103274 | B53: 2 | C53: 8 | D53: 1 | E53: 1/17/11 1:07 PM | F53: 1/17/11 1:09 PM | G53: 0 | H53: 2 | I53: 25 | K53: 145 | L53: 1
A54: 33116000036 | B54: 2 | C54: 8 | D54: 1 | E54: 1/17/11 1:15 PM | F54: 1/17/11 1:17 PM | G54: 0 | H54: 2 | I54: 33 | K54: 153 | L54: 1
A55: 33119207570 | B55: 2 | C55: 8 | D55: 1 | E55: 1/17/11 1:30 PM | F55: 1/17/11 1:32 PM | G55: 0 | H55: 1 | I55: 44 | K55: 104 | L55: 1
A56: 33119001916 | B56: 2 | C56: 8 | D56: 1 | E56: 1/17/11 1:37 PM | F56: 1/17/11 1:38 PM | G56: 0 | H56: 1 | I56: 56 | K56: 116 | L56: 1
A57: 33119208057 | B57: 2 | C57: 8 | D57: 1 | E57: 1/17/11 3:17 PM | F57: 1/17/11 3:18 PM | G57: 0 | H57: 1 | I57: 30 | K57: 90 | L57: 1
A58: 33119208156 | B58: 2 | C58: 8 | D58: 1 | E58: 1/17/11 4:03 PM | F58: 1/17/11 4:06 PM | G58: 0 | H58: 2 | I58: 43 | K58: 163 | L58: 1
A59: 33119401793 | B59: 2 | C59: 8 | D59: 1 | E59: 1/17/11 4:12 PM | F59: 1/17/11 4:16 PM | G59: 0 | H59: 3 | I59: 34 | K59: 214 | L59: 1
A60: 33119401801 | B60: 2 | C60: 8 | D60: 1 | E60: 1/17/11 4:18 PM | F60: 1/17/11 4:22 PM | G60: 0 | H60: 4 | I60: 8 | K60: 248 | L60: 1
A61: 33118200188 | B61: 2 | C61: 8 | D61: 1 | E61: 1/18/11 9:18 AM | F61: 1/18/11 9:20 AM | G61: 0 | H61: 1 | I61: 39 | K61: 99 | L61: 1
A62: 33119402163 | B62: 2 | C62: 8 | D62: 1 | E62: 1/20/11 10:14 AM | F62: 1/20/11 10:17 AM | G62: 0 | H62: 3 | I62: 10 | K62: 190 | L62: 1
A63: 33119600055 | B63: 2 | C63: 8 | D63: 1 | E63: 1/20/11 11:05 AM | F63: 1/20/11 11:06 AM | G63: 0 | H63: 1 | I63: 53 | K63: 113 | L63: 1
A64: 33116100059 | B64: 2 | C64: 8 | D64: 1 | E64: 1/18/11 9:36 AM | F64: 1/18/11 9:38 AM | G64: 0 | H64: 2 | I64: 23 | K64: 143 | L64: 1
A65: 33119208354 | B65: 2 | C65: 8 | D65: 1 | E65: 1/18/11 9:58 AM | F65: 1/18/11 10:00 AM | G65: 0 | H65: 2 | I65: 9 | K65: 129 | L65: 1
A66: 33117800152 | B66: 2 | C66: 8 | D66: 1 | E66: 1/18/11 11:17 AM | F66: 1/18/11 11:19 AM | G66: 0 | H66: 1 | I66: 51 | K66: 111 | L66: 1
A67: 33119208438 | B67: 2 | C67: 8 | D67: 1 | E67: 1/18/11 11:29 AM | F67: 1/18/11 11:31 AM | G67: 0 | H67: 2 | I67: 13 | K67: 133 | L67: 1
A68: 33119500198 | B68: 2 | C68: 8 | D68: 1 | E68: 1/18/11 11:34 AM | F68: 1/18/11 11:38 AM | G68: 0 | H68: 4 | I68: 5 | K68: 245 | L68: 1
A69: 33119401843 | B69: 2 | C69: 8 | D69: 1 | E69: 1/18/11 11:40 AM | F69: 1/18/11 11:41 AM | G69: 0 | H69: 1 | I69: 31 | K69: =G69*60*60+H69*60+I69 -> 91 | L69: =INT(LEFT(E69,FIND("/",E69) -1)) -> 1
A70: 33119208503 | B70: 2 | C70: 8 | D70: 1 | E70: 1/18/11 11:51 AM | F70: 1/18/11 11:56 AM | G70: 0 | H70: 4 | I70: 58 | K70: 298 | L70: 1
A71: 33119208610 | B71: 2 | C71: 8 | D71: 1 | E71: 1/18/11 1:01 PM | F71: 1/18/11 1:03 PM | G71: 0 | H71: 1 | I71: 48 | K71: 108 | L71: 1
A72: 33116700130 | B72: 2 | C72: 8 | D72: 1 | E72: 1/20/11 10:59 AM | F72: 1/20/11 11:03 AM | G72: 0 | H72: 3 | I72: 53 | K72: 233 | L72: 1
A73: 33119303999 | B73: 2 | C73: 8 | D73: 1 | E73: 1/20/11 11:01 AM | F73: 1/20/11 11:05 AM | G73: 0 | H73: 3 | I73: 26 | K73: 206 | L73: 1
A74: 33118801183 | B74: 2 | C74: 8 | D74: 1 | E74: 1/18/11 1:09 PM | F74: 1/18/11 1:11 PM | G74: 0 | H74: 2 | I74: 31 | K74: 151 | L74: 1
A75: 33119303478 | B75: 2 | C75: 8 | D75: 1 | E75: 1/18/11 1:18 PM | F75: 1/18/11 1:19 PM | G75: 0 | H75: 1 | I75: 22 | K75: 82 | L75: 1
A76: 33118901421 | B76: 2 | C76: 8 | D76: 1 | E76: 1/20/11 12:52 PM | F76: 1/20/11 12:54 PM | G76: 0 | H76: 2 | I76: 13 | K76: 133 | L76: 1
A77: 33119208826 | B77: 2 | C77: 8 | D77: 1 | E77: 1/19/11 9:12 AM | F77: 1/19/11 9:14 AM | G77: 0 | H77: 2 | I77: 39 | K77: 159 | L77: 1
A78: 33119103704 | B78: 2 | C78: 8 | D78: 1 | E78: 1/19/11 9:55 AM | F78: 1/19/11 9:57 AM | G78: 0 | H78: 1 | I78: 34 | K78: 94 | L78: 1
A79: 33119209071 | B79: 2 | C79: 8 | D79: 1 | E79: 1/19/11 10:38 AM | F79: 1/19/11 10:40 AM | G79: 0 | H79: 2 | I79: 7 | K79: 127 | L79: 1
A80: 33119209196 | B80: 2 | C80: 8 | D80: 1 | E80: 1/19/11 11:18 AM | F80: 1/19/11 11:20 AM | G80: 0 | H80: 2 | I80: 9 | K80: 129 | L80: 1
A81: 33119103928 | B81: 2 | C81: 8 | D81: 1 | E81: 1/19/11 12:08 PM | F81: 1/19/11 12:11 PM | G81: 0 | H81: 2 | I81: 6 | K81: 126 | L81: 1
A82: 33110800043 | B82: 2 | C82: 8 | D82: 1 | E82: 1/20/11 12:45 PM | F82: 1/20/11 12:49 PM | G82: 0 | H82: 3 | I82: 54 | K82: 234 | L82: 1
A83: 33119210202 | B83: 2 | C83: 8 | D83: 1 | E83: 1/20/11 1:29 PM | F83: 1/20/11 1:32 PM | G83: 0 | H83: 3 | I83: 33 | K83: 213 | L83: 1
A84: 33118500439 | B84: 2 | C84: 8 | D84: 1 | E84: 1/20/11 1:32 PM | F84: 1/20/11 1:34 PM | G84: 0 | H84: 2 | I84: 34 | K84: 154 | L84: 1
A85: 33119104397 | B85: 2 | C85: 8 | D85: 1 | E85: 1/20/11 1:36 PM | F85: 1/20/11 1:38 PM | G85: 0 | H85: 2 | I85: 7 | K85: 127 | L85: 1
A86: 33119103688 | B86: 2 | C86: 8 | D86: 1 | E86: 1/19/11 9:45 AM | F86: 1/19/11 9:48 AM | G86: 0 | H86: 2 | I86: 51 | K86: 171 | L86: 1
A87: 33119205269 | B87: 2 | C87: 8 | D87: 1 | E87: 1/12/11 11:33 AM | F87: 1/12/11 11:51 AM | G87: 0 | H87: 18 | I87: 24 | K87: 1104 | L87: 1
A88: 33119205285 | B88: 2 | C88: 8 | D88: 1 | E88: 1/12/11 11:50 AM | F88: 1/12/11 11:52 AM | G88: 0 | H88: 2 | I88: 24 | K88: 144 | L88: 1
A89: 33119102243 | B89: 2 | C89: 8 | D89: 1 | E89: 1/12/11 12:20 PM | F89: 1/12/11 12:22 PM | G89: 0 | H89: 2 | I89: 47 | K89: 167 | L89: 1
A90: 33118700351 | B90: 2 | C90: 8 | D90: 1 | E90: 1/12/11 12:25 PM | F90: 1/12/11 12:27 PM | G90: 0 | H90: 2 | I90: 30 | K90: 150 | L90: 1
A91: 33119205335 | B91: 2 | C91: 8 | D91: 1 | E91: 1/12/11 12:27 PM | F91: 1/12/11 12:29 PM | G91: 0 | H91: 2 | I91: 6 | K91: 126 | L91: 1
A92: 33118700369 | B92: 2 | C92: 8 | D92: 1 | E92: 1/12/11 12:29 PM | F92: 1/12/11 12:31 PM | G92: 0 | H92: 2 | I92: 2 | K92: 122 | L92: 1
A93: 33119302074 | B93: 2 | C93: 8 | D93: 1 | E93: 1/12/11 12:31 PM | F93: 1/12/11 12:35 PM | G93: 0 | H93: 3 | I93: 41 | K93: 221 | L93: 1
A94: 33118600809 | B94: 2 | C94: 8 | D94: 1 | E94: 1/19/11 2:28 PM | F94: 1/19/11 2:30 PM | G94: 0 | H94: 2 | I94: 40 | K94: 160 | L94: 1
A95: 33119209667 | B95: 2 | C95: 8 | D95: 1 | E95: 1/19/11 2:49 PM | F95: 1/19/11 2:51 PM | G95: 0 | H95: 2 | I95: 44 | K95: 164 | L95: 1
A96: 33119209675 | B96: 2 | C96: 8 | D96: 1 | E96: 1/19/11 2:51 PM | F96: 1/19/11 2:53 PM | G96: 0 | H96: 2 | I96: 19 | K96: 139 | L96: 1
A97: 33115400013 | B97: 2 | C97: 8 | D97: 1 | E97: 1/19/11 2:53 PM | F97: 1/19/11 2:56 PM | G97: 0 | H97: 3 | I97: 3 | K97: 183 | L97: 1
A98: 33119209915 | B98: 2 | C98: 8 | D98: 1 | E98: 1/20/11 10:02 AM | F98: 1/20/11 10:05 AM | G98: 0 | H98: 2 | I98: 58 | K98: 178 | L98: 1
A99: 33119205566 | B99: 2 | C99: 8 | D99: 1 | E99: 1/12/11 2:03 PM | F99: 1/12/11 2:07 PM | G99: 0 | H99: 3 | I99: 28 | K99: 208 | L99: 1
A100: 33119205574 | B100: 2 | C100: 8 | D100: 1 | E100: 1/12/11 2:12 PM | F100: 1/12/11 2:14 PM | G100: 0 | H100: 1 | I100: 36 | K100: 96 | L100: 1
A101: 33118800755 | B101: 2 | C101: 8 | D101: 1 | E101: 1/12/11 2:12 PM | F101: 1/12/11 2:15 PM | G101: 0 | H101: 3 | I101: 30 | K101: 210 | L101: 1
A102: 33118900266 | B102: 2 | C102: 8 | D102: 1 | E102: 1/6/11 11:47 AM | F102: 1/6/11 11:49 AM | G102: 0 | H102: 1 | I102: 48 | K102: 108 | L102: 1
A103: 33119104090 | B103: 2 | C103: 8 | D103: 1 | E103: 1/19/11 4:15 PM | F103: 1/19/11 4:16 PM | G103: 0 | H103: 1 | I103: 5 | K103: 65 | L103: 1
A104: 33119900018 | B104: 2 | C104: 8 | D104: 1 | E104: 1/19/11 4:16 PM | F104: 1/19/11 4:36 PM | G104: 0 | H104: 19 | I104: 53 | K104: 1193 | L104: 1
A105: 33119209816 | B105: 2 | C105: 8 | D105: 1 | E105: 1/19/11 4:42 PM | F105: 1/19/11 4:44 PM | G105: 0 | H105: 1 | I105: 41 | K105: 101 | L105: 1
A106: 33119104116 | B106: 2 | C106: 8 | D106: 1 | E106: 1/19/11 4:50 PM | F106: 1/19/11 4:52 PM | G106: 0 | H106: 1 | I106: 29 | K106: 89 | L106: 1
A107: 33118901363 | B107: 2 | C107: 8 | D107: 1 | E107: 1/20/11 9:55 AM | F107: 1/20/11 9:57 AM | G107: 0 | H107: 2 | I107: 20 | K107: 140 | L107: 1
A108: 33118200089 | B108: 2 | C108: 8 | D108: 1 | E108: 1/6/11 4:10 PM | F108: 1/6/11 4:14 PM | G108: 0 | H108: 3 | I108: 26 | K108: 206 | L108: 1
A109: 33119401462 | B109: 2 | C109: 8 | D109: 1 | E109: 1/13/11 1:47 PM | F109: 1/13/11 1:51 PM | G109: 0 | H109: 3 | I109: 45 | K109: 225 | L109: 1
A110: 33119402148 | B110: 2 | C110: 8 | D110: 1 | E110: 1/20/11 9:41 AM | F110: 1/20/11 9:49 AM | G110: 0 | H110: 7 | I110: 56 | K110: 476 | L110: 1
A111: 33119500222 | B111: 2 | C111: 8 | D111: 1 | E111: 1/20/11 10:33 AM | F111: 1/20/11 10:35 AM | G111: 0 | H111: 2 | I111: 16 | K111: 136 | L111: 1
A112: 33119002435 | B112: 2 | C112: 8 | D112: 1 | E112: 1/20/11 10:37 AM | F112: 1/20/11 10:39 AM | G112: 0 | H112: 2 | I112: 10 | K112: 130 | L112: 1
A113: 33119104207 | B113: 2 | C113: 8 | D113: 1 | E113: 1/20/11 11:22 AM | F113: 1/20/11 11:24 AM | G113: 0 | H113: 2 | I113: 23 | K113: 143 | L113: 1
A114: 33118500421 | B114: 2 | C114: 8 | D114: 1 | E114: 1/20/11 11:25 AM | F114: 1/20/11 11:30 AM | G114: 0 | H114: 5 | I114: 9 | K114: 309 | L114: 1
A115: 33119402288 | B115: 2 | C115: 8 | D115: 1 | E115: 1/20/11 12:28 PM | F115: 1/20/11 12:31 PM | G115: 0 | H115: 2 | I115: 29 | K115: 149 | L115: 1
A116: 33119205962 | B116: 2 | C116: 8 | D116: 1 | E116: 1/13/11 12:16 PM | F116: 1/13/11 12:19 PM | G116: 0 | H116: 3 | I116: 10 | K116: 190 | L116: 1
A117: 33115700024 | B117: 2 | C117: 8 | D117: 1 | E117: 1/6/11 2:57 PM | F117: 1/6/11 2:58 PM | G117: 0 | H117: 1 | I117: 33 | K117: 93 | L117: 1
A118: 33116600033 | B118: 2 | C118: 8 | D118: 1 | E118: 1/6/11 2:54 PM | F118: 1/6/11 2:58 PM | G118: 0 | H118: 4 | I118: 17 | K118: 257 | L118: 1
A119: 33119000603 | B119: 2 | C119: 8 | D119: 1 | E119: 1/7/11 12:23 PM | F119: 1/7/11 12:28 PM | G119: 0 | H119: 4 | I119: 26 | K119: 266 | L119: 1
A120: 33119302538 | B120: 2 | C120: 8 | D120: 1 | E120: 1/14/11 10:29 AM | F120: 1/14/11 10:31 AM | G120: 0 | H120: 2 | I120: 35 | K120: 155 | L120: 1
A121: 33119206234 | B121: 2 | C121: 8 | D121: 1 | E121: 1/13/11 1:57 PM | F121: 1/13/11 1:59 PM | G121: 0 | H121: 1 | I121: 51 | K121: 111 | L121: 1
A122: 33119303957 | B122: 2 | C122: 8 | D122: 1 | E122: 1/20/11 10:29 AM | F122: 1/20/11 10:31 AM | G122: 0 | H122: 1 | I122: 43 | K122: 103 | L122: 1
A123: 33118500231 | B123: 2 | C123: 8 | D123: 1 | E123: 1/13/11 2:07 PM | F123: 1/13/11 2:09 PM | G123: 0 | H123: 1 | I123: 33 | K123: 93 | L123: 1
A124: 33118700898 | B124: 2 | C124: 8 | D124: 1 | E124: 1/20/11 11:16 AM | F124: 1/20/11 11:19 AM | G124: 0 | H124: 3 | I124: 32 | K124: 212 | L124: 1
A125: 33119104199 | B125: 2 | C125: 8 | D125: 1 | E125: 1/20/11 11:15 AM | F125: 1/20/11 11:20 AM | G125: 0 | H125: 5 | I125: 7 | K125: 307 | L125: 1
A126: 33118801381 | B126: 2 | C126: 8 | D126: 1 | E126: 1/20/11 11:19 AM | F126: 1/20/11 11:21 AM | G126: 0 | H126: 2 | I126: 13 | K126: 133 | L126: 1
A127: 33119104306 | B127: 2 | C127: 8 | D127: 1 | E127: 1/20/11 12:15 PM | F127: 1/20/11 12:19 PM | G127: 0 | H127: 3 | I127: 53 | K127: 233 | L127: 1
A128: 33119205582 | B128: 2 | C128: 8 | D128: 1 | E128: 1/12/11 2:25 PM | F128: 1/12/11 2:27 PM | G128: 0 | H128: 1 | I128: 18 | K128: 78 | L128: 1
A129: 33119202597 | B129: 2 | C129: 8 | D129: 1 | E129: 1/7/11 9:43 AM | F129: 1/7/11 9:45 AM | G129: 0 | H129: 2 | I129: 34 | K129: 154 | L129: 1
A130: 33119202605 | B130: 2 | C130: 8 | D130: 1 | E130: 1/7/11 9:47 AM | F130: 1/7/11 9:49 AM | G130: 0 | H130: 2 | I130: 20 | K130: 140 | L130: 1
A131: 33119202613 | B131: 2 | C131: 8 | D131: 1 | E131: 1/7/11 9:49 AM | F131: 1/7/11 9:52 AM | G131: 0 | H131: 2 | I131: 42 | K131: 162 | L131: 1
A132: 33119202647 | B132: 2 | C132: 8 | D132: 1 | E132: 1/7/11 9:58 AM | F132: 1/7/11 10:00 AM | G132: 0 | H132: 2 | I132: 14 | K132: 134 | L132: 1
A133: 33119500123 | B133: 2 | C133: 8 | D133: 1 | E133: 1/14/11 12:30 PM | F133: 1/14/11 12:35 PM | G133: 0 | H133: 4 | I133: 50 | K133: =G133*60*60+H133*60+I133 -> 290 | L133: =INT(LEFT(E133,FIND("/",E133) -1)) -> 1
A134: 33110800019 | B134: 2 | C134: 8 | D134: 1 | E134: 1/14/11 12:38 PM | F134: 1/14/11 12:41 PM | G134: 0 | H134: 3 | I134: 25 | K134: 205 | L134: 1
A135: 33117900119 | B135: 2 | C135: 8 | D135: 1 | E135: 1/14/11 10:37 AM | F135: 1/14/11 10:41 AM | G135: 0 | H135: 3 | I135: 53 | K135: 233 | L135: 1
A136: 33119206242 | B136: 2 | C136: 8 | D136: 1 | E136: 1/13/11 2:00 PM | F136: 1/13/11 2:03 PM | G136: 0 | H136: 2 | I136: 27 | K136: 147 | L136: 1
A137: 33119302413 | B137: 2 | C137: 8 | D137: 1 | E137: 1/13/11 2:17 PM | F137: 1/13/11 2:22 PM | G137: 0 | H137: 5 | I137: 2 | K137: 302 | L137: 1
A138: 33119206317 | B138: 2 | C138: 8 | D138: 1 | E138: 1/13/11 2:18 PM | F138: 1/13/11 2:24 PM | G138: 0 | H138: 5 | I138: 49 | K138: 349 | L138: 1
A139: 33119001544 | B139: 2 | C139: 8 | D139: 1 | E139: 1/13/11 2:35 PM | F139: 1/13/11 2:38 PM | G139: 0 | H139: 3 | I139: 36 | K139: 216 | L139: 1
A140: 33119206333 | B140: 2 | C140: 8 | D140: 1 | E140: 1/13/11 2:39 PM | F140: 1/13/11 2:41 PM | G140: 0 | H140: 2 | I140: 30 | K140: 150 | L140: 1
A141: 33119205574 | B141: 2 | C141: 8 | D141: 1 | E141: 1/12/11 2:14 PM | F141: 1/12/11 2:18 PM | G141: 0 | H141: 3 | I141: 45 | K141: 225 | L141: 1
A142: 33119205624 | B142: 2 | C142: 8 | D142: 1 | E142: 1/12/11 2:43 PM | F142: 1/12/11 2:45 PM | G142: 0 | H142: 2 | I142: 19 | K142: 139 | L142: 1
A143: 33119102383 | B143: 2 | C143: 8 | D143: 1 | E143: 1/12/11 2:46 PM | F143: 1/12/11 2:48 PM | G143: 0 | H143: 1 | I143: 19 | K143: 79 | L143: 1
A144: 33117700105 | B144: 2 | C144: 8 | D144: 1 | E144: 1/14/11 12:42 PM | F144: 1/14/11 12:46 PM | G144: 0 | H144: 4 | I144: 30 | K144: 270 | L144: 1
A145: 33119102789 | B145: 2 | C145: 8 | D145: 1 | E145: 1/14/11 10:42 AM | F145: 1/14/11 10:44 AM | G145: 0 | H145: 2 | I145: 7 | K145: 127 | L145: 1
A146: 33118800946 | B146: 2 | C146: 8 | D146: 1 | E146: 1/14/11 10:44 AM | F146: 1/14/11 10:49 AM | G146: 0 | H146: 4 | I146: 25 | K146: 265 | L146: 1
A147: 33119206564 | B147: 2 | C147: 8 | D147: 1 | E147: 1/14/11 10:50 AM | F147: 1/14/11 10:53 AM | G147: 0 | H147: 3 | I147: 13 | K147: 193 | L147: 1
A148: 33119205665 | B148: 2 | C148: 8 | D148: 1 | E148: 1/12/11 2:59 PM | F148: 1/12/11 3:07 PM | G148: 0 | H148: 7 | I148: 49 | K148: 469 | L148: 1
A149: 33119102417 | B149: 2 | C149: 8 | D149: 1 | E149: 1/12/11 3:11 PM | F149: 1/12/11 3:12 PM | G149: 0 | H149: 0 | I149: 56 | K149: 56 | L149: 1
A150: 33118600270 | B150: 2 | C150: 8 | D150: 1 | E150: 1/7/11 2:04 PM | F150: 1/7/11 2:08 PM | G150: 0 | H150: 3 | I150: 32 | K150: 212 | L150: 1
A151: 33119203041 | B151: 2 | C151: 8 | D151: 1 | E151: 1/7/11 2:19 PM | F151: 1/7/11 2:21 PM | G151: 0 | H151: 2 | I151: 32 | K151: 152 | L151: 1
A152: 33119400704 | B152: 2 | C152: 8 | D152: 1 | E152: 1/7/11 2:16 PM | F152: 1/7/11 2:22 PM | G152: 0 | H152: 5 | I152: 28 | K152: 328 | L152: 1
A153: 33119400712 | B153: 2 | C153: 8 | D153: 1 | E153: 1/7/11 2:26 PM | F153: 1/7/11 2:29 PM | G153: 0 | H153: 3 | I153: 10 | K153: 190 | L153: 1
A154: 33119206796 | B154: 2 | C154: 8 | D154: 1 | E154: 1/14/11 12:48 PM | F154: 1/14/11 12:54 PM | G154: 0 | H154: 5 | I154: 56 | K154: 356 | L154: 1
A155: 33119102904 | B155: 2 | C155: 8 | D155: 1 | E155: 1/14/11 2:28 PM | F155: 1/14/11 2:30 PM | G155: 0 | H155: 1 | I155: 29 | K155: 89 | L155: 1
A156: 33119401629 | B156: 2 | C156: 8 | D156: 1 | E156: 1/14/11 2:31 PM | F156: 1/14/11 2:35 PM | G156: 0 | H156: 3 | I156: 39 | K156: 219 | L156: 1
A157: 33119001593 | B157: 2 | C157: 8 | D157: 1 | E157: 1/14/11 11:01 AM | F157: 1/14/11 11:04 AM | G157: 0 | H157: 2 | I157: 23 | K157: 143 | L157: 1
A158: 33119206580 | B158: 2 | C158: 8 | D158: 1 | E158: 1/14/11 11:06 AM | F158: 1/14/11 11:09 AM | G158: 0 | H158: 3 | I158: 22 | K158: 202 | L158: 1
A159: 33119302678 | B159: 2 | C159: 8 | D159: 1 | E159: 1/14/11 2:53 PM | F159: 1/14/11 2:56 PM | G159: 0 | H159: 3 | I159: 12 | K159: 192 | L159: 1
A160: 33119102839 | B160: 2 | C160: 8 | D160: 1 | E160: 1/14/11 11:24 AM | F160: 1/14/11 11:27 AM | G160: 0 | H160: 3 | I160: 12 | K160: 192 | L160: 1
A161: 33119302553 | B161: 2 | C161: 8 | D161: 1 | E161: 1/14/11 11:29 AM | F161: 1/14/11 11:32 AM | G161: 0 | H161: 3 | I161: 10 | K161: 190 | L161: 1
A162: 33119205657 | B162: 2 | C162: 8 | D162: 1 | E162: 1/12/11 2:59 PM | F162: 1/12/11 3:00 PM | G162: 0 | H162: 1 | I162: 15 | K162: 75 | L162: 1
A163: 33119302223 | B163: 2 | C163: 8 | D163: 1 | E163: 1/12/11 4:29 PM | F163: 1/12/11 4:32 PM | G163: 0 | H163: 3 | I163: 6 | K163: 186 | L163: 1
A164: 33119101609 | B164: 2 | C164: 8 | D164: 1 | E164: 1/10/11 1:11 PM | F164: 1/10/11 1:13 PM | G164: 0 | H164: 1 | I164: 33 | K164: 93 | L164: 1
A165: 33119103175 | B165: 2 | C165: 8 | D165: 1 | E165: 1/17/11 12:06 PM | F165: 1/17/11 12:08 PM | G165: 0 | H165: 1 | I165: 59 | K165: 119 | L165: 1
A166: 33118600627 | B166: 2 | C166: 8 | D166: 1 | E166: 1/14/11 2:46 PM | F166: 1/14/11 2:49 PM | G166: 0 | H166: 2 | I166: 28 | K166: 148 | L166: 1
A167: 33119302652 | B167: 2 | C167: 8 | D167: 1 | E167: 1/14/11 2:50 PM | F167: 1/14/11 2:52 PM | G167: 0 | H167: 1 | I167: 59 | K167: 119 | L167: 1
A168: 33119301498 | B168: 2 | C168: 8 | D168: 1 | E168: 1/10/11 11:00 AM | F168: 1/10/11 11:06 AM | G168: 0 | H168: 6 | I168: 1 | K168: 361 | L168: 1
A169: 33119301514 | B169: 2 | C169: 8 | D169: 1 | E169: 1/10/11 11:08 AM | F169: 1/10/11 11:10 AM | G169: 0 | H169: 2 | I169: 29 | K169: 149 | L169: 1
A170: 33119101740 | B170: 2 | C170: 8 | D170: 1 | E170: 1/10/11 3:03 PM | F170: 1/10/11 3:05 PM | G170: 0 | H170: 1 | I170: 48 | K170: 108 | L170: 1
A171: 33119207604 | B171: 2 | C171: 8 | D171: 1 | E171: 1/17/11 1:43 PM | F171: 1/17/11 1:45 PM | G171: 0 | H171: 2 | I171: 15 | K171: 135 | L171: 1
A172: 33118400291 | B172: 2 | C172: 8 | D172: 1 | E172: 1/17/11 10:40 AM | F172: 1/17/11 10:46 AM | G172: 0 | H172: 6 | I172: 11 | K172: 371 | L172: 1
A173: 33119001726 | B173: 2 | C173: 8 | D173: 1 | E173: 1/17/11 9:33 AM | F173: 1/17/11 9:35 AM | G173: 0 | H173: 2 | I173: 14 | K173: 134 | L173: 1
A174: 33119302785 | B174: 2 | C174: 8 | D174: 1 | E174: 1/17/11 9:37 AM | F174: 1/17/11 9:46 AM | G174: 0 | H174: 8 | I174: 7 | K174: 487 | L174: 1
A175: 33119203744 | B175: 2 | C175: 8 | D175: 1 | E175: 1/10/11 12:39 PM | F175: 1/10/11 12:41 PM | G175: 0 | H175: 2 | I175: 23 | K175: 143 | L175: 1
A176: 33119203751 | B176: 2 | C176: 8 | D176: 1 | E176: 1/10/11 12:41 PM | F176: 1/10/11 12:42 PM | G176: 0 | H176: 1 | I176: 15 | K176: 75 | L176: 1
A177: 33119203777 | B177: 2 | C177: 8 | D177: 1 | E177: 1/10/11 12:46 PM | F177: 1/10/11 12:50 PM | G177: 0 | H177: 3 | I177: 28 | K177: 208 | L177: 1
A178: 33119101542 | B178: 2 | C178: 8 | D178: 1 | E178: 1/10/11 12:51 PM | F178: 1/10/11 12:53 PM | G178: 0 | H178: 1 | I178: 54 | K178: 114 | L178: 1
A179: 33118300095 | B179: 2 | C179: 8 | D179: 1 | E179: 1/10/11 12:56 PM | F179: 1/10/11 12:57 PM | G179: 0 | H179: 1 | I179: 9 | K179: 69 | L179: 1
A180: 33117700071 | B180: 2 | C180: 8 | D180: 1 | E180: 1/10/11 1:05 PM | F180: 1/10/11 1:07 PM | G180: 0 | H180: 2 | I180: 40 | K180: 160 | L180: 1
A181: 33118900522 | B181: 2 | C181: 8 | D181: 1 | E181: 1/11/11 9:35 AM | F181: 1/11/11 9:37 AM | G181: 0 | H181: 1 | I181: 35 | K181: 95 | L181: 1
A182: 33119103308 | B182: 2 | C182: 8 | D182: 1 | E182: 1/17/11 1:49 PM | F182: 1/17/11 1:53 PM | G182: 0 | H182: 3 | I182: 51 | K182: 231 | L182: 1
A183: 33118500298 | B183: 2 | C183: 8 | D183: 1 | E183: 1/17/11 12:23 PM | F183: 1/17/11 12:26 PM | G183: 0 | H183: 2 | I183: 50 | K183: 170 | L183: 1
A184: 33119001783 | B184: 2 | C184: 8 | D184: 1 | E184: 1/17/11 10:57 AM | F184: 1/17/11 10:58 AM | G184: 0 | H184: 1 | I184: 50 | K184: 110 | L184: 1
A185: 33119302900 | B185: 2 | C185: 8 | D185: 1 | E185: 1/17/11 11:10 AM | F185: 1/17/11 11:14 AM | G185: 0 | H185: 3 | I185: 8 | K185: 188 | L185: 1
A186: 33119204023 | B186: 2 | C186: 8 | D186: 1 | E186: 1/10/11 2:19 PM | F186: 1/10/11 2:21 PM | G186: 0 | H186: 2 | I186: 2 | K186: 122 | L186: 1
A187: 33119101690 | B187: 2 | C187: 8 | D187: 1 | E187: 1/10/11 2:23 PM | F187: 1/10/11 2:25 PM | G187: 0 | H187: 1 | I187: 33 | K187: 93 | L187: 1
A188: 33119204080 | B188: 2 | C188: 8 | D188: 1 | E188: 1/10/11 2:35 PM | F188: 1/10/11 2:36 PM | G188: 0 | H188: 1 | I188: 31 | K188: 91 | L188: 1
A189: 33118600387 | B189: 2 | C189: 8 | D189: 1 | E189: 1/10/11 2:40 PM | F189: 1/10/11 2:42 PM | G189: 0 | H189: 1 | I189: 39 | K189: 99 | L189: 1
A190: 33118800508 | B190: 2 | C190: 8 | D190: 1 | E190: 1/10/11 2:42 PM | F190: 1/10/11 2:46 PM | G190: 0 | H190: 3 | I190: 21 | K190: 201 | L190: 1
A191: 33119204130 | B191: 2 | C191: 8 | D191: 1 | E191: 1/10/11 2:47 PM | F191: 1/10/11 2:48 PM | G191: 0 | H191: 1 | I191: 23 | K191: 83 | L191: 1
A192: 33117300047 | B192: 2 | C192: 8 | D192: 1 | E192: 1/10/11 2:49 PM | F192: 1/10/11 2:53 PM | G192: 0 | H192: 3 | I192: 53 | K192: 233 | L192: 1
A193: 33118700252 | B193: 2 | C193: 8 | D193: 1 | E193: 1/10/11 2:56 PM | F193: 1/10/11 2:58 PM | G193: 0 | H193: 1 | I193: 59 | K193: 119 | L193: 1
A194: 33116400046 | B194: 2 | C194: 8 | D194: 1 | E194: 1/11/11 11:32 AM | F194: 1/11/11 11:38 AM | G194: 0 | H194: 6 | I194: 20 | K194: 380 | L194: 1
A195: 33119103498 | B195: 2 | C195: 8 | D195: 1 | E195: 1/18/11 10:19 AM | F195: 1/18/11 10:21 AM | G195: 0 | H195: 1 | I195: 39 | K195: 99 | L195: 1
A196: 33119103324 | B196: 2 | C196: 8 | D196: 1 | E196: 1/17/11 2:02 PM | F196: 1/17/11 2:05 PM | G196: 0 | H196: 3 | I196: 13 | K196: 193 | L196: 1
A197: 33119207406 | B197: 2 | C197: 8 | D197: 1 | E197: 1/17/11 12:29 PM | F197: 1/17/11 12:33 PM | G197: 0 | H197: 3 | I197: 30 | K197: =G197*60*60+H197*60+I197 -> 210 | L197: =INT(LEFT(E197,FIND("/",E197) -1)) -> 1
A198: 33118901074 | B198: 2 | C198: 8 | D198: 1 | E198: 1/17/11 12:36 PM | F198: 1/17/11 12:38 PM | G198: 0 | H198: 1 | I198: 48 | K198: 108 | L198: 1
A199: 33119207430 | B199: 2 | C199: 8 | D199: 1 | E199: 1/17/11 12:37 PM | F199: 1/17/11 12:39 PM | G199: 0 | H199: 1 | I199: 36 | K199: 96 | L199: 1
A200: 33119103233 | B200: 2 | C200: 8 | D200: 1 | E200: 1/17/11 12:50 PM | F200: 1/17/11 12:53 PM | G200: 0 | H200: 2 | I200: 59 | K200: 179 | L200: 1
... 4300 more rows

Sheet 2012
A1: MÉTRICAS DE TIEMPO DE PROCESO EN SOLICITUD DE ASIGNACIÓN DE NSS
A2: NSS | B2: CIZ | C2: DELEGACIÓN | D2: SUBDELEGACIÓN | E2: HORA | G2: TIEMPO DE TRÁMITE | K2: Segundos totales | L2: Mes en que se realizó | N2: 2012
E3: INICIO | F3: TERMINO | G3: HORAS | H3: MINUTOS | I3: SEGUNDOS | N3: Mes | O3: Segundos promedio
A4: 33129405172 | B4: 2 | C4: 8 | D4: 1 | E4: 1/19/12 12:18 PM | F4: 1/19/12 12:19 PM | G4: 0 | H4: 1 | I4: 27 | K4: =G4*60*60+H4*60+I4 -> 87 | L4: =INT(LEFT(E4,FIND("/",E4) -1)) -> 1 | N4: Enero | O4: =AVERAGEIF(dos,"=1",tiempodos) -> 164.9608163
A5: 33129310745 | B5: 2 | C5: 8 | D5: 1 | E5: 1/19/12 12:28 PM | F5: 1/19/12 12:29 PM | G5: 0 | H5: 1 | I5: 8 | K5: =G5*60*60+H5*60+I5 -> 68 | L5: =INT(LEFT(E5,FIND("/",E5) -1)) -> 1 | N5: Febrero | O5: =AVERAGEIF(dos,"=2",tiempodos) -> 144.2548387
A6: 33129310778 | B6: 2 | C6: 8 | D6: 1 | E6: 1/19/12 12:33 PM | F6: 1/19/12 12:35 PM | G6: 0 | H6: 1 | I6: 45 | K6: 105 | L6: 1 | N6: Marzo | O6: =AVERAGEIF(dos,"=3",tiempodos) -> 175.8202717
A7: 33129310000 | B7: 2 | C7: 8 | D7: 1 | E7: 1/18/12 11:06 AM | F7: 1/18/12 11:07 AM | G7: 0 | H7: 1 | I7: 42 | K7: 102 | L7: 1 | N7: Abril | O7: =AVERAGEIF(dos,"=4",tiempodos) -> 198.6631908
A8: 33129310059 | B8: 2 | C8: 8 | D8: 1 | E8: 1/18/12 11:46 AM | F8: 1/18/12 11:50 AM | G8: 0 | H8: 4 | I8: 22 | K8: 262 | L8: 1 | N8: Mayo | O8: =AVERAGEIF(dos,"=5",tiempodos) -> 159.8173168
A9: 33128901445 | B9: 2 | C9: 8 | D9: 1 | E9: 1/18/12 12:39 PM | F9: 1/18/12 12:41 PM | G9: 0 | H9: 2 | I9: 1 | K9: 121 | L9: 1 | N9: Junio | O9: =AVERAGEIF(dos,"=6",tiempodos) -> 152.4679389
A10: 33127800192 | B10: 2 | C10: 8 | D10: 1 | E10: 1/18/12 12:40 PM | F10: 1/18/12 12:46 PM | G10: 0 | H10: 5 | I10: 32 | K10: 332 | L10: 1 | N10: Julio | O10: =AVERAGEIF(dos,"=7",tiempodos) -> 138.9615385
A11: 33129102449 | B11: 2 | C11: 8 | D11: 1 | E11: 1/18/12 9:22 AM | F11: 1/18/12 9:24 AM | G11: 0 | H11: 2 | I11: 8 | K11: 128 | L11: 1 | N11: Agosto | O11: =AVERAGEIF(dos,"=8",tiempodos) -> 129.5012146
A12: 33129204898 | B12: 2 | C12: 8 | D12: 1 | E12: 1/18/12 11:40 AM | F12: 1/18/12 11:41 AM | G12: 0 | H12: 1 | I12: 16 | K12: 76 | L12: 1 | N12: Septiembre | O12: =AVERAGEIF(dos,"=9",tiempodos) -> 135.4837438
A13: 33129204914 | B13: 2 | C13: 8 | D13: 1 | E13: 1/18/12 11:42 AM | F13: 1/18/12 11:45 AM | G13: 0 | H13: 2 | I13: 48 | K13: 168 | L13: 1 | N13: Octubre | O13: =AVERAGEIF(dos,"=10",tiempodos) -> 150.4768041
A14: 33129102522 | B14: 2 | C14: 8 | D14: 1 | E14: 1/18/12 12:33 PM | F14: 1/18/12 12:35 PM | G14: 0 | H14: 1 | I14: 59 | K14: 119 | L14: 1 | N14: Noviembre | O14: =AVERAGEIF(dos,"=11",tiempodos) -> 130.1822222
A15: 33129001898 | B15: 2 | C15: 8 | D15: 1 | E15: 1/18/12 1:21 PM | F15: 1/18/12 1:23 PM | G15: 0 | H15: 2 | I15: 6 | K15: 126 | L15: 1 | N15: Diciembre | O15: =AVERAGEIF(dos,"=12",tiempodos) -> 139.4133489
A16: 33129205028 | B16: 2 | C16: 8 | D16: 1 | E16: 1/18/12 1:25 PM | F16: 1/18/12 1:27 PM | G16: 0 | H16: 1 | I16: 53 | K16: 113 | L16: 1
A17: 33129203346 | B17: 2 | C17: 8 | D17: 1 | E17: 1/12/12 3:10 PM | F17: 1/12/12 3:12 PM | G17: 0 | H17: 1 | I17: 30 | K17: 90 | L17: 1
A18: 33128900926 | B18: 2 | C18: 8 | D18: 1 | E18: 1/12/12 3:45 PM | F18: 1/12/12 3:47 PM | G18: 0 | H18: 1 | I18: 50 | K18: 110 | L18: 1
A19: 33129203445 | B19: 2 | C19: 8 | D19: 1 | E19: 1/13/12 9:22 AM | F19: 1/13/12 9:24 AM | G19: 0 | H19: 2 | I19: 30 | K19: 150 | L19: 1
A20: 33129101623 | B20: 2 | C20: 8 | D20: 1 | E20: 1/13/12 9:26 AM | F20: 1/13/12 9:28 AM | G20: 0 | H20: 2 | I20: 35 | K20: 155 | L20: 1
A21: 33129307311 | B21: 2 | C21: 8 | D21: 1 | E21: 1/13/12 9:31 AM | F21: 1/13/12 9:32 AM | G21: 0 | H21: 1 | I21: 44 | K21: 104 | L21: 1
A22: 33129403334 | B22: 2 | C22: 8 | D22: 1 | E22: 1/13/12 9:34 AM | F22: 1/13/12 9:36 AM | G22: 0 | H22: 1 | I22: 25 | K22: 85 | L22: 1
A23: 33126800094 | B23: 2 | C23: 8 | D23: 1 | E23: 1/13/12 9:51 AM | F23: 1/13/12 9:58 AM | G23: 0 | H23: 6 | I23: 47 | K23: 407 | L23: 1
A24: 33129307543 | B24: 2 | C24: 8 | D24: 1 | E24: 1/13/12 11:16 AM | F24: 1/13/12 11:17 AM | G24: 0 | H24: 1 | I24: 18 | K24: 78 | L24: 1
A25: 33129309887 | B25: 2 | C25: 8 | D25: 1 | E25: 1/18/12 9:53 AM | F25: 1/18/12 9:55 AM | G25: 0 | H25: 1 | I25: 37 | K25: 97 | L25: 1
A26: 33129310034 | B26: 2 | C26: 8 | D26: 1 | E26: 1/18/12 11:30 AM | F26: 1/18/12 11:31 AM | G26: 0 | H26: 1 | I26: 15 | K26: 75 | L26: 1
A27: 33129501731 | B27: 2 | C27: 8 | D27: 1 | E27: 1/13/12 11:34 AM | F27: 1/13/12 11:36 AM | G27: 0 | H27: 1 | I27: 50 | K27: 110 | L27: 1
A28: 33128700540 | B28: 2 | C28: 8 | D28: 1 | E28: 1/13/12 11:37 AM | F28: 1/13/12 11:38 AM | G28: 0 | H28: 1 | I28: 18 | K28: 78 | L28: 1
A29: 33129307626 | B29: 2 | C29: 8 | D29: 1 | E29: 1/13/12 11:37 AM | F29: 1/13/12 11:39 AM | G29: 0 | H29: 1 | I29: 34 | K29: 94 | L29: 1
A30: 33129403466 | B30: 2 | C30: 8 | D30: 1 | E30: 1/13/12 11:42 AM | F30: 1/13/12 11:45 AM | G30: 0 | H30: 2 | I30: 54 | K30: 174 | L30: 1
A31: 33129307659 | B31: 2 | C31: 8 | D31: 1 | E31: 1/13/12 11:46 AM | F31: 1/13/12 11:48 AM | G31: 0 | H31: 1 | I31: 52 | K31: 112 | L31: 1
A32: 33129501756 | B32: 2 | C32: 8 | D32: 1 | E32: 1/13/12 11:47 AM | F32: 1/13/12 11:50 AM | G32: 0 | H32: 2 | I32: 21 | K32: 141 | L32: 1
A33: 33129203551 | B33: 2 | C33: 8 | D33: 1 | E33: 1/13/12 11:50 AM | F33: 1/13/12 11:52 AM | G33: 0 | H33: 1 | I33: 41 | K33: 101 | L33: 1
A34: 33129307675 | B34: 2 | C34: 8 | D34: 1 | E34: 1/13/12 11:51 AM | F34: 1/13/12 11:53 AM | G34: 0 | H34: 1 | I34: 55 | K34: 115 | L34: 1
A35: 33129600269 | B35: 2 | C35: 8 | D35: 1 | E35: 1/13/12 1:10 PM | F35: 1/13/12 1:12 PM | G35: 0 | H35: 2 | I35: 7 | K35: 127 | L35: 1
A36: 33129600319 | B36: 2 | C36: 8 | D36: 1 | E36: 1/18/12 11:22 AM | F36: 1/18/12 11:23 AM | G36: 0 | H36: 1 | I36: 16 | K36: 76 | L36: 1
A37: 33128800670 | B37: 2 | C37: 8 | D37: 1 | E37: 1/13/12 1:20 PM | F37: 1/13/12 1:22 PM | G37: 0 | H37: 2 | I37: 8 | K37: 128 | L37: 1
A38: 33129501806 | B38: 2 | C38: 8 | D38: 1 | E38: 1/13/12 1:24 PM | F38: 1/13/12 1:26 PM | G38: 0 | H38: 2 | I38: 18 | K38: 138 | L38: 1
A39: 33129501822 | B39: 2 | C39: 8 | D39: 1 | E39: 1/13/12 1:51 PM | F39: 1/13/12 1:53 PM | G39: 0 | H39: 1 | I39: 27 | K39: 87 | L39: 1
A40: 33129403623 | B40: 2 | C40: 8 | D40: 1 | E40: 1/13/12 1:51 PM | F40: 1/13/12 1:54 PM | G40: 0 | H40: 2 | I40: 53 | K40: 173 | L40: 1
A41: 33129203650 | B41: 2 | C41: 8 | D41: 1 | E41: 1/13/12 1:54 PM | F41: 1/13/12 1:55 PM | G41: 0 | H41: 1 | I41: 41 | K41: 101 | L41: 1
A42: 33129203668 | B42: 2 | C42: 8 | D42: 1 | E42: 1/13/12 2:00 PM | F42: 1/13/12 2:01 PM | G42: 0 | H42: 1 | I42: 19 | K42: 79 | L42: 1
A43: 33129204880 | B43: 2 | C43: 8 | D43: 1 | E43: 1/18/12 11:25 AM | F43: 1/18/12 11:26 AM | G43: 0 | H43: 1 | I43: 36 | K43: 96 | L43: 1
A44: 33128901437 | B44: 2 | C44: 8 | D44: 1 | E44: 1/18/12 12:15 PM | F44: 1/18/12 12:17 PM | G44: 0 | H44: 2 | I44: 25 | K44: 145 | L44: 1
A45: 33123000011 | B45: 2 | C45: 8 | D45: 1 | E45: 1/18/12 1:02 PM | F45: 1/18/12 1:13 PM | G45: 0 | H45: 11 | I45: 2 | K45: 662 | L45: 1
A46: 33129502309 | B46: 2 | C46: 8 | D46: 1 | E46: 1/18/12 1:14 PM | F46: 1/18/12 1:15 PM | G46: 0 | H46: 1 | I46: 39 | K46: 99 | L46: 1
A47: 33129308087 | B47: 2 | C47: 8 | D47: 1 | E47: 1/16/12 10:11 AM | F47: 1/16/12 10:13 AM | G47: 0 | H47: 2 | I47: 2 | K47: 122 | L47: 1
A48: 33128400356 | B48: 2 | C48: 8 | D48: 1 | E48: 1/16/12 10:14 AM | F48: 1/16/12 10:17 AM | G48: 0 | H48: 3 | I48: 7 | K48: 187 | L48: 1
A49: 33129501863 | B49: 2 | C49: 8 | D49: 1 | E49: 1/16/12 10:16 AM | F49: 1/16/12 10:18 AM | G49: 0 | H49: 1 | I49: 53 | K49: 113 | L49: 1
A50: 33129203833 | B50: 2 | C50: 8 | D50: 1 | E50: 1/16/12 10:19 AM | F50: 1/16/12 10:21 AM | G50: 0 | H50: 1 | I50: 51 | K50: 111 | L50: 1
A51: 33129001427 | B51: 2 | C51: 8 | D51: 1 | E51: 1/16/12 10:22 AM | F51: 1/16/12 10:25 AM | G51: 0 | H51: 3 | I51: 8 | K51: 188 | L51: 1
A52: 33129600285 | B52: 2 | C52: 8 | D52: 1 | E52: 1/16/12 11:47 AM | F52: 1/16/12 11:49 AM | G52: 0 | H52: 2 | I52: 6 | K52: 126 | L52: 1
A53: 33129308178 | B53: 2 | C53: 8 | D53: 1 | E53: 1/16/12 11:48 AM | F53: 1/16/12 11:50 AM | G53: 0 | H53: 1 | I53: 33 | K53: 93 | L53: 1
A54: 33129310208 | B54: 2 | C54: 8 | D54: 1 | E54: 1/18/12 2:06 PM | F54: 1/18/12 2:09 PM | G54: 0 | H54: 3 | I54: 17 | K54: 197 | L54: 1
A55: 33129404845 | B55: 2 | C55: 8 | D55: 1 | E55: 1/18/12 2:10 PM | F55: 1/18/12 2:11 PM | G55: 0 | H55: 1 | I55: 39 | K55: 99 | L55: 1
A56: 33129404852 | B56: 2 | C56: 8 | D56: 1 | E56: 1/18/12 2:12 PM | F56: 1/18/12 2:15 PM | G56: 0 | H56: 2 | I56: 46 | K56: 166 | L56: 1
A57: 33129310216 | B57: 2 | C57: 8 | D57: 1 | E57: 1/18/12 2:15 PM | F57: 1/18/12 2:16 PM | G57: 0 | H57: 1 | I57: 5 | K57: 65 | L57: 1
A58: 33129310232 | B58: 2 | C58: 8 | D58: 1 | E58: 1/18/12 2:16 PM | F58: 1/18/12 2:19 PM | G58: 0 | H58: 2 | I58: 17 | K58: 137 | L58: 1
A59: 33129203916 | B59: 2 | C59: 8 | D59: 1 | E59: 1/16/12 11:55 AM | F59: 1/16/12 11:57 AM | G59: 0 | H59: 1 | I59: 23 | K59: 83 | L59: 1
A60: 33129403912 | B60: 2 | C60: 8 | D60: 1 | E60: 1/16/12 11:58 AM | F60: 1/16/12 12:00 PM | G60: 0 | H60: 2 | I60: 34 | K60: 154 | L60: 1
A61: 33128901098 | B61: 2 | C61: 8 | D61: 1 | E61: 1/16/12 11:58 AM | F61: 1/16/12 12:02 PM | G61: 0 | H61: 3 | I61: 46 | K61: 226 | L61: 1
A62: 33129403938 | B62: 2 | C62: 8 | D62: 1 | E62: 1/16/12 12:01 PM | F62: 1/16/12 12:05 PM | G62: 0 | H62: 3 | I62: 46 | K62: 226 | L62: 1
A63: 33129203932 | B63: 2 | C63: 8 | D63: 1 | E63: 1/16/12 12:07 PM | F63: 1/16/12 12:09 PM | G63: 0 | H63: 2 | I63: 25 | K63: 145 | L63: 1
A64: 33129403953 | B64: 2 | C64: 8 | D64: 1 | E64: 1/16/12 12:07 PM | F64: 1/16/12 12:09 PM | G64: 0 | H64: 2 | I64: 35 | K64: 155 | L64: 1
A65: 33129403979 | B65: 2 | C65: 8 | D65: 1 | E65: 1/16/12 12:12 PM | F65: 1/16/12 12:13 PM | G65: 0 | H65: 1 | I65: 22 | K65: 82 | L65: 1
A66: 33129403987 | B66: 2 | C66: 8 | D66: 1 | E66: 1/16/12 12:12 PM | F66: 1/16/12 12:14 PM | G66: 0 | H66: 1 | I66: 38 | K66: 98 | L66: 1
A67: 33129403995 | B67: 2 | C67: 8 | D67: 1 | E67: 1/16/12 12:14 PM | F67: 1/16/12 12:17 PM | G67: 0 | H67: 2 | I67: 34 | K67: 154 | L67: 1
A68: 33129203973 | B68: 2 | C68: 8 | D68: 1 | E68: 1/16/12 12:24 PM | F68: 1/16/12 12:26 PM | G68: 0 | H68: 2 | I68: 3 | K68: 123 | L68: 1
A69: 33129310182 | B69: 2 | C69: 8 | D69: 1 | E69: 1/18/12 1:58 PM | F69: 1/18/12 2:00 PM | G69: 0 | H69: 1 | I69: 37 | K69: =G69*60*60+H69*60+I69 -> 97 | L69: =INT(LEFT(E69,FIND("/",E69) -1)) -> 1
A70: 33128400463 | B70: 2 | C70: 8 | D70: 1 | E70: 1/18/12 1:59 PM | F70: 1/18/12 2:02 PM | G70: 0 | H70: 2 | I70: 30 | K70: 150 | L70: 1
A71: 33128500551 | B71: 2 | C71: 8 | D71: 1 | E71: 1/18/12 2:03 PM | F71: 1/18/12 2:04 PM | G71: 0 | H71: 1 | I71: 22 | K71: 82 | L71: 1
A72: 33126800128 | B72: 2 | C72: 8 | D72: 1 | E72: 1/18/12 3:33 PM | F72: 1/18/12 3:38 PM | G72: 0 | H72: 4 | I72: 40 | K72: 280 | L72: 1
A73: 33129404100 | B73: 2 | C73: 8 | D73: 1 | E73: 1/16/12 1:29 PM | F73: 1/16/12 1:36 PM | G73: 0 | H73: 6 | I73: 22 | K73: 382 | L73: 1
A74: 33129204138 | B74: 2 | C74: 8 | D74: 1 | E74: 1/16/12 1:45 PM | F74: 1/16/12 1:48 PM | G74: 0 | H74: 2 | I74: 38 | K74: 158 | L74: 1
A75: 33128800795 | B75: 2 | C75: 8 | D75: 1 | E75: 1/16/12 1:57 PM | F75: 1/16/12 1:59 PM | G75: 0 | H75: 1 | I75: 56 | K75: 116 | L75: 1
A76: 33129204187 | B76: 2 | C76: 8 | D76: 1 | E76: 1/16/12 2:07 PM | F76: 1/16/12 2:09 PM | G76: 0 | H76: 1 | I76: 9 | K76: 69 | L76: 1
A77: 33119278340 | B77: 2 | C77: 8 | D77: 1 | E77: 1/16/12 3:48 PM | F77: 1/16/12 3:56 PM | G77: 0 | H77: 8 | I77: 35 | K77: 515 | L77: 1
A78: 33119387927 | B78: 2 | C78: 8 | D78: 1 | E78: 1/19/12 9:38 AM | F78: 1/19/12 9:40 AM | G78: 0 | H78: 2 | I78: 13 | K78: 133 | L78: 1
A79: 33128800928 | B79: 2 | C79: 8 | D79: 1 | E79: 1/17/12 11:32 AM | F79: 1/17/12 11:33 AM | G79: 0 | H79: 1 | I79: 16 | K79: 76 | L79: 1
A80: 33129102142 | B80: 2 | C80: 8 | D80: 1 | E80: 1/17/12 10:08 AM | F80: 1/17/12 10:09 AM | G80: 0 | H80: 1 | I80: 14 | K80: 74 | L80: 1
A81: 33129001641 | B81: 2 | C81: 8 | D81: 1 | E81: 1/17/12 10:14 AM | F81: 1/17/12 10:16 AM | G81: 0 | H81: 1 | I81: 22 | K81: 82 | L81: 1
A82: 33129309242 | B82: 2 | C82: 8 | D82: 1 | E82: 1/17/12 10:14 AM | F82: 1/17/12 10:16 AM | G82: 0 | H82: 1 | I82: 47 | K82: 107 | L82: 1
A83: 33129309259 | B83: 2 | C83: 8 | D83: 1 | E83: 1/17/12 9:25 AM | F83: 1/17/12 10:18 AM | G83: 0 | H83: 53 | I83: 11 | K83: 3191 | L83: 1
A84: 33128800878 | B84: 2 | C84: 8 | D84: 1 | E84: 1/17/12 10:21 AM | F84: 1/17/12 10:26 AM | G84: 0 | H84: 5 | I84: 12 | K84: 312 | L84: 1
A85: 33129001716 | B85: 2 | C85: 8 | D85: 1 | E85: 1/17/12 11:25 AM | F85: 1/17/12 11:26 AM | G85: 0 | H85: 0 | I85: 58 | K85: 58 | L85: 1
A86: 33128901304 | B86: 2 | C86: 8 | D86: 1 | E86: 1/17/12 11:26 AM | F86: 1/17/12 11:27 AM | G86: 0 | H86: 1 | I86: 0 | K86: 60 | L86: 1
A87: 33127000082 | B87: 2 | C87: 8 | D87: 1 | E87: 1/17/12 11:28 AM | F87: 1/17/12 11:30 AM | G87: 0 | H87: 1 | I87: 6 | K87: 66 | L87: 1
A88: 33128700714 | B88: 2 | C88: 8 | D88: 1 | E88: 1/17/12 11:30 AM | F88: 1/17/12 11:31 AM | G88: 0 | H88: 1 | I88: 25 | K88: 85 | L88: 1
A89: 33129205200 | B89: 2 | C89: 8 | D89: 1 | E89: 1/19/12 9:23 AM | F89: 1/19/12 9:25 AM | G89: 0 | H89: 2 | I89: 7 | K89: 127 | L89: 1
A90: 33129404977 | B90: 2 | C90: 8 | D90: 1 | E90: 1/19/12 9:27 AM | F90: 1/19/12 9:29 AM | G90: 0 | H90: 1 | I90: 51 | K90: 111 | L90: 1
A91: 33128901312 | B91: 2 | C91: 8 | D91: 1 | E91: 1/17/12 11:34 AM | F91: 1/17/12 11:36 AM | G91: 0 | H91: 1 | I91: 59 | K91: 119 | L91: 1
A92: 33126900092 | B92: 2 | C92: 8 | D92: 1 | E92: 1/17/12 11:38 AM | F92: 1/17/12 11:40 AM | G92: 0 | H92: 1 | I92: 33 | K92: 93 | L92: 1
A93: 33129102183 | B93: 2 | C93: 8 | D93: 1 | E93: 1/17/12 11:38 AM | F93: 1/17/12 11:40 AM | G93: 0 | H93: 1 | I93: 47 | K93: 107 | L93: 1
A94: 33129204393 | B94: 2 | C94: 8 | D94: 1 | E94: 1/17/12 11:40 AM | F94: 1/17/12 11:41 AM | G94: 0 | H94: 1 | I94: 5 | K94: 65 | L94: 1
A95: 33129001724 | B95: 2 | C95: 8 | D95: 1 | E95: 1/17/12 11:42 AM | F95: 1/17/12 11:43 AM | G95: 0 | H95: 0 | I95: 59 | K95: 59 | L95: 1
A96: 33129204401 | B96: 2 | C96: 8 | D96: 1 | E96: 1/17/12 11:41 AM | F96: 1/17/12 11:44 AM | G96: 0 | H96: 2 | I96: 46 | K96: 166 | L96: 1
A97: 33128400406 | B97: 2 | C97: 8 | D97: 1 | E97: 1/17/12 11:45 AM | F97: 1/17/12 11:47 AM | G97: 0 | H97: 1 | I97: 4 | K97: 64 | L97: 1
A98: 33129102217 | B98: 2 | C98: 8 | D98: 1 | E98: 1/17/12 11:45 AM | F98: 1/17/12 11:47 AM | G98: 0 | H98: 1 | I98: 58 | K98: 118 | L98: 1
A99: 33128700722 | B99: 2 | C99: 8 | D99: 1 | E99: 1/17/12 11:47 AM | F99: 1/17/12 11:48 AM | G99: 0 | H99: 1 | I99: 23 | K99: 83 | L99: 1
A100: 33129102233 | B100: 2 | C100: 8 | D100: 1 | E100: 1/17/12 11:49 AM | F100: 1/17/12 11:49 AM | G100: 0 | H100: 0 | I100: 46 | K100: 46 | L100: 1
A101: 33128901320 | B101: 2 | C101: 8 | D101: 1 | E101: 1/17/12 11:50 AM | F101: 1/17/12 11:51 AM | G101: 0 | H101: 1 | I101: 16 | K101: 76 | L101: 1
A102: 33128100204 | B102: 2 | C102: 8 | D102: 1 | E102: 1/17/12 11:52 AM | F102: 1/17/12 11:53 AM | G102: 0 | H102: 0 | I102: 57 | K102: 57 | L102: 1
A103: 33129001732 | B103: 2 | C103: 8 | D103: 1 | E103: 1/17/12 11:53 AM | F103: 1/17/12 11:54 AM | G103: 0 | H103: 1 | I103: 1 | K103: 61 | L103: 1
A104: 33129204419 | B104: 2 | C104: 8 | D104: 1 | E104: 1/17/12 11:48 AM | F104: 1/17/12 11:54 AM | G104: 0 | H104: 6 | I104: 46 | K104: 406 | L104: 1
A105: 33128600526 | B105: 2 | C105: 8 | D105: 1 | E105: 1/17/12 11:55 AM | F105: 1/17/12 11:56 AM | G105: 0 | H105: 1 | I105: 29 | K105: 89 | L105: 1
A106: 33129102258 | B106: 2 | C106: 8 | D106: 1 | E106: 1/17/12 11:55 AM | F106: 1/17/12 11:57 AM | G106: 0 | H106: 2 | I106: 47 | K106: 167 | L106: 1
A107: 33128700730 | B107: 2 | C107: 8 | D107: 1 | E107: 1/17/12 11:57 AM | F107: 1/17/12 11:58 AM | G107: 0 | H107: 1 | I107: 48 | K107: 108 | L107: 1
A108: 33128600534 | B108: 2 | C108: 8 | D108: 1 | E108: 1/17/12 11:59 AM | F108: 1/17/12 12:00 PM | G108: 0 | H108: 1 | I108: 2 | K108: 62 | L108: 1
A109: 33129001765 | B109: 2 | C109: 8 | D109: 1 | E109: 1/17/12 12:02 PM | F109: 1/17/12 12:04 PM | G109: 0 | H109: 2 | I109: 38 | K109: 158 | L109: 1
A110: 33129001773 | B110: 2 | C110: 8 | D110: 1 | E110: 1/17/12 12:09 PM | F110: 1/17/12 12:11 PM | G110: 0 | H110: 1 | I110: 59 | K110: 119 | L110: 1
A111: 33129102266 | B111: 2 | C111: 8 | D111: 1 | E111: 1/17/12 12:06 PM | F111: 1/17/12 12:12 PM | G111: 0 | H111: 6 | I111: 18 | K111: 378 | L111: 1
A112: 33129309549 | B112: 2 | C112: 8 | D112: 1 | E112: 1/17/12 1:16 PM | F112: 1/17/12 1:18 PM | G112: 0 | H112: 1 | I112: 39 | K112: 99 | L112: 1
A113: 33127800184 | B113: 2 | C113: 8 | D113: 1 | E113: 1/17/12 1:19 PM | F113: 1/17/12 1:21 PM | G113: 0 | H113: 1 | I113: 53 | K113: 113 | L113: 1
A114: 33129309556 | B114: 2 | C114: 8 | D114: 1 | E114: 1/17/12 1:22 PM | F114: 1/17/12 1:23 PM | G114: 0 | H114: 1 | I114: 29 | K114: 89 | L114: 1
A115: 33129405032 | B115: 2 | C115: 8 | D115: 1 | E115: 1/19/12 10:11 AM | F115: 1/19/12 10:16 AM | G115: 0 | H115: 5 | I115: 0 | K115: 300 | L115: 1
A116: 33129205325 | B116: 2 | C116: 8 | D116: 1 | E116: 1/19/12 11:21 AM | F116: 1/19/12 11:23 AM | G116: 0 | H116: 1 | I116: 49 | K116: 109 | L116: 1
A117: 33129102738 | B117: 2 | C117: 8 | D117: 1 | E117: 1/19/12 12:02 PM | F117: 1/19/12 12:03 PM | G117: 0 | H117: 1 | I117: 29 | K117: 89 | L117: 1
A118: 33129102357 | B118: 2 | C118: 8 | D118: 1 | E118: 1/17/12 1:36 PM | F118: 1/17/12 1:38 PM | G118: 0 | H118: 2 | I118: 15 | K118: 135 | L118: 1
A119: 33129205309 | B119: 2 | C119: 8 | D119: 1 | E119: 1/19/12 11:13 AM | F119: 1/19/12 11:16 AM | G119: 0 | H119: 2 | I119: 16 | K119: 136 | L119: 1
A120: 33129205317 | B120: 2 | C120: 8 | D120: 1 | E120: 1/19/12 11:17 AM | F120: 1/19/12 11:18 AM | G120: 0 | H120: 1 | I120: 16 | K120: 76 | L120: 1
A121: 33126800144 | B121: 2 | C121: 8 | D121: 1 | E121: 1/19/12 11:17 AM | F121: 1/19/12 11:19 AM | G121: 0 | H121: 2 | I121: 29 | K121: 149 | L121: 1
A122: 35078910086 | B122: 2 | C122: 8 | D122: 1 | E122: 1/19/12 12:06 PM | F122: 1/19/12 12:08 PM | G122: 0 | H122: 2 | I122: 26 | K122: 146 | L122: 1
A123: 33129310703 | B123: 2 | C123: 8 | D123: 1 | E123: 1/19/12 12:08 PM | F123: 1/19/12 12:10 PM | G123: 0 | H123: 2 | I123: 15 | K123: 135 | L123: 1
A124: 33129204799 | B124: 2 | C124: 8 | D124: 1 | E124: 1/18/12 9:45 AM | F124: 1/18/12 9:46 AM | G124: 0 | H124: 1 | I124: 39 | K124: 99 | L124: 1
A125: 33129405149 | B125: 2 | C125: 8 | D125: 1 | E125: 1/19/12 11:00 AM | F125: 1/19/12 11:04 AM | G125: 0 | H125: 4 | I125: 24 | K125: 264 | L125: 1
A126: 33129310604 | B126: 2 | C126: 8 | D126: 1 | E126: 1/19/12 11:07 AM | F126: 1/19/12 11:09 AM | G126: 0 | H126: 1 | I126: 39 | K126: 99 | L126: 1
A127: 33129205333 | B127: 2 | C127: 8 | D127: 1 | E127: 1/19/12 11:56 AM | F127: 1/19/12 11:58 AM | G127: 0 | H127: 1 | I127: 51 | K127: 111 | L127: 1
A128: 33129310802 | B128: 2 | C128: 8 | D128: 1 | E128: 1/19/12 12:33 PM | F128: 1/19/12 12:36 PM | G128: 0 | H128: 2 | I128: 52 | K128: 172 | L128: 1
A129: 33127800234 | B129: 2 | C129: 8 | D129: 1 | E129: 1/19/12 12:39 PM | F129: 1/19/12 12:41 PM | G129: 0 | H129: 2 | I129: 8 | K129: 128 | L129: 1
A130: 33129204757 | B130: 2 | C130: 8 | D130: 1 | E130: 1/18/12 9:25 AM | F130: 1/18/12 9:28 AM | G130: 0 | H130: 2 | I130: 14 | K130: 134 | L130: 1
A131: 33129102456 | B131: 2 | C131: 8 | D131: 1 | E131: 1/18/12 9:41 AM | F131: 1/18/12 9:43 AM | G131: 0 | H131: 2 | I131: 30 | K131: 150 | L131: 1
A132: 33129404621 | B132: 2 | C132: 8 | D132: 1 | E132: 1/18/12 10:24 AM | F132: 1/18/12 10:25 AM | G132: 0 | H132: 1 | I132: 42 | K132: 102 | L132: 1
A133: 33129204831 | B133: 2 | C133: 8 | D133: 1 | E133: 1/18/12 10:23 AM | F133: 1/18/12 10:25 AM | G133: 0 | H133: 2 | I133: 1 | K133: =G133*60*60+H133*60+I133 -> 121 | L133: =INT(LEFT(E133,FIND("/",E133) -1)) -> 1
A134: 33129204849 | B134: 2 | C134: 8 | D134: 1 | E134: 1/18/12 10:27 AM | F134: 1/18/12 10:28 AM | G134: 0 | H134: 1 | I134: 29 | K134: 89 | L134: 1
A135: 33129204856 | B135: 2 | C135: 8 | D135: 1 | E135: 1/18/12 10:28 AM | F135: 1/18/12 10:29 AM | G135: 0 | H135: 1 | I135: 35 | K135: 95 | L135: 1
A136: 33129204955 | B136: 2 | C136: 8 | D136: 1 | E136: 1/18/12 11:57 AM | F136: 1/18/12 11:58 AM | G136: 0 | H136: 1 | I136: 37 | K136: 97 | L136: 1
A137: 33129404506 | B137: 2 | C137: 8 | D137: 1 | E137: 1/17/12 2:39 PM | F137: 1/17/12 2:42 PM | G137: 0 | H137: 2 | I137: 47 | K137: 167 | L137: 1
A138: 33129309663 | B138: 2 | C138: 8 | D138: 1 | E138: 1/17/12 2:44 PM | F138: 1/17/12 2:47 PM | G138: 0 | H138: 3 | I138: 6 | K138: 186 | L138: 1
A139: 33129502226 | B139: 2 | C139: 8 | D139: 1 | E139: 1/17/12 2:45 PM | F139: 1/17/12 2:47 PM | G139: 0 | H139: 1 | I139: 45 | K139: 105 | L139: 1
A140: 33128500494 | B140: 2 | C140: 8 | D140: 1 | E140: 1/17/12 2:49 PM | F140: 1/17/12 2:51 PM | G140: 0 | H140: 2 | I140: 18 | K140: 138 | L140: 1
A141: 33129204674 | B141: 2 | C141: 8 | D141: 1 | E141: 1/17/12 3:05 PM | F141: 1/17/12 3:07 PM | G141: 0 | H141: 2 | I141: 11 | K141: 131 | L141: 1
A142: 33128400422 | B142: 2 | C142: 8 | D142: 1 | E142: 1/17/12 3:10 PM | F142: 1/17/12 3:17 PM | G142: 0 | H142: 6 | I142: 41 | K142: 401 | L142: 1
A143: 33128800969 | B143: 2 | C143: 8 | D143: 1 | E143: 1/17/12 3:17 PM | F143: 1/17/12 3:21 PM | G143: 0 | H143: 3 | I143: 44 | K143: 224 | L143: 1
A144: 33127900075 | B144: 2 | C144: 8 | D144: 1 | E144: 1/12/12 1:18 PM | F144: 1/12/12 1:20 PM | G144: 0 | H144: 1 | I144: 36 | K144: 96 | L144: 1
A145: 33129501517 | B145: 2 | C145: 8 | D145: 1 | E145: 1/12/12 1:22 PM | F145: 1/12/12 1:24 PM | G145: 0 | H145: 1 | I145: 39 | K145: 99 | L145: 1
A146: 33127800143 | B146: 2 | C146: 8 | D146: 1 | E146: 1/12/12 1:55 PM | F146: 1/12/12 1:57 PM | G146: 0 | H146: 1 | I146: 43 | K146: 103 | L146: 1
A147: 33128400281 | B147: 2 | C147: 8 | D147: 1 | E147: 1/12/12 1:55 PM | F147: 1/12/12 1:57 PM | G147: 0 | H147: 2 | I147: 17 | K147: 137 | L147: 1
A148: 33129001179 | B148: 2 | C148: 8 | D148: 1 | E148: 1/12/12 1:57 PM | F148: 1/12/12 2:01 PM | G148: 0 | H148: 4 | I148: 0 | K148: 240 | L148: 1
A149: 33129202843 | B149: 2 | C149: 8 | D149: 1 | E149: 1/12/12 9:21 AM | F149: 1/12/12 9:22 AM | G149: 0 | H149: 1 | I149: 59 | K149: 119 | L149: 1
A150: 33128400455 | B150: 2 | C150: 8 | D150: 1 | E150: 1/18/12 1:28 PM | F150: 1/18/12 1:32 PM | G150: 0 | H150: 4 | I150: 2 | K150: 242 | L150: 1
A151: 33129001906 | B151: 2 | C151: 8 | D151: 1 | E151: 1/18/12 1:36 PM | F151: 1/18/12 1:37 PM | G151: 0 | H151: 1 | I151: 23 | K151: 83 | L151: 1
A152: 33119371236 | B152: 2 | C152: 8 | D152: 1 | E152: 1/18/12 1:42 PM | F152: 1/18/12 1:45 PM | G152: 0 | H152: 2 | I152: 14 | K152: 134 | L152: 1
A153: 33129001955 | B153: 2 | C153: 8 | D153: 1 | E153: 1/19/12 10:06 AM | F153: 1/19/12 10:09 AM | G153: 0 | H153: 3 | I153: 11 | K153: 191 | L153: 1
A154: 33129310463 | B154: 2 | C154: 8 | D154: 1 | E154: 1/19/12 10:09 AM | F154: 1/19/12 10:10 AM | G154: 0 | H154: 1 | I154: 25 | K154: 85 | L154: 1
A155: 33128700821 | B155: 2 | C155: 8 | D155: 1 | E155: 1/19/12 10:54 AM | F155: 1/19/12 10:56 AM | G155: 0 | H155: 2 | I155: 24 | K155: 144 | L155: 1
A156: 33128901502 | B156: 2 | C156: 8 | D156: 1 | E156: 1/19/12 10:58 AM | F156: 1/19/12 10:59 AM | G156: 0 | H156: 1 | I156: 25 | K156: 85 | L156: 1
A157: 33128800571 | B157: 2 | C157: 8 | D157: 1 | E157: 1/12/12 10:27 AM | F157: 1/12/12 10:28 AM | G157: 0 | H157: 1 | I157: 21 | K157: 81 | L157: 1
A158: 33129306396 | B158: 2 | C158: 8 | D158: 1 | E158: 1/12/12 10:28 AM | F158: 1/12/12 10:30 AM | G158: 0 | H158: 2 | I158: 31 | K158: 151 | L158: 1
A159: 33129101532 | B159: 2 | C159: 8 | D159: 1 | E159: 1/12/12 1:46 PM | F159: 1/12/12 1:47 PM | G159: 0 | H159: 1 | I159: 26 | K159: 86 | L159: 1
A160: 33128700177 | B160: 2 | C160: 8 | D160: 1 | E160: 1/5/12 1:52 PM | F160: 1/5/12 1:54 PM | G160: 0 | H160: 1 | I160: 55 | K160: 115 | L160: 1
A161: 33129500410 | B161: 2 | C161: 8 | D161: 1 | E161: 1/5/12 1:53 PM | F161: 1/5/12 1:54 PM | G161: 0 | H161: 1 | I161: 27 | K161: 87 | L161: 1
A162: 33129500428 | B162: 2 | C162: 8 | D162: 1 | E162: 1/5/12 1:55 PM | F162: 1/5/12 1:56 PM | G162: 0 | H162: 1 | I162: 7 | K162: 67 | L162: 1
A163: 33129401122 | B163: 2 | C163: 8 | D163: 1 | E163: 1/5/12 1:54 PM | F163: 1/5/12 1:57 PM | G163: 0 | H163: 2 | I163: 33 | K163: 153 | L163: 1
A164: 33129302254 | B164: 2 | C164: 8 | D164: 1 | E164: 1/5/12 1:59 PM | F164: 1/5/12 2:00 PM | G164: 0 | H164: 0 | I164: 50 | K164: 50 | L164: 1
A165: 33129302262 | B165: 2 | C165: 8 | D165: 1 | E165: 1/5/12 1:58 PM | F165: 1/5/12 2:00 PM | G165: 0 | H165: 1 | I165: 48 | K165: 108 | L165: 1
A166: 33129302288 | B166: 2 | C166: 8 | D166: 1 | E166: 1/5/12 2:00 PM | F166: 1/5/12 2:01 PM | G166: 0 | H166: 1 | I166: 28 | K166: 88 | L166: 1
A167: 33128100048 | B167: 2 | C167: 8 | D167: 1 | E167: 1/5/12 2:02 PM | F167: 1/5/12 2:03 PM | G167: 0 | H167: 1 | I167: 21 | K167: 81 | L167: 1
A168: 33129302304 | B168: 2 | C168: 8 | D168: 1 | E168: 1/5/12 2:04 PM | F168: 1/5/12 2:05 PM | G168: 0 | H168: 1 | I168: 2 | K168: 62 | L168: 1
A169: 33129401148 | B169: 2 | C169: 8 | D169: 1 | E169: 1/5/12 2:05 PM | F169: 1/5/12 2:06 PM | G169: 0 | H169: 1 | I169: 9 | K169: 69 | L169: 1
A170: 33129200839 | B170: 2 | C170: 8 | D170: 1 | E170: 1/5/12 2:07 PM | F170: 1/5/12 2:08 PM | G170: 0 | H170: 1 | I170: 40 | K170: 100 | L170: 1
A171: 33129302320 | B171: 2 | C171: 8 | D171: 1 | E171: 1/5/12 2:10 PM | F171: 1/5/12 2:12 PM | G171: 0 | H171: 1 | I171: 53 | K171: 113 | L171: 1
A172: 33129100435 | B172: 2 | C172: 8 | D172: 1 | E172: 1/5/12 2:14 PM | F172: 1/5/12 2:15 PM | G172: 0 | H172: 1 | I172: 28 | K172: 88 | L172: 1
A173: 33129401155 | B173: 2 | C173: 8 | D173: 1 | E173: 1/5/12 2:26 PM | F173: 1/5/12 2:28 PM | G173: 0 | H173: 1 | I173: 39 | K173: 99 | L173: 1
A174: 33129200862 | B174: 2 | C174: 8 | D174: 1 | E174: 1/5/12 2:29 PM | F174: 1/5/12 2:31 PM | G174: 0 | H174: 2 | I174: 25 | K174: 145 | L174: 1
A175: 33129401304 | B175: 2 | C175: 8 | D175: 1 | E175: 1/6/12 9:40 AM | F175: 1/6/12 9:42 AM | G175: 0 | H175: 1 | I175: 51 | K175: 111 | L175: 1
A176: 33129302635 | B176: 2 | C176: 8 | D176: 1 | E176: 1/6/12 9:42 AM | F176: 1/6/12 9:45 AM | G176: 0 | H176: 2 | I176: 9 | K176: 129 | L176: 1
A177: 33099120645 | B177: 2 | C177: 8 | D177: 1 | E177: 1/18/12 2:19 PM | F177: 1/18/12 2:21 PM | G177: 0 | H177: 1 | I177: 21 | K177: 81 | L177: 1
A178: 33129502333 | B178: 2 | C178: 8 | D178: 1 | E178: 1/18/12 2:48 PM | F178: 1/18/12 2:50 PM | G178: 0 | H178: 2 | I178: 11 | K178: 131 | L178: 1
A179: 33129001930 | B179: 2 | C179: 8 | D179: 1 | E179: 1/19/12 9:07 AM | F179: 1/19/12 9:10 AM | G179: 0 | H179: 2 | I179: 41 | K179: 161 | L179: 1
A180: 33129404969 | B180: 2 | C180: 8 | D180: 1 | E180: 1/19/12 9:12 AM | F180: 1/19/12 9:14 AM | G180: 0 | H180: 1 | I180: 45 | K180: 105 | L180: 1
A181: 33120300034 | B181: 2 | C181: 8 | D181: 1 | E181: 1/19/12 10:45 AM | F181: 1/19/12 10:47 AM | G181: 0 | H181: 1 | I181: 53 | K181: 113 | L181: 1
A182: 33099009384 | B182: 2 | C182: 8 | D182: 1 | E182: 1/12/12 1:32 PM | F182: 1/12/12 1:42 PM | G182: 0 | H182: 9 | I182: 45 | K182: 585 | L182: 1
A183: 33129403235 | B183: 2 | C183: 8 | D183: 1 | E183: 1/12/12 2:10 PM | F183: 1/12/12 2:12 PM | G183: 0 | H183: 2 | I183: 4 | K183: 124 | L183: 1
A184: 33128400299 | B184: 2 | C184: 8 | D184: 1 | E184: 1/12/12 2:12 PM | F184: 1/12/12 2:14 PM | G184: 0 | H184: 2 | I184: 4 | K184: 124 | L184: 1
A185: 33128700193 | B185: 2 | C185: 8 | D185: 1 | E185: 1/6/12 9:15 AM | F185: 1/6/12 9:17 AM | G185: 0 | H185: 2 | I185: 7 | K185: 127 | L185: 1
A186: 33129302593 | B186: 2 | C186: 8 | D186: 1 | E186: 1/6/12 9:22 AM | F186: 1/6/12 9:24 AM | G186: 0 | H186: 1 | I186: 59 | K186: 119 | L186: 1
A187: 33129401270 | B187: 2 | C187: 8 | D187: 1 | E187: 1/6/12 9:26 AM | F187: 1/6/12 9:28 AM | G187: 0 | H187: 1 | I187: 56 | K187: 116 | L187: 1
A188: 33129401288 | B188: 2 | C188: 8 | D188: 1 | E188: 1/6/12 9:34 AM | F188: 1/6/12 9:36 AM | G188: 0 | H188: 1 | I188: 51 | K188: 111 | L188: 1
A189: 33129302965 | B189: 2 | C189: 8 | D189: 1 | E189: 1/6/12 1:15 PM | F189: 1/6/12 1:18 PM | G189: 0 | H189: 2 | I189: 33 | K189: 153 | L189: 1
A190: 33129000478 | B190: 2 | C190: 8 | D190: 1 | E190: 1/6/12 1:20 PM | F190: 1/6/12 1:24 PM | G190: 0 | H190: 3 | I190: 51 | K190: 231 | L190: 1
A191: 33129500626 | B191: 2 | C191: 8 | D191: 1 | E191: 1/6/12 1:24 PM | F191: 1/6/12 1:26 PM | G191: 0 | H191: 1 | I191: 55 | K191: 115 | L191: 1
A192: 33129205242 | B192: 2 | C192: 8 | D192: 1 | E192: 1/19/12 9:50 AM | F192: 1/19/12 9:53 AM | G192: 0 | H192: 2 | I192: 19 | K192: 139 | L192: 1
A193: 33129405081 | B193: 2 | C193: 8 | D193: 1 | E193: 1/19/12 10:37 AM | F193: 1/19/12 10:38 AM | G193: 0 | H193: 1 | I193: 40 | K193: 100 | L193: 1
A194: 33129405099 | B194: 2 | C194: 8 | D194: 1 | E194: 1/19/12 10:39 AM | F194: 1/19/12 10:42 AM | G194: 0 | H194: 3 | I194: 21 | K194: 201 | L194: 1
A195: 33129201167 | B195: 2 | C195: 8 | D195: 1 | E195: 1/6/12 12:03 PM | F195: 1/6/12 12:14 PM | G195: 0 | H195: 10 | I195: 32 | K195: 632 | L195: 1
A196: 33129501566 | B196: 2 | C196: 8 | D196: 1 | E196: 1/12/12 2:04 PM | F196: 1/12/12 2:06 PM | G196: 0 | H196: 2 | I196: 17 | K196: 137 | L196: 1
A197: 33129001211 | B197: 2 | C197: 8 | D197: 1 | E197: 1/12/12 2:33 PM | F197: 1/12/12 2:36 PM | G197: 0 | H197: 2 | I197: 58 | K197: =G197*60*60+H197*60+I197 -> 178 | L197: =INT(LEFT(E197,FIND("/",E197) -1)) -> 1
A198: 33129307071 | B198: 2 | C198: 8 | D198: 1 | E198: 1/12/12 2:37 PM | F198: 1/12/12 2:38 PM | G198: 0 | H198: 1 | I198: 23 | K198: 83 | L198: 1
A199: 33129500568 | B199: 2 | C199: 8 | D199: 1 | E199: 1/6/12 12:23 PM | F199: 1/6/12 12:29 PM | G199: 0 | H199: 5 | I199: 54 | K199: 354 | L199: 1
A200: 33129201183 | B200: 2 | C200: 8 | D200: 1 | E200: 1/6/12 12:29 PM | F200: 1/6/12 12:32 PM | G200: 0 | H200: 3 | I200: 49 | K200: 229 | L200: 1
... 4300 more rows

Sheet 2013
A1: MÉTRICAS DE TIEMPO DE PROCESO EN SOLICITUD DE ASIGNACIÓN DE NSS
A2: NSS | B2: CIZ | C2: DELEGACIÓN | D2: SUBDELEGACIÓN | E2: HORA | G2: TIEMPO DE TRÁMITE | K2: Segundos totales | L2: Mes en que se realizó | N2: 2013
E3: INICIO | F3: TERMINO | G3: HORAS | H3: MINUTOS | I3: SEGUNDOS | N3: Mes | O3: Segundos promedio
A4: 33139107800 | B4: 2 | C4: 8 | D4: 1 | E4: 3/5/13 3:43 PM | F4: 3/5/13 3:48 PM | G4: 0 | H4: 5 | I4: 11 | K4: =G4*60*60+H4*60+I4 -> 311 | L4: =INT(LEFT(E4,FIND("/",E4) -1)) -> 3 | N4: Enero | O4: =IF(COUNTIF(tres,"=2")<>0,AVERAGEIF(tres,"=2",tiempotres),0) -> 132.233945
A5: 33139007182 | B5: 2 | C5: 8 | D5: 1 | E5: 3/5/13 3:47 PM | F5: 3/5/13 3:49 PM | G5: 0 | H5: 1 | I5: 58 | K5: =G5*60*60+H5*60+I5 -> 118 | L5: =INT(LEFT(E5,FIND("/",E5) -1)) -> 3 | N5: Febrero | O5: =IF(COUNTIF(tres,"=1")<>0,AVERAGEIF(tres,"=1",tiempotres),0) -> 119.4357246
A6: 33138803482 | B6: 2 | C6: 8 | D6: 1 | E6: 3/5/13 3:49 PM | F6: 3/5/13 3:52 PM | G6: 0 | H6: 2 | I6: 44 | K6: 164 | L6: 3 | N6: Marzo | O6: =AVERAGEIF(tres,"=3",tiempotres) -> 101.8893617
A7: 33138905121 | B7: 2 | C7: 8 | D7: 1 | E7: 3/5/13 3:51 PM | F7: 3/5/13 3:54 PM | G7: 0 | H7: 2 | I7: 43 | K7: 163 | L7: 3 | N7: Abril | O7: =AVERAGEIF(tres,"=4",tiempotres) -> 111.3229678
A8: 33139433560 | B8: 2 | C8: 8 | D8: 1 | E8: 3/5/13 3:56 PM | F8: 3/5/13 3:59 PM | G8: 0 | H8: 3 | I8: 36 | K8: 216 | L8: 3 | N8: Mayo | O8: =AVERAGEIF(tres,"=5",tiempotres) -> 94.95469083
A9: 33139516513 | B9: 2 | C9: 8 | D9: 1 | E9: 3/5/13 4:00 PM | F9: 3/5/13 4:02 PM | G9: 0 | H9: 2 | I9: 26 | K9: 146 | L9: 3 | N9: Junio | O9: =AVERAGEIF(tres,"=6",tiempotres) -> 91.88837866
A10: 33139007208 | B10: 2 | C10: 8 | D10: 1 | E10: 3/5/13 4:11 PM | F10: 3/5/13 4:12 PM | G10: 0 | H10: 0 | I10: 32 | K10: 32 | L10: 3 | N10: Julio | O10: =AVERAGEIF(tres,"=7",tiempotres) -> 121.1440299
A11: 33139210794 | B11: 2 | C11: 8 | D11: 1 | E11: 3/5/13 4:13 PM | F11: 3/5/13 4:14 PM | G11: 0 | H11: 0 | I11: 55 | K11: 55 | L11: 3 | N11: Agosto | O11: =AVERAGEIF(tres,"=8",tiempotres) -> 134.4163362
A12: 33139316351 | B12: 2 | C12: 8 | D12: 1 | E12: 3/5/13 4:14 PM | F12: 3/5/13 4:15 PM | G12: 0 | H12: 0 | I12: 31 | K12: 31 | L12: 3 | N12: Septiembre | O12: =AVERAGEIF(tres,"=9",tiempotres) -> 131.7395883
A13: 33138501441 | B13: 2 | C13: 8 | D13: 1 | E13: 3/4/13 11:52 AM | F13: 3/4/13 11:53 AM | G13: 0 | H13: 0 | I13: 46 | K13: 46 | L13: 3 | N13: Octubre | O13: =AVERAGEIF(tres,"=10",tiempotres) -> 138.5639251
A14: 33139315866 | B14: 2 | C14: 8 | D14: 1 | E14: 3/4/13 12:01 PM | F14: 3/4/13 12:03 PM | G14: 0 | H14: 1 | I14: 48 | K14: 108 | L14: 3 | N14: Noviembre | O14: =AVERAGEIF(tres,"=11",tiempotres) -> 155.3450148
A15: 33139515754 | B15: 2 | C15: 8 | D15: 1 | E15: 3/4/13 12:47 PM | F15: 3/4/13 12:49 PM | G15: 0 | H15: 2 | I15: 0 | K15: 120 | L15: 3 | N15: Diciembre | O15: =AVERAGEIF(tres,"=12",tiempotres) -> 147.9876011
A16: 33139107453 | B16: 2 | C16: 8 | D16: 1 | E16: 3/4/13 12:50 PM | F16: 3/4/13 12:52 PM | G16: 0 | H16: 1 | I16: 24 | K16: 84 | L16: 3
A17: 33137900453 | B17: 2 | C17: 8 | D17: 1 | E17: 3/4/13 12:52 PM | F17: 3/4/13 12:53 PM | G17: 0 | H17: 1 | I17: 25 | K17: 85 | L17: 3
A18: 33139515911 | B18: 2 | C18: 8 | D18: 1 | E18: 3/4/13 2:20 PM | F18: 3/4/13 2:22 PM | G18: 0 | H18: 1 | I18: 36 | K18: 96 | L18: 3
A19: 33139315981 | B19: 2 | C19: 8 | D19: 1 | E19: 3/4/13 2:29 PM | F19: 3/4/13 2:32 PM | G19: 0 | H19: 3 | I19: 21 | K19: 201 | L19: 3
A20: 33138200994 | B20: 2 | C20: 8 | D20: 1 | E20: 3/4/13 2:34 PM | F20: 3/4/13 2:36 PM | G20: 0 | H20: 1 | I20: 45 | K20: 105 | L20: 3
A21: 33139315999 | B21: 2 | C21: 8 | D21: 1 | E21: 3/4/13 2:36 PM | F21: 3/4/13 2:38 PM | G21: 0 | H21: 1 | I21: 49 | K21: 109 | L21: 3
A22: 35129334849 | B22: 2 | C22: 8 | D22: 1 | E22: 3/4/13 2:39 PM | F22: 3/4/13 2:41 PM | G22: 0 | H22: 1 | I22: 28 | K22: 88 | L22: 3
A23: 33139006994 | B23: 2 | C23: 8 | D23: 1 | E23: 3/4/13 4:30 PM | F23: 3/4/13 4:31 PM | G23: 0 | H23: 1 | I23: 23 | K23: 83 | L23: 3
A24: 33139516042 | B24: 2 | C24: 8 | D24: 1 | E24: 3/4/13 4:28 PM | F24: 3/4/13 4:32 PM | G24: 0 | H24: 4 | I24: 43 | K24: 283 | L24: 3
A25: 33139516059 | B25: 2 | C25: 8 | D25: 1 | E25: 3/4/13 4:32 PM | F25: 3/4/13 4:33 PM | G25: 0 | H25: 0 | I25: 45 | K25: 45 | L25: 3
A26: 33138904884 | B26: 2 | C26: 8 | D26: 1 | E26: 3/4/13 11:55 AM | F26: 3/4/13 11:57 AM | G26: 0 | H26: 2 | I26: 4 | K26: 124 | L26: 3
A27: 33078840015 | B27: 2 | C27: 8 | D27: 1 | E27: 3/4/13 1:27 PM | F27: 3/4/13 1:28 PM | G27: 0 | H27: 0 | I27: 58 | K27: 58 | L27: 3
A28: 33138702528 | B28: 2 | C28: 8 | D28: 1 | E28: 3/4/13 1:28 PM | F28: 3/4/13 1:30 PM | G28: 0 | H28: 1 | I28: 30 | K28: 90 | L28: 3
A29: 33139313176 | B29: 2 | C29: 8 | D29: 1 | E29: 3/4/13 1:33 PM | F29: 3/4/13 1:34 PM | G29: 0 | H29: 1 | I29: 53 | K29: 113 | L29: 3
A30: 33138501466 | B30: 2 | C30: 8 | D30: 1 | E30: 3/4/13 2:25 PM | F30: 3/4/13 2:25 PM | G30: 0 | H30: 0 | I30: 44 | K30: 44 | L30: 3
A31: 33139433032 | B31: 2 | C31: 8 | D31: 1 | E31: 3/4/13 3:36 PM | F31: 3/4/13 3:37 PM | G31: 0 | H31: 1 | I31: 5 | K31: 65 | L31: 3
A32: 33139433040 | B32: 2 | C32: 8 | D32: 1 | E32: 3/4/13 3:37 PM | F32: 3/4/13 3:38 PM | G32: 0 | H32: 0 | I32: 34 | K32: 34 | L32: 3
A33: 33139608609 | B33: 2 | C33: 8 | D33: 1 | E33: 3/4/13 3:40 PM | F33: 3/4/13 3:41 PM | G33: 0 | H33: 1 | I33: 17 | K33: 77 | L33: 3
A34: 33139703186 | B34: 2 | C34: 8 | D34: 1 | E34: 3/4/13 3:39 PM | F34: 3/4/13 3:41 PM | G34: 0 | H34: 2 | I34: 1 | K34: 121 | L34: 3
A35: 33129202215 | B35: 2 | C35: 8 | D35: 1 | E35: 3/4/13 3:41 PM | F35: 3/4/13 3:42 PM | G35: 0 | H35: 0 | I35: 46 | K35: 46 | L35: 3
A36: 33129542974 | B36: 2 | C36: 8 | D36: 1 | E36: 3/4/13 3:43 PM | F36: 3/4/13 3:44 PM | G36: 0 | H36: 0 | I36: 41 | K36: 41 | L36: 3
A37: 33139433065 | B37: 2 | C37: 8 | D37: 1 | E37: 3/4/13 3:44 PM | F37: 3/4/13 3:46 PM | G37: 0 | H37: 2 | I37: 1 | K37: 121 | L37: 3
A38: 33139107578 | B38: 2 | C38: 8 | D38: 1 | E38: 3/5/13 9:34 AM | F38: 3/5/13 9:35 AM | G38: 0 | H38: 1 | I38: 23 | K38: 83 | L38: 3
A39: 33135800168 | B39: 2 | C39: 8 | D39: 1 | E39: 3/4/13 12:29 PM | F39: 3/4/13 12:31 PM | G39: 0 | H39: 2 | I39: 13 | K39: 133 | L39: 3
A40: 33133400037 | B40: 2 | C40: 8 | D40: 1 | E40: 3/4/13 12:32 PM | F40: 3/4/13 12:36 PM | G40: 0 | H40: 4 | I40: 39 | K40: 279 | L40: 3
A41: 33139315874 | B41: 2 | C41: 8 | D41: 1 | E41: 3/4/13 12:28 PM | F41: 3/4/13 12:29 PM | G41: 0 | H41: 0 | I41: 23 | K41: 23 | L41: 3
A42: 33119320522 | B42: 2 | C42: 8 | D42: 1 | E42: 3/4/13 1:18 PM | F42: 3/4/13 1:19 PM | G42: 0 | H42: 1 | I42: 20 | K42: 80 | L42: 3
A43: 33139608567 | B43: 2 | C43: 8 | D43: 1 | E43: 3/4/13 1:23 PM | F43: 3/4/13 1:25 PM | G43: 0 | H43: 1 | I43: 58 | K43: 118 | L43: 3
A44: 33139515804 | B44: 2 | C44: 8 | D44: 1 | E44: 3/4/13 1:07 PM | F44: 3/4/13 1:11 PM | G44: 0 | H44: 3 | I44: 28 | K44: 208 | L44: 3
A45: 33139703178 | B45: 2 | C45: 8 | D45: 1 | E45: 3/4/13 1:12 PM | F45: 3/4/13 1:13 PM | G45: 0 | H45: 1 | I45: 30 | K45: 90 | L45: 3
A46: 33138400917 | B46: 2 | C46: 8 | D46: 1 | E46: 3/4/13 1:16 PM | F46: 3/4/13 1:16 PM | G46: 0 | H46: 0 | I46: 26 | K46: 26 | L46: 3
A47: 33139107495 | B47: 2 | C47: 8 | D47: 1 | E47: 3/4/13 1:16 PM | F47: 3/4/13 1:17 PM | G47: 0 | H47: 0 | I47: 49 | K47: 49 | L47: 3
A48: 33139315957 | B48: 2 | C48: 8 | D48: 1 | E48: 3/4/13 2:11 PM | F48: 3/4/13 2:13 PM | G48: 0 | H48: 1 | I48: 26 | K48: 86 | L48: 3
A49: 33139210638 | B49: 2 | C49: 8 | D49: 1 | E49: 3/4/13 2:16 PM | F49: 3/4/13 2:17 PM | G49: 0 | H49: 1 | I49: 33 | K49: 93 | L49: 3
A50: 33139515895 | B50: 2 | C50: 8 | D50: 1 | E50: 3/4/13 2:19 PM | F50: 3/4/13 2:20 PM | G50: 0 | H50: 1 | I50: 22 | K50: 82 | L50: 3
A51: 33139608575 | B51: 2 | C51: 8 | D51: 1 | E51: 3/4/13 2:19 PM | F51: 3/4/13 2:21 PM | G51: 0 | H51: 1 | I51: 55 | K51: 115 | L51: 3
A52: 33139432927 | B52: 2 | C52: 8 | D52: 1 | E52: 3/4/13 2:04 PM | F52: 3/4/13 2:07 PM | G52: 0 | H52: 2 | I52: 37 | K52: 157 | L52: 3
A53: 33139432935 | B53: 2 | C53: 8 | D53: 1 | E53: 3/4/13 2:08 PM | F53: 3/4/13 2:09 PM | G53: 0 | H53: 1 | I53: 26 | K53: 86 | L53: 3
A54: 33139433024 | B54: 2 | C54: 8 | D54: 1 | E54: 3/4/13 3:23 PM | F54: 3/4/13 3:25 PM | G54: 0 | H54: 1 | I54: 57 | K54: 117 | L54: 3
A55: 33131200454 | B55: 2 | C55: 8 | D55: 1 | E55: 3/4/13 3:29 PM | F55: 3/4/13 3:32 PM | G55: 0 | H55: 3 | I55: 4 | K55: 184 | L55: 3
A56: 33139800206 | B56: 2 | C56: 8 | D56: 1 | E56: 3/4/13 3:32 PM | F56: 3/4/13 3:35 PM | G56: 0 | H56: 2 | I56: 40 | K56: 160 | L56: 3
A57: 33139515960 | B57: 2 | C57: 8 | D57: 1 | E57: 3/4/13 3:02 PM | F57: 3/4/13 3:04 PM | G57: 0 | H57: 2 | I57: 6 | K57: 126 | L57: 3
A58: 33139433008 | B58: 2 | C58: 8 | D58: 1 | E58: 3/4/13 3:08 PM | F58: 3/4/13 3:09 PM | G58: 0 | H58: 1 | I58: 34 | K58: 94 | L58: 3
A59: 33129469335 | B59: 2 | C59: 8 | D59: 1 | E59: 3/4/13 3:08 PM | F59: 3/4/13 3:09 PM | G59: 0 | H59: 1 | I59: 40 | K59: 100 | L59: 3
A60: 33119516806 | B60: 2 | C60: 8 | D60: 1 | E60: 3/4/13 3:11 PM | F60: 3/4/13 3:12 PM | G60: 0 | H60: 0 | I60: 49 | K60: 49 | L60: 3
A61: 33139515986 | B61: 2 | C61: 8 | D61: 1 | E61: 3/4/13 3:12 PM | F61: 3/4/13 3:13 PM | G61: 0 | H61: 0 | I61: 54 | K61: 54 | L61: 3
A62: 33139608591 | B62: 2 | C62: 8 | D62: 1 | E62: 3/4/13 3:13 PM | F62: 3/4/13 3:14 PM | G62: 0 | H62: 1 | I62: 14 | K62: 74 | L62: 3
A63: 33139107560 | B63: 2 | C63: 8 | D63: 1 | E63: 3/5/13 9:24 AM | F63: 3/5/13 9:29 AM | G63: 0 | H63: 4 | I63: 8 | K63: 248 | L63: 3
A64: 33139433131 | B64: 2 | C64: 8 | D64: 1 | E64: 3/5/13 9:31 AM | F64: 3/5/13 9:32 AM | G64: 0 | H64: 1 | I64: 18 | K64: 78 | L64: 3
A65: 33138400925 | B65: 2 | C65: 8 | D65: 1 | E65: 3/5/13 9:18 AM | F65: 3/5/13 9:19 AM | G65: 0 | H65: 1 | I65: 28 | K65: 88 | L65: 3
A66: 33139608641 | B66: 2 | C66: 8 | D66: 1 | E66: 3/5/13 10:12 AM | F66: 3/5/13 10:15 AM | G66: 0 | H66: 3 | I66: 18 | K66: 198 | L66: 3
A67: 33135300144 | B67: 2 | C67: 8 | D67: 1 | E67: 3/5/13 10:17 AM | F67: 3/5/13 10:19 AM | G67: 0 | H67: 1 | I67: 37 | K67: 97 | L67: 3
A68: 97130800796 | B68: 2 | C68: 8 | D68: 1 | E68: 3/5/13 10:55 AM | F68: 3/5/13 10:55 AM | G68: 0 | H68: 0 | I68: 23 | K68: 23 | L68: 3
A69: 33139608724 | B69: 2 | C69: 8 | D69: 1 | E69: 3/5/13 10:55 AM | F69: 3/5/13 10:56 AM | G69: 0 | H69: 0 | I69: 25 | K69: =G69*60*60+H69*60+I69 -> 25 | L69: =INT(LEFT(E69,FIND("/",E69) -1)) -> 3
A70: 33119013259 | B70: 2 | C70: 8 | D70: 1 | E70: 3/5/13 10:08 AM | F70: 3/5/13 10:11 AM | G70: 0 | H70: 3 | I70: 4 | K70: 184 | L70: 3
A71: 97130800804 | B71: 2 | C71: 8 | D71: 1 | E71: 3/5/13 10:56 AM | F71: 3/5/13 10:56 AM | G71: 0 | H71: 0 | I71: 27 | K71: 27 | L71: 3
A72: 97130800812 | B72: 2 | C72: 8 | D72: 1 | E72: 3/5/13 10:56 AM | F72: 3/5/13 10:57 AM | G72: 0 | H72: 0 | I72: 25 | K72: 25 | L72: 3
A73: 33129509841 | B73: 2 | C73: 8 | D73: 1 | E73: 3/5/13 10:56 AM | F73: 3/5/13 10:57 AM | G73: 0 | H73: 1 | I73: 28 | K73: 88 | L73: 3
A74: 97130800820 | B74: 2 | C74: 8 | D74: 1 | E74: 3/5/13 10:57 AM | F74: 3/5/13 10:58 AM | G74: 0 | H74: 0 | I74: 25 | K74: 25 | L74: 3
A75: 33138904983 | B75: 2 | C75: 8 | D75: 1 | E75: 3/5/13 10:49 AM | F75: 3/5/13 10:58 AM | G75: 0 | H75: 8 | I75: 52 | K75: 532 | L75: 3
A76: 97130800838 | B76: 2 | C76: 8 | D76: 1 | E76: 3/5/13 10:58 AM | F76: 3/5/13 10:58 AM | G76: 0 | H76: 0 | I76: 20 | K76: 20 | L76: 3
A77: 97130800846 | B77: 2 | C77: 8 | D77: 1 | E77: 3/5/13 10:59 AM | F77: 3/5/13 10:59 AM | G77: 0 | H77: 0 | I77: 38 | K77: 38 | L77: 3
A78: 97130800853 | B78: 2 | C78: 8 | D78: 1 | E78: 3/5/13 11:00 AM | F78: 3/5/13 11:00 AM | G78: 0 | H78: 0 | I78: 27 | K78: 27 | L78: 3
A79: 97130800861 | B79: 2 | C79: 8 | D79: 1 | E79: 3/5/13 11:00 AM | F79: 3/5/13 11:01 AM | G79: 0 | H79: 0 | I79: 26 | K79: 26 | L79: 3
A80: 33139107602 | B80: 2 | C80: 8 | D80: 1 | E80: 3/5/13 11:00 AM | F80: 3/5/13 11:01 AM | G80: 0 | H80: 0 | I80: 46 | K80: 46 | L80: 3
A81: 97130800879 | B81: 2 | C81: 8 | D81: 1 | E81: 3/5/13 11:01 AM | F81: 3/5/13 11:02 AM | G81: 0 | H81: 0 | I81: 50 | K81: 50 | L81: 3
A82: 33139315536 | B82: 2 | C82: 8 | D82: 1 | E82: 3/1/13 10:05 AM | F82: 3/1/13 10:07 AM | G82: 0 | H82: 1 | I82: 45 | K82: 105 | L82: 3
A83: 33130100077 | B83: 2 | C83: 8 | D83: 1 | E83: 3/1/13 10:06 AM | F83: 3/1/13 10:10 AM | G83: 0 | H83: 4 | I83: 23 | K83: 263 | L83: 3
A84: 97130800721 | B84: 2 | C84: 8 | D84: 1 | E84: 3/5/13 10:48 AM | F84: 3/5/13 10:48 AM | G84: 0 | H84: 0 | I84: 33 | K84: 33 | L84: 3
A85: 97130800739 | B85: 2 | C85: 8 | D85: 1 | E85: 3/5/13 10:49 AM | F85: 3/5/13 10:49 AM | G85: 0 | H85: 0 | I85: 29 | K85: 29 | L85: 3
A86: 97130800747 | B86: 2 | C86: 8 | D86: 1 | E86: 3/5/13 10:49 AM | F86: 3/5/13 10:50 AM | G86: 0 | H86: 0 | I86: 32 | K86: 32 | L86: 3
A87: 97130800754 | B87: 2 | C87: 8 | D87: 1 | E87: 3/5/13 10:50 AM | F87: 3/5/13 10:51 AM | G87: 0 | H87: 0 | I87: 27 | K87: 27 | L87: 3
A88: 97130800762 | B88: 2 | C88: 8 | D88: 1 | E88: 3/5/13 10:51 AM | F88: 3/5/13 10:53 AM | G88: 0 | H88: 2 | I88: 9 | K88: 129 | L88: 3
A89: 33139608708 | B89: 2 | C89: 8 | D89: 1 | E89: 3/5/13 10:53 AM | F89: 3/5/13 10:54 AM | G89: 0 | H89: 0 | I89: 27 | K89: 27 | L89: 3
A90: 97130800770 | B90: 2 | C90: 8 | D90: 1 | E90: 3/5/13 10:54 AM | F90: 3/5/13 10:54 AM | G90: 0 | H90: 0 | I90: 23 | K90: 23 | L90: 3
A91: 33139703194 | B91: 2 | C91: 8 | D91: 1 | E91: 3/5/13 10:54 AM | F91: 3/5/13 10:54 AM | G91: 0 | H91: 0 | I91: 25 | K91: 25 | L91: 3
A92: 97130800788 | B92: 2 | C92: 8 | D92: 1 | E92: 3/5/13 10:54 AM | F92: 3/5/13 10:55 AM | G92: 0 | H92: 0 | I92: 27 | K92: 27 | L92: 3
A93: 33139433263 | B93: 2 | C93: 8 | D93: 1 | E93: 3/5/13 11:46 AM | F93: 3/5/13 11:47 AM | G93: 0 | H93: 1 | I93: 15 | K93: 75 | L93: 3
A94: 33139107289 | B94: 2 | C94: 8 | D94: 1 | E94: 3/1/13 10:13 AM | F94: 3/1/13 10:16 AM | G94: 0 | H94: 2 | I94: 31 | K94: 151 | L94: 3
A95: 33138702452 | B95: 2 | C95: 8 | D95: 1 | E95: 3/1/13 10:18 AM | F95: 3/1/13 10:20 AM | G95: 0 | H95: 2 | I95: 25 | K95: 145 | L95: 3
A96: 33139210380 | B96: 2 | C96: 8 | D96: 1 | E96: 3/1/13 10:30 AM | F96: 3/1/13 10:39 AM | G96: 0 | H96: 9 | I96: 0 | K96: 540 | L96: 3
A97: 33119319540 | B97: 2 | C97: 8 | D97: 1 | E97: 3/1/13 10:48 AM | F97: 3/1/13 10:49 AM | G97: 0 | H97: 1 | I97: 41 | K97: 101 | L97: 3
A98: 33129354354 | B98: 2 | C98: 8 | D98: 1 | E98: 3/1/13 10:51 AM | F98: 3/1/13 10:52 AM | G98: 0 | H98: 0 | I98: 48 | K98: 48 | L98: 3
A99: 33139315544 | B99: 2 | C99: 8 | D99: 1 | E99: 3/1/13 10:52 AM | F99: 3/1/13 10:53 AM | G99: 0 | H99: 0 | I99: 35 | K99: 35 | L99: 3
A100: 33138803342 | B100: 2 | C100: 8 | D100: 1 | E100: 3/1/13 10:53 AM | F100: 3/1/13 10:54 AM | G100: 0 | H100: 1 | I100: 19 | K100: 79 | L100: 3
A101: 33139515341 | B101: 2 | C101: 8 | D101: 1 | E101: 3/1/13 12:05 PM | F101: 3/1/13 12:07 PM | G101: 0 | H101: 1 | I101: 50 | K101: 110 | L101: 3
A102: 33139432182 | B102: 2 | C102: 8 | D102: 1 | E102: 3/1/13 12:08 PM | F102: 3/1/13 12:09 PM | G102: 0 | H102: 1 | I102: 37 | K102: 97 | L102: 3
A103: 33109247990 | B103: 2 | C103: 8 | D103: 1 | E103: 3/5/13 11:33 AM | F103: 3/5/13 11:37 AM | G103: 0 | H103: 3 | I103: 18 | K103: 198 | L103: 3
A104: 33139316161 | B104: 2 | C104: 8 | D104: 1 | E104: 3/5/13 11:39 AM | F104: 3/5/13 11:41 AM | G104: 0 | H104: 1 | I104: 9 | K104: 69 | L104: 3
A105: 33139608815 | B105: 2 | C105: 8 | D105: 1 | E105: 3/5/13 12:32 PM | F105: 3/5/13 12:34 PM | G105: 0 | H105: 2 | I105: 4 | K105: 124 | L105: 3
A106: 33139608831 | B106: 2 | C106: 8 | D106: 1 | E106: 3/5/13 12:37 PM | F106: 3/5/13 12:40 PM | G106: 0 | H106: 3 | I106: 31 | K106: 211 | L106: 3
A107: 33139315569 | B107: 2 | C107: 8 | D107: 1 | E107: 3/1/13 12:15 PM | F107: 3/1/13 12:16 PM | G107: 0 | H107: 0 | I107: 33 | K107: 33 | L107: 3
A108: 33139800198 | B108: 2 | C108: 8 | D108: 1 | E108: 3/1/13 12:17 PM | F108: 3/1/13 12:20 PM | G108: 0 | H108: 2 | I108: 54 | K108: 174 | L108: 3
A109: 33139703129 | B109: 2 | C109: 8 | D109: 1 | E109: 3/1/13 12:18 PM | F109: 3/1/13 12:22 PM | G109: 0 | H109: 4 | I109: 26 | K109: 266 | L109: 3
A110: 33130200158 | B110: 2 | C110: 8 | D110: 1 | E110: 3/1/13 12:21 PM | F110: 3/1/13 12:23 PM | G110: 0 | H110: 1 | I110: 46 | K110: 106 | L110: 3
A111: 33139315577 | B111: 2 | C111: 8 | D111: 1 | E111: 3/1/13 12:25 PM | F111: 3/1/13 12:28 PM | G111: 0 | H111: 2 | I111: 30 | K111: 150 | L111: 3
A112: 33139432216 | B112: 2 | C112: 8 | D112: 1 | E112: 3/1/13 12:23 PM | F112: 3/1/13 12:32 PM | G112: 0 | H112: 9 | I112: 24 | K112: 564 | L112: 3
A113: 33139515465 | B113: 2 | C113: 8 | D113: 1 | E113: 3/1/13 3:17 PM | F113: 3/1/13 3:19 PM | G113: 0 | H113: 1 | I113: 39 | K113: 99 | L113: 3
A114: 33139315593 | B114: 2 | C114: 8 | D114: 1 | E114: 3/1/13 12:36 PM | F114: 3/1/13 12:38 PM | G114: 0 | H114: 1 | I114: 15 | K114: 75 | L114: 3
A115: 33139432240 | B115: 2 | C115: 8 | D115: 1 | E115: 3/1/13 12:37 PM | F115: 3/1/13 12:40 PM | G115: 0 | H115: 2 | I115: 37 | K115: 157 | L115: 3
A116: 33139210547 | B116: 2 | C116: 8 | D116: 1 | E116: 3/1/13 3:48 PM | F116: 3/1/13 3:50 PM | G116: 0 | H116: 1 | I116: 30 | K116: 90 | L116: 3
A117: 33139608419 | B117: 2 | C117: 8 | D117: 1 | E117: 3/1/13 12:41 PM | F117: 3/1/13 12:43 PM | G117: 0 | H117: 1 | I117: 36 | K117: 96 | L117: 3
A118: 33139006796 | B118: 2 | C118: 8 | D118: 1 | E118: 3/1/13 12:42 PM | F118: 3/1/13 12:44 PM | G118: 0 | H118: 1 | I118: 55 | K118: 115 | L118: 3
A119: 33078413516 | B119: 2 | C119: 8 | D119: 1 | E119: 3/1/13 12:43 PM | F119: 3/1/13 12:45 PM | G119: 0 | H119: 1 | I119: 6 | K119: 66 | L119: 3
A120: 33139608427 | B120: 2 | C120: 8 | D120: 1 | E120: 3/1/13 12:46 PM | F120: 3/1/13 12:51 PM | G120: 0 | H120: 5 | I120: 5 | K120: 305 | L120: 3
A121: 33139432299 | B121: 2 | C121: 8 | D121: 1 | E121: 3/1/13 12:57 PM | F121: 3/1/13 1:00 PM | G121: 0 | H121: 2 | I121: 59 | K121: 179 | L121: 3
A122: 33119448661 | B122: 2 | C122: 8 | D122: 1 | E122: 3/1/13 2:41 PM | F122: 3/1/13 2:42 PM | G122: 0 | H122: 1 | I122: 18 | K122: 78 | L122: 3
A123: 33139006838 | B123: 2 | C123: 8 | D123: 1 | E123: 3/1/13 2:47 PM | F123: 3/1/13 2:50 PM | G123: 0 | H123: 3 | I123: 31 | K123: 211 | L123: 3
A124: 35129443038 | B124: 2 | C124: 8 | D124: 1 | E124: 3/5/13 12:25 PM | F124: 3/5/13 12:26 PM | G124: 0 | H124: 1 | I124: 45 | K124: 105 | L124: 3
A125: 33139007075 | B125: 2 | C125: 8 | D125: 1 | E125: 3/5/13 12:29 PM | F125: 3/5/13 12:31 PM | G125: 0 | H125: 1 | I125: 53 | K125: 113 | L125: 3
A126: 33138501482 | B126: 2 | C126: 8 | D126: 1 | E126: 3/5/13 12:31 PM | F126: 3/5/13 12:32 PM | G126: 0 | H126: 0 | I126: 27 | K126: 27 | L126: 3
A127: 33139107693 | B127: 2 | C127: 8 | D127: 1 | E127: 3/5/13 1:16 PM | F127: 3/5/13 1:16 PM | G127: 0 | H127: 0 | I127: 24 | K127: 24 | L127: 3
A128: 33139516331 | B128: 2 | C128: 8 | D128: 1 | E128: 3/5/13 1:30 PM | F128: 3/5/13 1:31 PM | G128: 0 | H128: 0 | I128: 56 | K128: 56 | L128: 3
A129: 33139210497 | B129: 2 | C129: 8 | D129: 1 | E129: 3/1/13 3:09 PM | F129: 3/1/13 3:10 PM | G129: 0 | H129: 0 | I129: 34 | K129: 34 | L129: 3
A130: 33139210505 | B130: 2 | C130: 8 | D130: 1 | E130: 3/1/13 3:10 PM | F130: 3/1/13 3:12 PM | G130: 0 | H130: 1 | I130: 32 | K130: 92 | L130: 3
A131: 33139432455 | B131: 2 | C131: 8 | D131: 1 | E131: 3/1/13 3:12 PM | F131: 3/1/13 3:13 PM | G131: 0 | H131: 0 | I131: 27 | K131: 27 | L131: 3
A132: 33139210513 | B132: 2 | C132: 8 | D132: 1 | E132: 3/1/13 3:24 PM | F132: 3/1/13 3:28 PM | G132: 0 | H132: 3 | I132: 56 | K132: 236 | L132: 3
A133: 33139210539 | B133: 2 | C133: 8 | D133: 1 | E133: 3/1/13 3:33 PM | F133: 3/1/13 3:35 PM | G133: 0 | H133: 2 | I133: 4 | K133: =G133*60*60+H133*60+I133 -> 124 | L133: =INT(LEFT(E133,FIND("/",E133) -1)) -> 3
A134: 33139515481 | B134: 2 | C134: 8 | D134: 1 | E134: 3/1/13 3:52 PM | F134: 3/1/13 3:54 PM | G134: 0 | H134: 1 | I134: 38 | K134: 98 | L134: 3
A135: 33139432489 | B135: 2 | C135: 8 | D135: 1 | E135: 3/1/13 3:55 PM | F135: 3/1/13 3:57 PM | G135: 0 | H135: 1 | I135: 38 | K135: 98 | L135: 3
A136: 33139315767 | B136: 2 | C136: 8 | D136: 1 | E136: 3/1/13 4:27 PM | F136: 3/1/13 4:30 PM | G136: 0 | H136: 3 | I136: 4 | K136: 184 | L136: 3
A137: 33099140734 | B137: 2 | C137: 8 | D137: 1 | E137: 3/4/13 9:38 AM | F137: 3/4/13 9:42 AM | G137: 0 | H137: 3 | I137: 32 | K137: 212 | L137: 3
A138: 33139107396 | B138: 2 | C138: 8 | D138: 1 | E138: 3/4/13 9:44 AM | F138: 3/4/13 9:46 AM | G138: 0 | H138: 2 | I138: 11 | K138: 131 | L138: 3
A139: 33119296912 | B139: 2 | C139: 8 | D139: 1 | E139: 3/5/13 1:19 PM | F139: 3/5/13 1:19 PM | G139: 0 | H139: 0 | I139: 45 | K139: 45 | L139: 3
A140: 33139608856 | B140: 2 | C140: 8 | D140: 1 | E140: 3/5/13 1:19 PM | F140: 3/5/13 1:21 PM | G140: 0 | H140: 2 | I140: 40 | K140: 160 | L140: 3
A141: 33139433487 | B141: 2 | C141: 8 | D141: 1 | E141: 3/5/13 2:48 PM | F141: 3/5/13 2:50 PM | G141: 0 | H141: 2 | I141: 7 | K141: 127 | L141: 3
A142: 33138803474 | B142: 2 | C142: 8 | D142: 1 | E142: 3/5/13 2:57 PM | F142: 3/5/13 2:59 PM | G142: 0 | H142: 1 | I142: 12 | K142: 72 | L142: 3
A143: 33139432604 | B143: 2 | C143: 8 | D143: 1 | E143: 3/4/13 9:56 AM | F143: 3/4/13 9:57 AM | G143: 0 | H143: 0 | I143: 23 | K143: 23 | L143: 3
A144: 33139432612 | B144: 2 | C144: 8 | D144: 1 | E144: 3/4/13 9:57 AM | F144: 3/4/13 9:58 AM | G144: 0 | H144: 0 | I144: 54 | K144: 54 | L144: 3
A145: 33139608500 | B145: 2 | C145: 8 | D145: 1 | E145: 3/4/13 10:03 AM | F145: 3/4/13 10:05 AM | G145: 0 | H145: 1 | I145: 41 | K145: 101 | L145: 3
A146: 33138501433 | B146: 2 | C146: 8 | D146: 1 | E146: 3/4/13 11:29 AM | F146: 3/4/13 11:31 AM | G146: 0 | H146: 2 | I146: 23 | K146: 143 | L146: 3
A147: 33136100162 | B147: 2 | C147: 8 | D147: 1 | E147: 3/5/13 2:28 PM | F147: 3/5/13 2:30 PM | G147: 0 | H147: 1 | I147: 30 | K147: 90 | L147: 3
A148: 33138803458 | B148: 2 | C148: 8 | D148: 1 | E148: 3/5/13 2:31 PM | F148: 3/5/13 2:34 PM | G148: 0 | H148: 3 | I148: 3 | K148: 183 | L148: 3
A149: 33139608872 | B149: 2 | C149: 8 | D149: 1 | E149: 3/5/13 2:33 PM | F149: 3/5/13 2:34 PM | G149: 0 | H149: 1 | I149: 42 | K149: 102 | L149: 3
A150: 33139007166 | B150: 2 | C150: 8 | D150: 1 | E150: 3/5/13 2:38 PM | F150: 3/5/13 2:38 PM | G150: 0 | H150: 0 | I150: 37 | K150: 37 | L150: 3
A151: 35129319147 | B151: 2 | C151: 8 | D151: 1 | E151: 3/5/13 2:39 PM | F151: 3/5/13 2:40 PM | G151: 0 | H151: 1 | I151: 4 | K151: 64 | L151: 3
A152: 33137700580 | B152: 2 | C152: 8 | D152: 1 | E152: 3/5/13 2:42 PM | F152: 3/5/13 2:43 PM | G152: 0 | H152: 0 | I152: 57 | K152: 57 | L152: 3
A153: 33138803375 | B153: 2 | C153: 8 | D153: 1 | E153: 3/4/13 12:15 PM | F153: 3/4/13 12:18 PM | G153: 0 | H153: 2 | I153: 34 | K153: 154 | L153: 3
A154: 33139107487 | B154: 2 | C154: 8 | D154: 1 | E154: 3/4/13 1:02 PM | F154: 3/4/13 1:04 PM | G154: 0 | H154: 1 | I154: 37 | K154: 97 | L154: 3
A155: 33139315916 | B155: 2 | C155: 8 | D155: 1 | E155: 3/4/13 1:05 PM | F155: 3/4/13 1:06 PM | G155: 0 | H155: 1 | I155: 27 | K155: 87 | L155: 3
A156: 33139432901 | B156: 2 | C156: 8 | D156: 1 | E156: 3/4/13 1:54 PM | F156: 3/4/13 1:55 PM | G156: 0 | H156: 0 | I156: 41 | K156: 41 | L156: 3
A157: 33139107552 | B157: 2 | C157: 8 | D157: 1 | E157: 3/4/13 2:55 PM | F157: 3/4/13 2:56 PM | G157: 0 | H157: 1 | I157: 3 | K157: 63 | L157: 3
A158: 33138803417 | B158: 2 | C158: 8 | D158: 1 | E158: 3/4/13 2:56 PM | F158: 3/4/13 2:57 PM | G158: 0 | H158: 1 | I158: 19 | K158: 79 | L158: 3
A159: 33139501515 | B159: 2 | C159: 8 | D159: 1 | E159: 3/4/13 2:58 PM | F159: 3/4/13 2:59 PM | G159: 0 | H159: 1 | I159: 25 | K159: 85 | L159: 3
A160: 33127602614 | B160: 2 | C160: 8 | D160: 1 | E160: 3/4/13 2:59 PM | F160: 3/4/13 3:00 PM | G160: 0 | H160: 1 | I160: 47 | K160: 107 | L160: 3
A161: 33129534153 | B161: 2 | C161: 8 | D161: 1 | E161: 3/4/13 3:00 PM | F161: 3/4/13 3:01 PM | G161: 0 | H161: 1 | I161: 23 | K161: 83 | L161: 3
A162: 35129339491 | B162: 2 | C162: 8 | D162: 1 | E162: 3/4/13 3:02 PM | F162: 3/4/13 3:02 PM | G162: 0 | H162: 0 | I162: 41 | K162: 41 | L162: 3
A163: 33139006986 | B163: 2 | C163: 8 | D163: 1 | E163: 3/4/13 3:02 PM | F163: 3/4/13 3:03 PM | G163: 0 | H163: 0 | I163: 56 | K163: 56 | L163: 3
A164: 97130800366 | B164: 2 | C164: 8 | D164: 1 | E164: 3/4/13 5:37 PM | F164: 3/4/13 5:38 PM | G164: 0 | H164: 0 | I164: 53 | K164: 53 | L164: 3
A165: 33139800222 | B165: 2 | C165: 8 | D165: 1 | E165: 3/5/13 2:15 PM | F165: 3/5/13 2:22 PM | G165: 0 | H165: 7 | I165: 36 | K165: 456 | L165: 3
A166: 33139433453 | B166: 2 | C166: 8 | D166: 1 | E166: 3/5/13 2:26 PM | F166: 3/5/13 2:28 PM | G166: 0 | H166: 1 | I166: 47 | K166: 107 | L166: 3
A167: 33139006887 | B167: 2 | C167: 8 | D167: 1 | E167: 3/4/13 12:09 PM | F167: 3/4/13 12:12 PM | G167: 0 | H167: 3 | I167: 4 | K167: 184 | L167: 3
A168: 33138803383 | B168: 2 | C168: 8 | D168: 1 | E168: 3/4/13 12:45 PM | F168: 3/4/13 12:46 PM | G168: 0 | H168: 1 | I168: 14 | K168: 74 | L168: 3
A169: 33139315890 | B169: 2 | C169: 8 | D169: 1 | E169: 3/4/13 12:55 PM | F169: 3/4/13 12:57 PM | G169: 0 | H169: 1 | I169: 52 | K169: 112 | L169: 3
A170: 33139210604 | B170: 2 | C170: 8 | D170: 1 | E170: 3/4/13 12:59 PM | F170: 3/4/13 1:00 PM | G170: 0 | H170: 1 | I170: 31 | K170: 91 | L170: 3
A171: 33139515853 | B171: 2 | C171: 8 | D171: 1 | E171: 3/4/13 1:51 PM | F171: 3/4/13 1:52 PM | G171: 0 | H171: 1 | I171: 40 | K171: 100 | L171: 3
A172: 33139107537 | B172: 2 | C172: 8 | D172: 1 | E172: 3/4/13 2:44 PM | F172: 3/4/13 2:46 PM | G172: 0 | H172: 2 | I172: 3 | K172: 123 | L172: 3
A173: 97130800374 | B173: 2 | C173: 8 | D173: 1 | E173: 3/4/13 5:38 PM | F173: 3/4/13 5:39 PM | G173: 0 | H173: 0 | I173: 22 | K173: 22 | L173: 3
A174: 97130800382 | B174: 2 | C174: 8 | D174: 1 | E174: 3/4/13 5:39 PM | F174: 3/4/13 5:40 PM | G174: 0 | H174: 1 | I174: 5 | K174: 65 | L174: 3
A175: 97130800390 | B175: 2 | C175: 8 | D175: 1 | E175: 3/4/13 5:41 PM | F175: 3/4/13 5:41 PM | G175: 0 | H175: 0 | I175: 14 | K175: 14 | L175: 3
A176: 97130800408 | B176: 2 | C176: 8 | D176: 1 | E176: 3/4/13 5:41 PM | F176: 3/4/13 5:42 PM | G176: 0 | H176: 0 | I176: 21 | K176: 21 | L176: 3
A177: 97130800416 | B177: 2 | C177: 8 | D177: 1 | E177: 3/4/13 5:42 PM | F177: 3/4/13 5:43 PM | G177: 0 | H177: 0 | I177: 29 | K177: 29 | L177: 3
A178: 97130800424 | B178: 2 | C178: 8 | D178: 1 | E178: 3/4/13 5:43 PM | F178: 3/4/13 5:43 PM | G178: 0 | H178: 0 | I178: 17 | K178: 17 | L178: 3
A179: 97130800432 | B179: 2 | C179: 8 | D179: 1 | E179: 3/4/13 5:44 PM | F179: 3/4/13 5:44 PM | G179: 0 | H179: 0 | I179: 35 | K179: 35 | L179: 3
A180: 97130800440 | B180: 2 | C180: 8 | D180: 1 | E180: 3/4/13 5:45 PM | F180: 3/4/13 5:45 PM | G180: 0 | H180: 0 | I180: 25 | K180: 25 | L180: 3
A181: 97130800457 | B181: 2 | C181: 8 | D181: 1 | E181: 3/4/13 5:45 PM | F181: 3/4/13 5:46 PM | G181: 0 | H181: 0 | I181: 18 | K181: 18 | L181: 3
A182: 97130800465 | B182: 2 | C182: 8 | D182: 1 | E182: 3/4/13 5:46 PM | F182: 3/4/13 5:47 PM | G182: 0 | H182: 0 | I182: 24 | K182: 24 | L182: 3
A183: 97130800473 | B183: 2 | C183: 8 | D183: 1 | E183: 3/4/13 5:47 PM | F183: 3/4/13 5:47 PM | G183: 0 | H183: 0 | I183: 19 | K183: 19 | L183: 3
A184: 97130800481 | B184: 2 | C184: 8 | D184: 1 | E184: 3/4/13 5:48 PM | F184: 3/4/13 5:48 PM | G184: 0 | H184: 0 | I184: 13 | K184: 13 | L184: 3
A185: 97130800499 | B185: 2 | C185: 8 | D185: 1 | E185: 3/4/13 5:48 PM | F185: 3/4/13 5:49 PM | G185: 0 | H185: 0 | I185: 21 | K185: 21 | L185: 3
A186: 97130800507 | B186: 2 | C186: 8 | D186: 1 | E186: 3/4/13 5:49 PM | F186: 3/4/13 5:49 PM | G186: 0 | H186: 0 | I186: 28 | K186: 28 | L186: 3
A187: 97130800515 | B187: 2 | C187: 8 | D187: 1 | E187: 3/4/13 5:50 PM | F187: 3/4/13 5:50 PM | G187: 0 | H187: 0 | I187: 29 | K187: 29 | L187: 3
A188: 97130800523 | B188: 2 | C188: 8 | D188: 1 | E188: 3/4/13 5:52 PM | F188: 3/4/13 5:52 PM | G188: 0 | H188: 0 | I188: 21 | K188: 21 | L188: 3
A189: 97130800531 | B189: 2 | C189: 8 | D189: 1 | E189: 3/4/13 5:52 PM | F189: 3/4/13 5:53 PM | G189: 0 | H189: 0 | I189: 26 | K189: 26 | L189: 3
A190: 97130800549 | B190: 2 | C190: 8 | D190: 1 | E190: 3/4/13 5:53 PM | F190: 3/4/13 5:54 PM | G190: 0 | H190: 0 | I190: 32 | K190: 32 | L190: 3
A191: 33139432661 | B191: 2 | C191: 8 | D191: 1 | E191: 3/4/13 10:50 AM | F191: 3/4/13 10:54 AM | G191: 0 | H191: 3 | I191: 59 | K191: 239 | L191: 3
A192: 33138904868 | B192: 2 | C192: 8 | D192: 1 | E192: 3/4/13 10:55 AM | F192: 3/4/13 10:57 AM | G192: 0 | H192: 1 | I192: 37 | K192: 97 | L192: 3
A193: 33138601852 | B193: 2 | C193: 8 | D193: 1 | E193: 3/4/13 10:58 AM | F193: 3/4/13 11:01 AM | G193: 0 | H193: 3 | I193: 13 | K193: 193 | L193: 3
A194: 33139432695 | B194: 2 | C194: 8 | D194: 1 | E194: 3/4/13 11:03 AM | F194: 3/4/13 11:08 AM | G194: 0 | H194: 5 | I194: 18 | K194: 318 | L194: 3
A195: 33119333285 | B195: 2 | C195: 8 | D195: 1 | E195: 3/5/13 12:16 PM | F195: 3/5/13 12:17 PM | G195: 0 | H195: 0 | I195: 50 | K195: 50 | L195: 3
A196: 33139515655 | B196: 2 | C196: 8 | D196: 1 | E196: 3/4/13 11:18 AM | F196: 3/4/13 11:20 AM | G196: 0 | H196: 2 | I196: 10 | K196: 130 | L196: 3
A197: 33138702502 | B197: 2 | C197: 8 | D197: 1 | E197: 3/4/13 11:19 AM | F197: 3/4/13 11:20 AM | G197: 0 | H197: 0 | I197: 48 | K197: =G197*60*60+H197*60+I197 -> 48 | L197: =INT(LEFT(E197,FIND("/",E197) -1)) -> 3
A198: 33139432711 | B198: 2 | C198: 8 | D198: 1 | E198: 3/4/13 11:25 AM | F198: 3/4/13 11:27 AM | G198: 0 | H198: 1 | I198: 34 | K198: 94 | L198: 3
A199: 33139516091 | B199: 2 | C199: 8 | D199: 1 | E199: 3/5/13 9:42 AM | F199: 3/5/13 9:43 AM | G199: 0 | H199: 1 | I199: 51 | K199: 111 | L199: 3
A200: 33139608617 | B200: 2 | C200: 8 | D200: 1 | E200: 3/5/13 9:47 AM | F200: 3/5/13 9:48 AM | G200: 0 | H200: 1 | I200: 31 | K200: 91 | L200: 3
... 4300 more rows

Sheet Resumen
B1: 2010 | D1: 2011 | F1: 2012 | H1: 2013
A2: Mes | B2: Promedio de Segundos | C2: Promedio de Minutos | D2: Promedio de Segundos | E2: Promedio de Minutos | F2: Promedio de Segundos | G2: Promedio de Minutos | H2: Promedio de Segundos | I2: Promedio de Minutos | K2: Año | L2: Promedio Segundos | M2: Promedio Minutos
A3: Enero | B3: =AVERAGEIF(cero,"=1",tiempocero) -> 145.8343949 | C3: =B3/60 -> 2.430573248 | D3: =AVERAGEIF(uno,"=1",tiempouno) -> 184.3588907 | E3: =D3/60 -> 3.072648178 | F3: =AVERAGEIF(dos,"=1",tiempodos) -> 164.9608163 | G3: =F3/60 -> 2.749346939 | H3: =IF(COUNTIF(tres,"=2")<>0,AVERAGEIF(tres,"=2",tiempotres),0) -> 132.233945 | I3: =H3/60 -> 2.203899083 | K3: 2010 | L3: =AVERAGE(tiempocero) -> 169.4327273 | M3: =L3/60 -> 2.823878788
A4: Febrero | B4: =AVERAGEIF(cero,"=2",tiempocero) -> 154.4210526 | C4: =B4/60 -> 2.573684211 | D4: =AVERAGEIF(uno,"=2",tiempouno) -> 172.0339257 | E4: =D4/60 -> 2.867232095 | F4: =AVERAGEIF(dos,"=2",tiempodos) -> 144.2548387 | G4: =F4/60 -> 2.404247312 | H4: =IF(COUNTIF(tres,"=1")<>0,AVERAGEIF(tres,"=1",tiempotres),0) -> 119.4357246 | I4: =H4/60 -> 1.99059541 | K4: 2011 | L4: =AVERAGE(tiempouno) -> 168.0157449 | M4: =L4/60 -> 2.800262414
A5: Marzo | B5: =AVERAGEIF(cero,"=3",tiempocero) -> 126.2379518 | C5: 2.103965863 | D5: =AVERAGEIF(uno,"=3",tiempouno) -> 221.6582985 | E5: 3.694304974 | F5: =AVERAGEIF(dos,"=3",tiempodos) -> 175.8202717 | G5: 2.930337861 | H5: =AVERAGEIF(tres,"=3",tiempotres) -> 101.8893617 | I5: 1.698156028 | K5: 2012 | L5: =AVERAGE(tiempodos) -> 151.2092095 | M5: 2.520153492
A6: Abril | B6: =AVERAGEIF(cero,"=4",tiempocero) -> 132.9124668 | C6: 2.215207781 | D6: =AVERAGEIF(uno,"=4",tiempouno) -> 163.1213172 | E6: 2.718688619 | F6: =AVERAGEIF(dos,"=4",tiempodos) -> 198.6631908 | G6: 3.31105318 | H6: =AVERAGEIF(tres,"=4",tiempotres) -> 111.3229678 | I6: 1.855382797 | K6: 2013 | L6: =AVERAGE(tiempotres) -> 123.1585004 | M6: 2.052641674
A7: Mayo | B7: =AVERAGEIF(cero,"=5",tiempocero) -> 142.4858612 | C7: 2.374764353 | D7: =AVERAGEIF(uno,"=5",tiempouno) -> 167.6467316 | E7: 2.794112193 | F7: =AVERAGEIF(dos,"=5",tiempodos) -> 159.8173168 | G7: 2.663621947 | H7: =AVERAGEIF(tres,"=5",tiempotres) -> 94.95469083 | I7: 1.582578181 | K7: Media final | L7: =(SUM(tiempocero)+SUM(tiempouno)+SUM(tiempodos)+SUM(tiempotres))/(COUNT(tiempocero)+COUNT(tiempouno)+COUNT(tiempodos)+COUNT(tiempotres)) -> 142.9789133 | M7: 2.382981888
A8: Junio | B8: =AVERAGEIF(cero,"=6",tiempocero) -> 199.5742574 | C8: 3.326237624 | D8: =AVERAGEIF(uno,"=6",tiempouno) -> 221.9778761 | E8: 3.699631268 | F8: =AVERAGEIF(dos,"=6",tiempodos) -> 152.4679389 | G8: 2.541132316 | H8: =AVERAGEIF(tres,"=6",tiempotres) -> 91.88837866 | I8: 1.531472978
A9: Julio | B9: =AVERAGEIF(cero,"=7",tiempocero) -> 183.685879 | C9: 3.061431316 | D9: =AVERAGEIF(uno,"=7",tiempouno) -> 165.3061013 | E9: 2.755101689 | F9: =AVERAGEIF(dos,"=7",tiempodos) -> 138.9615385 | G9: 2.316025641 | H9: =AVERAGEIF(tres,"=7",tiempotres) -> 121.1440299 | I9: 2.019067164
A10: Agosto | B10: =AVERAGEIF(cero,"=8",tiempocero) -> 197.7306548 | C10: 3.295510913 | D10: =AVERAGEIF(uno,"=8",tiempouno) -> 135.3566108 | E10: 2.255943513 | F10: =AVERAGEIF(dos,"=8",tiempodos) -> 129.5012146 | G10: 2.158353576 | H10: =AVERAGEIF(tres,"=8",tiempotres) -> 134.4163362 | I10: 2.240272271
A11: Septiembre | B11: =AVERAGEIF(cero,"=9",tiempocero) -> 180.7840735 | C11: 3.013067892 | D11: =AVERAGEIF(uno,"=9",tiempouno) -> 150.7544053 | E11: 2.512573421 | F11: =AVERAGEIF(dos,"=9",tiempodos) -> 135.4837438 | G11: 2.258062397 | H11: =AVERAGEIF(tres,"=9",tiempotres) -> 131.7395883 | I11: 2.195659805
A12: Octubre | B12: =AVERAGEIF(cero,"=10",tiempocero) -> 156.4163424 | C12: 2.60693904 | D12: =AVERAGEIF(uno,"=10",tiempouno) -> 131.2356902 | E12: 2.187261504 | F12: =AVERAGEIF(dos,"=10",tiempodos) -> 150.4768041 | G12: 2.507946735 | H12: =AVERAGEIF(tres,"=10",tiempotres) -> 138.5639251 | I12: 2.309398751
A13: Noviembre | B13: =AVERAGEIF(cero,"=11",tiempocero) -> 179.2074074 | C13: 2.986790123 | D13: =AVERAGEIF(uno,"=11",tiempouno) -> 152.6296703 | E13: 2.543827839 | F13: =AVERAGEIF(dos,"=11",tiempodos) -> 130.1822222 | G13: 2.169703704 | H13: =AVERAGEIF(tres,"=11",tiempotres) -> 155.3450148 | I13: 2.58908358
A14: Diciembre | B14: =AVERAGEIF(cero,"=12",tiempocero) -> 161.8253589 | C14: 2.697089314 | D14: =AVERAGEIF(uno,"=12",tiempouno) -> 156.8876117 | E14: 2.614793529 | F14: =AVERAGEIF(dos,"=12",tiempodos) -> 139.4133489 | G14: 2.323555816 | H14: =AVERAGEIF(tres,"=12",tiempotres) -> 147.9876011 | I14: 2.466460018
